Workbook

Sheet Disclaimer
A1: Disclaimer
A2: De rekenblad ontwerper spant zich in om fouten, storingen en onderbrekingen van technische aard zo veel mogelijk te voorkomen. De rekenblad ontwerper kan echter niet garanderen dat onderhavig rekenblad volledig vrij van onderbreking en foutloos is en niet door andere technische problemen wordt getroffen. De rekenblad ontwerper kan niet aansprakelijk worden gesteld voor rechtstreekse of onrechtstreekse schade die ontstaat uit het gebruik van onderhavig rekenblad of van de op of via dit rekenblad ter beschikking gestelde informatie, met inbegrip, zonder beperking, van alle verliezen, werkonderbrekingen, beschadiging van uw programma's of andere gegevens op het computersysteem, of van uw apparatuur of programma's. Storingen, onderbrekingen of fouten in de elektronische toelevering kunnen in geen geval aanleiding geven tot enige financiële compensatie.
A3: De rekenblad ontwerper is niet verantwoordelijk voor welke beslissing of handeling dan ook die door de gebruiker zou zijn genomen op basis van de verstrekte informatie of gegevens; noch is hij verantwoordelijk voor fouten of vergissingen; hij is evenmin verantwoordelijk ten aanzien van de gebruiker of derden voor mogelijk geleden directe, indirecte, incidentele schade, winstderving, verlies van opportuniteit of voor eender welke schade veroorzaakt door haar nalatigheid of vergetelheid in het verschaffen, compileren, monteren, schrijven, interpreteren, melden en verspreiden van info of data door middel van dit rekenblad, en dit zelfs indien de rekenblad ontwerper gewaarschuwd werd voor zulke schade.
A4: Hyperlinks en verwijzingen Op of via dit rekenblad wordt u met (hyper)links doorverwezen naar websites van overheden, instanties of organisaties, en wordt u verwezen naar informatiebronnen die door derden worden beheerd. De rekenblad ontwerper beschikt dan ook over geen enkele technische of inhoudelijke controlemogelijkheid of zeggenschap en kan daarom geen enkele garantie bieden over de volledigheid of juistheid van de inhoud, noch over de beschikbaarheid van deze websites en informatiebronnen. De hyperlinks naar andere sites die dit blad bevat, houden geen enkele bekrachtiging in van de externe site of van de inhoud ervan. De links worden u aangeboden ter informatie en voor uw gebruiksgemak. De rekenblad ontwerper aanvaardt derhalve geen aansprakelijkheid voor rechtstreekse of onrechtstreekse schade die voortvloeit uit het raadplegen of het gebruik van dergelijke externe websites en hun inhoud.
A5: Intellectuele eigendomsrechten U hebt het recht om de informatie op dit blad te consulteren, voor persoonlijk gebruik te downloaden en te reproduceren, mits u de bron vermeldt, overeenkomstig de bepalingen van de wet betreffende het auteursrecht en de naburige rechten. De rekenblad ontwerper behoudt alle intellectuele eigendomsrechten in dit rekenblad zelf en op de ter beschikking gestelde informatie voor zover deze niet openbaar is volgens de wet.
A6: Vertrouwelijkheid Alle commentaar of materiaal dat u ongevraagd en uit eigen beweging aan de rekenblad ontwerper bezorgt, met inbegrip van de gegevens of reacties betreffende de inhoud van dit rekenblad, zal als niet-vertrouwelijk worden beschouwd, tenzij u uitdrukkelijk anders bepaalt. De rekenblad ontwerper wijst iedere verplichting van de hand inzake het gevolg dat aan die algemene reacties en gegevens moet worden gegeven. De rekenblad ontwerper mag die reacties en gegevens naar eigen goeddunken gebruiken, behoudens beperkingen bepaald in de wet tot bescherming van persoonsgegevens. U stemt ermee in dat de rekenblad ontwerper de ideeën, concepten, kennis en technieken, vervat in uw reacties, kan aanwenden voor welk doel ook, met inbegrip van, onder andere, de ontwikkeling en het concipiëren van nieuwe diensten.
A7: Geschillen Alle geschillen en vorderingen die voortkomen uit het gebruik van dit rekenblad of enig gegeven dat erop staat, vallen onder de toepassing van het Nederlands recht. Gebruik van dit rekenblad houdt in dat u zich onderwerpt aan de rechtspraak van de rechtbanken van Nederland en dat u aanvaardt om alle gedingen alleen voor die rechtbanken te brengen.

Sheet Toepassingsvormen in opp.water
B3: Zie Rbk en Nota van toelichting Rbk behorende bij par 4.10 en 4.11
B6: Maximale waarden voor verspreiden van baggerspecie over het aangrenzende perceel:
B8: vrij toepasbaar | E8: verspreidbaar op aangrenzend perceel | G8: niet verspreidbaar | J8: nooit verspreiden/toepassen
E9: ontvangstplicht
C10: AW2000 + art. 4.2.2-4/5 Rbk (N,T-toets) | F10: msPAF-metalen <50% msPAF-organisch <20% min.olie <3000 Cd <7,5 niet met X aangegeven stoffen Rbk, bijlage B, tabel 1 < AW2000# | H10: Interventiewaarde droge bodem
B13: Maximale waarden voor verspreiden van baggerspecie in oppervlaktewater:
B15: vrij toepasbaar | E15: verspreidbaar in zoet water | G15: niet verspreidbaar | J15: nooit verspreiden/toepassen
E16: toetsing ontvangende bodem niet noodzakelijk
C17: AW2000 + art. 4.2.2-4/5 Rbk (N,T-toets) | F17: HVN Rijn gemeten bij Lobith (P95) niet genormeerde stoffen Rbk, bijlage B, tabel 2 < AW2000## | H17: Interventiewaarde waterbodem
B21: Maximale waarden voor toepassen van grond in oppervlaktewater (in een werk):
B22: NB: In opp.water wordt geen grond toegepast die niet afkomstig is van de bodem onder het opp.water die de maximale waarden voor de functieklasse industrie overschrijdt.
B23: vrij toepasbaar | E23: toepasbaar klasse A | G23: toepasbaar klasse B | J23: nooit verspreiden/toepassen
C25: AW2000 + art. 4.2.2-4/5 Rbk (N,T-toets) | F25: HVN Rijn gemeten bij Lobith (P95) niet genormeerde stoffen Rbk, bijlage B, tabel 2 < AW2000## | H25: Interventiewaarde waterbodem
B29: Maximale waarden voor verspreiden van baggerspecie in zout oppervlaktewater:
B30: (in WVO-gebied: Zeeuwse delta, Noordzeekust en Waddenzee)
B31: vrij toepasbaar | E31: verspreidbaar in zeewater | J31: nooit verspreiden/toepassen
E32: toetsing ontvangende bodem niet noodzakelijk
C33: AW2000 + art. 4.2.2-4/5 Rbk (N,T-toets) | H33: Maximale waarden zout opp.water (CTT) (CTT=chemische toxiciteits toets) + art. 4.11-2/3 Rbk (N,T-toets voor niet-prioritaire stoffen)
B36: #: Rbk, Bijlage B, tabel 1, voetnoot 2: Voor de gemeten stoffen, die geen deel uitmaken van de msPAF-berekening, worden de toetsingsregels van de Achtergrondwaarden toegepast.
B37: ##: Rbk, Bijlage B, tabel 2, voetnoot 2: Voor stoffen waarvoor geen HVN is afgeleid gelden de Achtergrondwaarden en de toetsingsregels van de Achtergrondwaarden.

Sheet Toepassingsvormen
A3: toepassing | C3: Regelgeving | D3: toepassingsvoorwaarden
A4: toepassingsvorm | B4: generiek / gebiedsspecifiek | D4: kwaliteit bepalen? NB: particulier en boer vrijgesteld | E4: melden? | F4: overige voorwaarden
A6: toepassen < 50 m3 AW2000 grond | B6: nvt | C6: Bbk | D6: ja | E6: nee | F6: vijf jaar bewaren gegevens
A7: toepassing op landbodem | B7: generiek | C7: Bbk | D7: ja | E7: ja | F7: toepassing op klasseniveau
B8: gebiedsspecifiek | C8: Bbk | D8: ja | E8: ja | F8: toetsing aan lokale maximale waarden
A9: toepassing op waterbodem | B9: generiek | C9: Bbk | D9: ja | E9: ja | F9: toepassing op klasseniveau
B10: gebiedsspecifiek | C10: Bbk | D10: ja | E10: ja | F10: toetsing aan lokale maximale waarden
A11: grootschalige toepassing | B11: nvt | C11: Bbk | D11: ja | E11: ja | F11: toetsing aan emissiewaarden (1-emissietoetswaarden en evt. 2-maximale emissiewaarden)
A12: tijdelijke uitname | B12: nvt | C12: Wbb | D12: nee (wel uitsluiten dat het een ernstig geval betreft) | E12: nee | F12: - geen beweking; - zelfde plaats; - zelfde condities
A13: hergebruik op locatie | B13: nvt | C13: Wbb | D13: nee (wel uitsluiten dat het een ernstig geval betreft) | E13: nee | F13: - binnen locatie; - gesloten grondbalans
A14: opslag / plaatsing in depot | B14: nvt | C14: > 6 maanden = Wm vergunning plichtig | D14: ja | E14: nee | F14: aantonen kwaliteit
A15: tijdelijke opslag | B15: nvt | C15: geen vergunningplicht: - < 6 maanden of - afvoer binnen 3 jaar voor landbodems en 10 jaar voor waterbodems | D15: ja | E15: ja | F15: langer dan zes maanden: eindbestemming melden (Bbk art. 42.4); kwaliteit voldoet aan ontvangende bodem
A16: weilanddepot | B16: generiek | C16: Bbk | D16: ja | E16: nee | F16: depot op aangrenzend perceel < 3 jaar
A17: reinigen | B17: nvt | C17: Wbb | D17: ja | E17: nee
A18: storten | B18: nvt | C18: Wbb | D18: ja | E18: nee | F18: alleen mogelijk met niet-reinigbaarheids-verklaring Bodem+

Sheet Grootschalige toepassing
P1: =IF(AND(OR(F7=1,F13=1),F14=1),1,0) -> 1
A2: Projectcode: | C2: =Bodemkwaliteit!H3 -> < code > | G2: =Bodemkwaliteit!L3 -> Partij < partijnaam > | U2: =Bodemkwaliteit!G21 -> 1
A3: Datum toetsing: | C3: =Bodemkwaliteit!H4 -> <datum>
A4: Betreft het GBT op de bodem of in het opp.water? | F4: 0 | G4: (bodem=0; opp.water=1)
A5: Betreft het een GBT onder waterniveau en is
A6: de bagger afkomstig van hetzelfde beheergebied? | F6: 0 | G6: (ja=1; nee=0)
A7: Voldoet de partij aan de volgende eisen: | F7: =IF(AND(F8=1,F9=1,F10=1),1,0) -> 0
A8: inhoud van de partij gelijk of groter 5000 m3? | F8: 0
A9: toepassingshoogte gelijk of groter 2m dik? | F9: 0 | G9: (ja=1; nee=0) | S9: res. Kwal. (2 van 2) B157: | T9: =Bodemkwaliteit!G71 -> AW2000 grond | V9: (niet mogelijk / niet toepasbare grond / schone grond / bodemklasse)
A10: de toepassing is bestemd voor ophoging? | F10: 0 | G10: (ja=1; nee=0) | S10: res. Kwal. (2 van 2) E157: | T10: =Bodemkwaliteit!J71 ->  | V10: (industrie<x<i-waarde / industrie/wonen / zie N,T-toets)
A11: Of als een of meer van bovenstaande vragen met nee zijn beantwoord:
A12: wordt de partij toegevoegd aan een bestaande partij, zodanig dat de nieuwe,
A13: totale partij, voldoet aan bovenstaande eisen? | F13: 1 | G13: (ja=1; nee=0)
A14: aandeel bodemvreemde materialen < 20%? | F14: =IF(Bodemkwaliteit!J14<20,1,0) -> 1 | G14: (ja=1; nee=0)
A15: grepen: | B15: 2 maal | D15: =Bodemkwaliteit!J15 -> 50 | S15: bg of d | T15: BG-intral | U15: ag | V15: Labo-d
A16: Macroparameters
A17: zuurgraad | C17: =Bodemkwaliteit!L17 -> 7 | D17: =IF(C17=0," ",(Bodemkwaliteit!Y17)) -> 7 | U17: n.v.t. | AE17: =A17 -> zuurgraad
A18: droge stof gehalte (massa-%) | D18: =Bodemkwaliteit!Y18 -> 100 | T18: 0.003 | U18: 0.001 | AE18: =A18 -> droge stof gehalte (massa-%)
A19: lutum gehalte in % d.s. | D19: =Bodemkwaliteit!Y19 -> 25 | E19: =D19 -> 25 | T19: 0.015 | U19: 0.005 | AE19: =A19 -> lutum gehalte in % d.s.
A20: organisch stofgehalte in % d.s. | D20: =Bodemkwaliteit!Y20 -> 10 | E20: =D20 -> 10 | L20: Eis nsg | S20: =F20 -> 0 | T20: 0.006 | U20: 0.002 | Y20: Rbk, B, t1 | Z20: Rbk, B, t2 | AA20: Zie 'Bodemkwaliteit' | AE20: =A20 -> organisch stofgehalte in % d.s.
C21: =IF(Bodemkwaliteit!G22=1,"C[gem]","C[gem]-cor") -> C[gem]-cor | G21: toets | K21: =IF(Bodemkwaliteit!G22=0,"E-tw","E-tw cor") -> E-tw | L21: =IF(Bodemkwaliteit!G22=0,"i-waarde","i-waarde cor") -> i-waarde | X21: E-tw | Y21: E-tw | Z21: E-tw | AA21: a | AB21: b | AC21: c
A23: Parameter, opgaven in mg/kg d.s. | H23: >E-gtw | I23: Egtw<x<i-waarde | J23: >i-waarde
A24: Metalen | C24: C | D24: D | F24: F | G24: G | H24: H | J24: I | L24: z | P24: AANTAL
A25: =Bodemkwaliteit!F25 -> barium | D25: =Bodemkwaliteit!U25 -> 190 | G25: =+IF(D25>L25,">i-waarde",IF(D25<=K25,"voldoet aan emissietoetswaarde",IF(AND(D25>K25,D25<=L25),"emissie bepalen (kolomproef L/S=10)","voldoet niet"))) -> voldoet aan emissietoetswaarde | H25: =IF(G25="voldoet aan emissietoetswaarde",1,0) -> 1 | I25: =IF(G25="emissie bepalen (kolomproef L/S=10)",1,0) -> 0 | J25: =IF(G25=">i-waarde",1,0) -> 0 | K25: =IF(Bodemkwaliteit!$G$21=0,X25*Bodemkwaliteit!BV25,X25) -> 625 | L25: =Bodemkwaliteit!AT25 -> 920 | O25: 1 | P25: 1 | S25: =MAX(T25:V25) -> 15 | V25: 15 | X25: =IF($F$4=1,Y25,Z25) -> 625 | Y25: 625 | Z25: 625 | AA25: =Bodemkwaliteit!BS25 -> 30 | AB25: =Bodemkwaliteit!BT25 -> 5 | AC25: =Bodemkwaliteit!BU25 -> 0 | AE25: =A25 -> barium
A26: =Bodemkwaliteit!F26 -> cadmium | D26: =Bodemkwaliteit!U26 -> 0.6 | G26: voldoet aan emissietoetswaarde | H26: 1 | I26: 0 | J26: 0 | K26: =IF(Bodemkwaliteit!$G$21=0,X26*Bodemkwaliteit!BV26,X26) -> 4.3 | L26: =Bodemkwaliteit!AT26 -> 13 | O26: 1 | P26: 1 | S26: 0.17 | T26: 0.01 | U26: 0.001 | V26: 0.17 | X26: 4.3 | Y26: 4.3 | Z26: 4.3 | AA26: =Bodemkwaliteit!BS26 -> 0.4 | AB26: =Bodemkwaliteit!BT26 -> 0.007 | AC26: =Bodemkwaliteit!BU26 -> 0.021 | AE26: cadmium
A27: =Bodemkwaliteit!F27 -> kobalt | D27: =Bodemkwaliteit!U27 -> 15 | G27: voldoet aan emissietoetswaarde | H27: 1 | I27: 0 | J27: 0 | K27: =IF(Bodemkwaliteit!$G$21=0,X27*Bodemkwaliteit!BV27,X27) -> 130 | L27: =Bodemkwaliteit!AT27 -> 190 | O27: 1 | P27: 1 | S27: 1 | V27: 1 | X27: 130 | Y27: 130 | Z27: 130 | AA27: =Bodemkwaliteit!BS27 -> 2 | AB27: =Bodemkwaliteit!BT27 -> 0.28 | AC27: =Bodemkwaliteit!BU27 -> 0 | AE27: kobalt
A28: =Bodemkwaliteit!F28 -> koper | D28: =Bodemkwaliteit!U28 -> 40 | G28: voldoet aan emissietoetswaarde | H28: 1 | I28: 0 | J28: 0 | K28: =IF(Bodemkwaliteit!$G$21=0,X28*Bodemkwaliteit!BV28,X28) -> 113 | L28: =Bodemkwaliteit!AT28 -> 190 | O28: 1 | P28: 1 | S28: 5 | T28: 0.5 | U28: 0.1 | V28: 5 | X28: 113 | Y28: 113 | Z28: 113 | AA28: =Bodemkwaliteit!BS28 -> 15 | AB28: =Bodemkwaliteit!BT28 -> 0.6 | AC28: =Bodemkwaliteit!BU28 -> 0.6 | AE28: koper
A29: =Bodemkwaliteit!F29 -> kwik | D29: =Bodemkwaliteit!U29 -> 0.15 | G29: voldoet aan emissietoetswaarde | H29: 1 | I29: 0 | J29: 0 | K29: =IF(Bodemkwaliteit!$G$21=0,X29*Bodemkwaliteit!BV29,X29) -> 4.8 | L29: =Bodemkwaliteit!AT29 -> 36 | O29: 1 | P29: 1 | S29: 0.05 | T29: 0.03 | U29: 0.001 | V29: 0.05 | X29: 4.8 | Y29: 4.8 | Z29: 4.8 | AA29: =Bodemkwaliteit!BS29 -> 0.2 | AB29: =Bodemkwaliteit!BT29 -> 0.0034 | AC29: =Bodemkwaliteit!BU29 -> 0.0017 | AE29: =A29 -> kwik
A30: =Bodemkwaliteit!F30 -> lood | D30: =Bodemkwaliteit!U30 -> 50 | G30: voldoet aan emissietoetswaarde | H30: 1 | I30: 0 | J30: 0 | K30: =IF(Bodemkwaliteit!$G$21=0,X30*Bodemkwaliteit!BV30,X30) -> 308 | L30: =Bodemkwaliteit!AT30 -> 530 | O30: 1 | P30: 1 | S30: 13 | T30: 0.2 | U30: 0.05 | V30: 13 | X30: 308 | Y30: 308 | Z30: 308 | AA30: =Bodemkwaliteit!BS30 -> 50 | AB30: =Bodemkwaliteit!BT30 -> 1 | AC30: =Bodemkwaliteit!BU30 -> 1 | AE30: lood
A31: =Bodemkwaliteit!F31 -> molybdeen | D31: =Bodemkwaliteit!U31 -> 0.5 | G31: voldoet aan emissietoetswaarde | H31: 1 | I31: 0 | J31: 0 | K31: =IF(Bodemkwaliteit!$G$21=0,X31*Bodemkwaliteit!BV31,X31) -> 105 | L31: =Bodemkwaliteit!AT31 -> 190 | O31: 1 | P31: 1 | S31: 1.5 | V31: 1.5 | X31: 105 | Y31: 105 | Z31: 105 | AA31: =Bodemkwaliteit!BS31 -> 1 | AB31: =Bodemkwaliteit!BT31 -> 0 | AC31: =Bodemkwaliteit!BU31 -> 0 | AE31: molybdeen
A32: =Bodemkwaliteit!F32 -> nikkel | D32: =Bodemkwaliteit!U32 -> 35 | G32: voldoet aan emissietoetswaarde | H32: 1 | I32: 0 | J32: 0 | K32: =IF(Bodemkwaliteit!$G$21=0,X32*Bodemkwaliteit!BV32,X32) -> 100 | L32: =Bodemkwaliteit!AT32 -> 100 | O32: 1 | P32: 1 | S32: 3 | T32: 0.2 | U32: 0.05 | V32: 3 | X32: 100 | Y32: 100 | Z32: 100 | AA32: =Bodemkwaliteit!BS32 -> 10 | AB32: =Bodemkwaliteit!BT32 -> 1 | AC32: =Bodemkwaliteit!BU32 -> 0 | AE32: nikkel
A33: =Bodemkwaliteit!F33 -> zink | D33: =Bodemkwaliteit!U33 -> 100 | G33: voldoet aan emissietoetswaarde | H33: 1 | I33: 0 | J33: 0 | K33: =IF(Bodemkwaliteit!$G$21=0,X33*Bodemkwaliteit!BV33,X33) -> 430 | L33: =Bodemkwaliteit!AT33 -> 720 | O33: 1 | P33: 1 | S33: 17 | T33: 3 | U33: 1 | V33: 17 | X33: 430 | Y33: 430 | Z33: 430 | AA33: =Bodemkwaliteit!BS33 -> 50 | AB33: =Bodemkwaliteit!BT33 -> 3 | AC33: =Bodemkwaliteit!BU33 -> 1.5 | AE33: zink
H34: =SUM(H25:H33) -> 9 | I34: =SUM(I25:I33) -> 0 | J34: =SUM(J25:J33) -> 0 | K34: =SUM(H34+I34+J34) -> 9 | Q34: voldoet N,T? | S34: schoon?
A35: <resultaat> | B35: gemiddelde te toetsen gehalte | H35: >AW2000 | J35: >i-waarde | O35: =SUM(O25:O33) -> 9 | P35: =SUM(P25:P33) -> 9
A36: C | B36: gehalte in mg/kg d.s.
A37: ZF | B37: zekerheidsfactor | S37: =IF((D15=6),"Opmerking: bij methode 2*6 geen notitie >2*bsb-1","") -> 
A38: E-gtw | B38: Emissie grenstoetswaarde conform tabel 1 van bijlage A Rbk | S38: =IF((D15=6),"dit geldt in voorkomende gevallen alleen","") -> 
A39: i-waarde | B39: interventiewaarde bodem
A40: toets | B40: resultaat van de toetsing aan de emissiegrenstoetswaarden en interventiewaarden
A42: Kwaliteit: | B42: =IF(F6=1,"vrijstelling voor emissie-onderzoek conform Rbk, art. 4.12.2-b",IF(OR(T9="niet mogelijk",T9="niet toepasbare grond",T10="industrie<x<i-waarde",T10="niet toepasbare grond"),"de grond kan niet in een grootschalige toepassing worden gebruikt",IF(AND(P1=1,H34=K34,J34=0,F13=0),"voldoet aan grootschalige toepassing",IF(AND(P1=1,H34=O35,J34=0,F13=1),"de partij kan aan de bestaande grootschalige toepassing toegevoegd worden",IF(AND(P1=1,SUM(H34+I34)=(O35),I34>=1,J34=0),T44,IF(OR(P1=0,J34>=1),"voldoet niet aan grootschalige toepassing","fout")))))) -> de partij kan aan de bestaande grootschalige toepassing toegevoegd worden | L42: =IF(B42="uitloging conform Bsb 2005 bepalen",1,0) -> 0 | T42: =IF(OR(B42="uitloging c.q. emissiewaarden bepalen en toetsen aan maximale emissiewaarden",B42="conform BRL9335 systematiek is bij pH<=5 uitloging wel noodzakelijk"),1,0) -> 0
A43: =IF(L42=1,"Voldoet de imissie aan de eisen? (ja=1;nee=0)","") ->  | B43: =IF(T10="industrie<x<i-waarde","de grond voldoet niet aan art. 60-1-a/60-4-c BBk","") ->  | K43: =IF(OR(B42="voldoet aan grootschalige toepassing",B42="de partij kan aan de bestaande grootschalige toepassing toegevoegd worden"),1,0) -> 1 | T43: uitloging c.q. emissiewaarden bepalen en toetsen aan maximale emissiewaarden
A44: =IF(OR(K43=1,F43=1),"De toepassing dient te voldoen aan de volgende eisen:",IF(T10="industrie<x<i-waarde","(de kwaliteit van de grond overschrijdt de maximale waarden voor de bodemfunctieklasse industrie","")) -> De toepassing dient te voldoen aan de volgende eisen: | T44: =IF(AND(Bodemkwaliteit!H7=1,Bodemkwaliteit!L17>5),"conform BRL9335 systematiek is bij pH>5 uitloging niet noodzakelijk",IF(AND(Bodemkwaliteit!H7=1,Bodemkwaliteit!L17<=5),"conform BRL9335 systematiek is bij pH<=5 uitloging wel noodzakelijk",T43)) -> uitloging c.q. emissiewaarden bepalen en toetsen aan maximale emissiewaarden
A45: =IF(A44="","","- er wordt een leeflaag toegepast met een dikte van 0,5 m of dikker;") -> - er wordt een leeflaag toegepast met een dikte van 0,5 m of dikker;
A46: =IF(A44="","","- de leeflaag voldoet aan de strengste eis van zonefunctie en zonekwaliteit (toepassingseis);") -> - de leeflaag voldoet aan de strengste eis van zonefunctie en zonekwaliteit (toepassingseis);
A47: =IF(A44="","","- de bodemtoepassing is geregistreerd bij het kadaster of in een bodeminformatiesysteem;") -> - de bodemtoepassing is geregistreerd bij het kadaster of in een bodeminformatiesysteem;
A48: =IF(A44="","","- de bodemtoepassing heeft een aanwijsbare beheerder.") -> - de bodemtoepassing heeft een aanwijsbare beheerder.
A49: =IF(A44="","","NB: voor een bodemtoepassing die aan de eisen van Bbk en Rbk voldoet bestaat binnen het Bbk geen verwijderingsplicht.") -> NB: voor een bodemtoepassing die aan de eisen van Bbk en Rbk voldoet bestaat binnen het Bbk geen verwijderingsplicht.
A50: =IF(OR(G25="emissie bepalen (kolomproef L/S=10)",G25="voldoet niet"),"Met bevoegd gezag overleggen of uitloging Barium bepaald moet worden.","") -> 
A51: Kwaliteitscontrole van de hierboven gesteld conclusie:
A53: Naam toetser: | D53: Paraaf: | G53: Datum:
A55: Naam 2e lezer: | D55: Paraaf: | G55: Datum:

Sheet In opp.water
B1: Regeling Bodemkwaliteit, Bijlage 2, tabel 2: Normwaarden voor toepassen van grond en baggerspecie in oppervlaktewater en
B2: voor de bodem onder oppervlaktewater waarop grond of baggerspecie wordt toegepast.
B3: Projectcode: | J3: =Bodemkwaliteit!H3 -> < code > | AE3: =Bodemkwaliteit!L3 -> Partij < partijnaam >
B4: Datum toetsing: | J4: =Bodemkwaliteit!H4 -> <datum> | AE4: =IF(Bodemkwaliteit!L4="","",Bodemkwaliteit!L4) -> < meldnummer >
B5: Zekerheidsfactor: | G5: =Bodemkwaliteit!Q6 -> 1 | K5: =ZF
B6: grepen: | C6: 2 maal | K6: =Bodemkwaliteit!J15 -> 50 | BE6: bg of ag | BF6: bg | BG6: ag | BH6: Labo-d | BI6: AS3000
B7: Macroparameters | BI7: AG r,eis
B8: zuurgraad | K8: =Bodemkwaliteit!Y17 -> 7 | BF8: =Bodemkwaliteit!BE18 -> 0 | BG8: =Bodemkwaliteit!BF18 -> n.v.t. | BH8: =Bodemkwaliteit!BG18 -> 0 | BI8: =Bodemkwaliteit!BH18 -> n.v.t. | BR8: =B8 -> zuurgraad
B9: droge stof gehalte (massa-%) | K9: =Bodemkwaliteit!Y18 -> 100 | BF9: =Bodemkwaliteit!BE19 -> 0.003 | BG9: =Bodemkwaliteit!BF19 -> 0.001 | BH9: =Bodemkwaliteit!BG19 -> 0 | BI9: =Bodemkwaliteit!BH19 -> n.v.t. | BR9: =B9 -> droge stof gehalte (massa-%)
B10: lutum gehalte in % d.s. | K10: =Bodemkwaliteit!Y19 -> 25 | M10: =BD10 -> 25 | N10: =IF(K10<2,2,K10) -> 25 | BD10: =N10 -> 25 | BF10: =Bodemkwaliteit!BE20 -> 0.015 | BG10: =Bodemkwaliteit!BF20 -> 0.005 | BH10: =Bodemkwaliteit!BG20 -> 0 | BI10: =Bodemkwaliteit!BH20 -> 0.01 | BR10: =B10 -> lutum gehalte in % d.s.
B11: organisch stofgehalte in % d.s. | G11: =Bodemkwaliteit!Y20 -> 10 | K11: =Bodemkwaliteit!Z20 -> 10 | M11: =BD11 -> 10 | N11: =+IF(K11>30,30,IF(K11<2,2,K11)) -> 10 | AB11: Eis sg | BD11: =N11 -> 10 | BF11: =Bodemkwaliteit!BE22 -> 0.006 | BG11: =Bodemkwaliteit!BF22 -> 0.002 | BH11: =Bodemkwaliteit!BG22 -> 0 | BI11: =Bodemkwaliteit!BH22 -> 0.002 | BK11: bg | BL11: ag | BM11: d | BR11: =B11 -> organisch stofgehalte in % d.s.
E12: [C- gem.] | G12: [C- stand- aard] | K12: AGW | R12: verspreiden aangrenzend perceel | Y12: bkk wonen | AB12: kwaliteits klasse A =HVN Rijn | AE12: kwaliteits klasse B =i-waarde bodem onder opp.water | AH12: bf- klasse industrie | AK12: min kkB en Bf-k ind. | AN12: i-waarde droge bodem | AQ12: verspreiden in zout water (=CTT) | AX12: prio-ri-tair?
F13: C*ZF | I13: N gemeten en agw | J13: AGW/ BG/ d | K13: > agw? | N13: A >agw | O13: A voldoet art. 4.2.2.-4 en -5 x>agw en x<2*agw en <bkk w en <kk A | P13: A voldoet | Q13: A voldoet niet | R13: mogelijk? | T13: Cd<7,5? | U13: m.o.<3000? | V13: A ja | W13: A nee | X13: A ber | Y13: >bkk w? | AA13: A > bkk w | AB13: > kkA? | AD13: A >kkA | AE13: > kkB? | AG13: A >kkB | AH13: > Bf-k ind.? | AJ13: A >Bf-ki | AK13: > dit min.? | AM13: A > min kkB/Bf-k ind. | AN13: > i-waarde? | AP13: A >i | AR13: > CCT? | AS13: > 1,5* CCT? | AT13: A > CCT | AU13: > CCT +50%? | AZ13: N | BN13: a | BO13: b | BP13: c
B15: Parameter, opgaven in mg/kg d.s. | L15: N agw | R15: x | S15: ber.msPAF
B16: 1. Metalen | D16: C | E16: D | G16: E | H16: F | AZ16: AANTAL | BR16: =B16 -> 1. Metalen
B17: =Bodemkwaliteit!F25 -> barium | C17: L= | D17: =(IF(Bodemkwaliteit!AC14=1,(IF(M10<10,10,$M$10)),M10)) -> 25 | E17: =IF(AND(Bodemkwaliteit!H25="<",Bodemkwaliteit!J25="<"),"<d",Bodemkwaliteit!Q25) -> 190 | F17: =IF(E17="<d","<d",E17*$G$5) -> 190 | G17: =IF(E17="<d",J17,F17*(BN17+BO17*25+BP17*10)/(BN17+$M$10*BO17+BP17*$G$11)) -> 190 | I17: =IF(AND(G17>0,L17=1),1,0) -> 1 | J17: =IF(BE17<K17,BE17,K17) -> 20 | K17: =IF(Bodemkwaliteit!BJ25="","-",Bodemkwaliteit!BJ25) -> 920 | L17: =IF(K17="-",0,1) -> 1 | M17: =IF(G17>K17,"> agw","") ->  | N17: =IF(K17="-","",IF(M17="> agw",1,0)) -> 0 | O17: =IF(K17="-","",IF(AND(G17>K17,G17<2*K17,G17<Y17,G17<AE17),1,0)) -> 0 | P17: =IF(K17="-","",IF(AND(N17=1,O17=1),1,0)) -> 0 | Q17: =IF(K17="-","",IF(AND(N17=1,O17=0),1,0)) -> 0 | R17: x | S17: =IF(M17="","",IF(AND(M17="> agw",R17="x"),"ber. msPAF",IF(R17="-","",IF(G17>R17,"nee","ja")))) ->  | V17: =IF(S17="","",IF(S17="ja",1,0)) ->  | W17: =IF(S17="","",IF(S17="nee",1,0)) ->  | X17: =IF(S17="","",IF(OR(S17="ber. msPAF",S17="ja, ber. msPAF"),1,0)) ->  | Y17: =IF(Bodemkwaliteit!BK25="","-",Bodemkwaliteit!BK25) -> 920 | Z17: =IF(G17>Y17,"> bkk w","") ->  | AA17: =IF(Z17="> bkk w",1,0) -> 0 | AB17: 625 | AC17: =IF(G17>AB17,"> kkA","") ->  | AD17: =IF(AC17="> kkA",1,0) -> 0 | AE17: 625 | AF17: =IF(G17>AE17,"> kkB","") ->  | AG17: =IF(AF17="> kkB",1,0) -> 0 | AH17: =IF(Bodemkwaliteit!BL25="","-",Bodemkwaliteit!BL25) -> 920 | AI17: =IF(G17>AH17,"> bfk industrie","") ->  | AJ17: =IF(AI17="> bfk industrie",1,0) -> 0 | AK17: =IF(AND(AE17="-",AH17="-"),"-",MIN(AE17,AH17)) -> 625 | AL17: =IF(G17>AK17,"> min","") ->  | AM17: =IF(AL17="> min",1,0) -> 0 | AN17: =IF(Bodemkwaliteit!BO25="","-",Bodemkwaliteit!BO25) -> 920 | AO17: =IF(AN17="","",IF(G17>AN17,"> i-waarde","")) ->  | AP17: =IF(AO17="> i-waarde",1,0) -> 0 | AQ17: - | AR17: =IF(OR(E17="<d",AQ17="-"),"",IF(E17>AQ17,"> CCT","")) ->  | AS17: =IF(AQ17="-","",IF(G17>1.5*AQ17,"> 1,5*CCT","")) ->  | AT17: =IF(AR17="> CCT",1,0) -> 0 | AU17: =IF(AX17="","",IF(AX17="ja","",IF(AS17="> 1,5*CCT",1,0))) -> 0 | AV17: =IF(AND(AT17=1,AU17=0),1,0) -> 0 | AX17: nee | AZ17: 1 | BD17: =L17 -> 1 | BE17: =IF(AND(Bodemkwaliteit!AF25=1,Bodemkwaliteit!AG25=1),MAX(BH17,IF($G$5=1,BF17,BG17)),IF($G$5=1,BF17,BG17)) -> 20 | BF17: =Bodemkwaliteit!BE25 -> 20 | BG17: =Bodemkwaliteit!BF25 -> 13 | BH17: =Bodemkwaliteit!BG25 -> 15 | BI17: =Bodemkwaliteit!BH25 -> 15 | BK17: =IF(ISNONTEXT(BF17)=TRUE,1,0) -> 1 | BL17: 1 | BM17: =IF(ISNONTEXT(BJ17)=TRUE,1,0) -> 1 | BN17: =Bodemkwaliteit!BS25 -> 30 | BO17: =Bodemkwaliteit!BT25 -> 5 | BP17: =Bodemkwaliteit!BU25 -> 0 | BR17: =B17 -> barium
B18: =Bodemkwaliteit!F26 -> cadmium | E18: =IF(AND(Bodemkwaliteit!H26="<",Bodemkwaliteit!J26="<"),"<d",Bodemkwaliteit!Q26) -> 0.6 | F18: 0.6 | G18: 0.6 | I18: =IF(AND(G18>0,L18=1),1,0) -> 1 | J18: 0.2 | K18: =IF(Bodemkwaliteit!BJ26="","-",Bodemkwaliteit!BJ26) -> 0.6 | L18: =IF(K18="-",0,1) -> 1 | M18: =IF(G18>K18,"> agw","") ->  | N18: =IF(K18="-","",IF(M18="> agw",1,0)) -> 0 | O18: =IF(K18="-","",IF(AND(G18>K18,G18<2*K18,G18<Y18,G18<AE18),1,0)) -> 0 | P18: =IF(K18="-","",IF(AND(N18=1,O18=1),1,0)) -> 0 | Q18: =IF(K18="-","",IF(AND(N18=1,O18=0),1,0)) -> 0 | R18: 7.5 | S18: =IF(M18="","",IF(AND(M18="> agw",R18="x"),"ber. msPAF",IF(R18="-","",IF(G18>R18,"nee","ja")))) ->  | T18: =IF(G18<R18,1,0) -> 1 | V18: =IF(S18="","",IF(S18="ja",1,0)) ->  | W18: =IF(S18="","",IF(S18="nee",1,0)) ->  | X18: =IF(S18="","",IF(OR(S18="ber. msPAF",S18="ja, ber. msPAF"),1,0)) ->  | Y18: =IF(Bodemkwaliteit!BK26="","-",Bodemkwaliteit!BK26) -> 1.2 | Z18: =IF(G18>Y18,"> bkk w","") ->  | AA18: =IF(Z18="> bkk w",1,0) -> 0 | AB18: 4 | AC18: =IF(G18>AB18,"> kkA","") ->  | AD18: =IF(AC18="> kkA",1,0) -> 0 | AE18: 14 | AF18: =IF(G18>AE18,"> kkB","") ->  | AG18: =IF(AF18="> kkB",1,0) -> 0 | AH18: =IF(Bodemkwaliteit!BL26="","-",Bodemkwaliteit!BL26) -> 4.3 | AI18: =IF(G18>AH18,"> bfk industrie","") ->  | AJ18: =IF(AI18="> bfk industrie",1,0) -> 0 | AK18: 4.3 | AL18: =IF(G18>AK18,"> min","") ->  | AM18: =IF(AL18="> min",1,0) -> 0 | AN18: =IF(Bodemkwaliteit!BO26="","-",Bodemkwaliteit!BO26) -> 13 | AP18: =IF(AO18="> i-waarde",1,0) -> 0 | AQ18: 4 | AR18: =IF(OR(E18="<d",AQ18="-"),"",IF(E18>AQ18,"> CCT","")) ->  | AS18: =IF(AQ18="-","",IF(G18>1.5*AQ18,"> 1,5*CCT","")) ->  | AT18: =IF(AR18="> CCT",1,0) -> 0 | AU18: =IF(AX18="","",IF(AX18="ja","",IF(AS18="> 1,5*CCT",1,0))) ->  | AV18: =IF(AND(AT18=1,AU18=0),1,0) -> 0 | AX18: ja | AZ18: 1 | BD18: =L18 -> 1 | BE18: =IF(AND(Bodemkwaliteit!AF26=1,Bodemkwaliteit!AG26=1),MAX(BH18,IF($G$5=1,BF18,BG18)),IF($G$5=1,BF18,BG18)) -> 0.2 | BF18: =Bodemkwaliteit!BE26 -> 0.2 | BG18: =Bodemkwaliteit!BF26 -> 0.1 | BH18: =Bodemkwaliteit!BG26 -> 0.17 | BI18: =Bodemkwaliteit!BH26 -> 0.17 | BK18: 1 | BL18: 1 | BM18: =IF(ISNONTEXT(BJ18)=TRUE,1,0) -> 1 | BN18: =Bodemkwaliteit!BS26 -> 0.4 | BO18: =Bodemkwaliteit!BT26 -> 0.007 | BP18: =Bodemkwaliteit!BU26 -> 0.021 | BR18: =B18 -> cadmium
B19: =Bodemkwaliteit!F27 -> kobalt | E19: =IF(AND(Bodemkwaliteit!H27="<",Bodemkwaliteit!J27="<"),"<d",Bodemkwaliteit!Q27) -> 15 | F19: 15 | G19: 15 | I19: =IF(AND(G19>0,L19=1),1,0) -> 1 | J19: 3 | K19: =IF(Bodemkwaliteit!BJ27="","-",Bodemkwaliteit!BJ27) -> 15 | L19: =IF(K19="-",0,1) -> 1 | M19: =IF(G19>K19,"> agw","") ->  | N19: =IF(K19="-","",IF(M19="> agw",1,0)) -> 0 | O19: =IF(K19="-","",IF(AND(G19>K19,G19<2*K19,G19<Y19,G19<AE19),1,0)) -> 0 | P19: =IF(K19="-","",IF(AND(N19=1,O19=1),1,0)) -> 0 | Q19: =IF(K19="-","",IF(AND(N19=1,O19=0),1,0)) -> 0 | R19: x | S19: =IF(M19="","",IF(AND(M19="> agw",R19="x"),"ber. msPAF",IF(R19="-","",IF(G19>R19,"nee","ja")))) ->  | V19: =IF(S19="","",IF(S19="ja",1,0)) ->  | W19: =IF(S19="","",IF(S19="nee",1,0)) ->  | X19: =IF(S19="","",IF(OR(S19="ber. msPAF",S19="ja, ber. msPAF"),1,0)) ->  | Y19: =IF(Bodemkwaliteit!BK27="","-",Bodemkwaliteit!BK27) -> 35 | Z19: =IF(G19>Y19,"> bkk w","") ->  | AA19: =IF(Z19="> bkk w",1,0) -> 0 | AB19: 25 | AC19: =IF(G19>AB19,"> kkA","") ->  | AD19: =IF(AC19="> kkA",1,0) -> 0 | AE19: 240 | AF19: =IF(G19>AE19,"> kkB","") ->  | AG19: =IF(AF19="> kkB",1,0) -> 0 | AH19: =IF(Bodemkwaliteit!BL27="","-",Bodemkwaliteit!BL27) -> 190 | AI19: =IF(G19>AH19,"> bfk industrie","") ->  | AJ19: =IF(AI19="> bfk industrie",1,0) -> 0 | AK19: 190 | AL19: =IF(G19>AK19,"> min","") ->  | AM19: =IF(AL19="> min",1,0) -> 0 | AN19: =IF(Bodemkwaliteit!BO27="","-",Bodemkwaliteit!BO27) -> 190 | AP19: =IF(AO19="> i-waarde",1,0) -> 0 | AQ19: - | AR19: =IF(OR(E19="<d",AQ19="-"),"",IF(E19>AQ19,"> CCT","")) ->  | AS19: =IF(AQ19="-","",IF(G19>1.5*AQ19,"> 1,5*CCT","")) ->  | AT19: =IF(AR19="> CCT",1,0) -> 0 | AU19: =IF(AX19="","",IF(AX19="ja","",IF(AS19="> 1,5*CCT",1,0))) ->  | AV19: =IF(AND(AT19=1,AU19=0),1,0) -> 0 | AX19: ja | AZ19: 1 | BD19: =L19 -> 1 | BE19: =IF(AND(Bodemkwaliteit!AF27=1,Bodemkwaliteit!AG27=1),MAX(BH19,IF($G$5=1,BF19,BG19)),IF($G$5=1,BF19,BG19)) -> 3 | BF19: =Bodemkwaliteit!BE27 -> 3 | BG19: =Bodemkwaliteit!BF27 -> 0.7 | BH19: =Bodemkwaliteit!BG27 -> 1 | BI19: =Bodemkwaliteit!BH27 -> 1 | BK19: =IF(ISNONTEXT(BF19)=TRUE,1,0) -> 1 | BL19: =IF(ISNONTEXT(BG19)=TRUE,1,0) -> 1 | BM19: =IF(ISNONTEXT(BJ19)=TRUE,1,0) -> 1 | BN19: =Bodemkwaliteit!BS27 -> 2 | BO19: =Bodemkwaliteit!BT27 -> 0.28 | BP19: =Bodemkwaliteit!BU27 -> 0 | BR19: =B19 -> kobalt
B20: =Bodemkwaliteit!F28 -> koper | E20: =IF(AND(Bodemkwaliteit!H28="<",Bodemkwaliteit!J28="<"),"<d",Bodemkwaliteit!Q28) -> 40 | F20: 40 | G20: 40 | I20: 1 | J20: 5 | K20: =IF(Bodemkwaliteit!BJ28="","-",Bodemkwaliteit!BJ28) -> 40 | L20: 1 | N20: 0 | O20: 0 | P20: 0 | Q20: 0 | R20: x | Y20: =IF(Bodemkwaliteit!BK28="","-",Bodemkwaliteit!BK28) -> 54 | AA20: 0 | AB20: 96 | AD20: 0 | AE20: 190 | AG20: 0 | AH20: =IF(Bodemkwaliteit!BL28="","-",Bodemkwaliteit!BL28) -> 190 | AJ20: 0 | AK20: 190 | AM20: 0 | AN20: =IF(Bodemkwaliteit!BO28="","-",Bodemkwaliteit!BO28) -> 190 | AP20: 0 | AQ20: 60 | AT20: 0 | AV20: 0 | AX20: ja | AZ20: 1 | BD20: 1 | BE20: =IF(AND(Bodemkwaliteit!AF28=1,Bodemkwaliteit!AG28=1),MAX(BH20,IF($G$5=1,BF20,BG20)),IF($G$5=1,BF20,BG20)) -> 5 | BF20: =Bodemkwaliteit!BE28 -> 5 | BG20: =Bodemkwaliteit!BF28 -> 1.7 | BH20: =Bodemkwaliteit!BG28 -> 5 | BI20: =Bodemkwaliteit!BH28 -> 5 | BK20: 1 | BL20: 1 | BM20: 1 | BN20: =Bodemkwaliteit!BS28 -> 15 | BO20: =Bodemkwaliteit!BT28 -> 0.6 | BP20: =Bodemkwaliteit!BU28 -> 0.6 | BR20: koper
B21: =Bodemkwaliteit!F29 -> kwik | E21: =IF(AND(Bodemkwaliteit!H29="<",Bodemkwaliteit!J29="<"),"<d",Bodemkwaliteit!Q29) -> 0.15 | F21: 0.15 | G21: 0.15 | I21: 1 | J21: 0.05 | K21: =IF(Bodemkwaliteit!BJ29="","-",Bodemkwaliteit!BJ29) -> 0.15 | L21: 1 | N21: 0 | O21: 0 | P21: 0 | Q21: 0 | R21: x | Y21: =IF(Bodemkwaliteit!BK29="","-",Bodemkwaliteit!BK29) -> 0.83 | AA21: 0 | AB21: 1.2 | AD21: 0 | AE21: 10 | AG21: 0 | AH21: =IF(Bodemkwaliteit!BL29="","-",Bodemkwaliteit!BL29) -> 4.8 | AJ21: 0 | AK21: 4.8 | AM21: 0 | AN21: =IF(Bodemkwaliteit!BO29="","-",Bodemkwaliteit!BO29) -> 36 | AP21: 0 | AQ21: 1.2 | AT21: 0 | AV21: 0 | AX21: ja | AZ21: 1 | BD21: 1 | BE21: =IF(AND(Bodemkwaliteit!AF29=1,Bodemkwaliteit!AG29=1),MAX(BH21,IF($G$5=1,BF21,BG21)),IF($G$5=1,BF21,BG21)) -> 0.05 | BF21: =Bodemkwaliteit!BE29 -> 0.05 | BG21: =Bodemkwaliteit!BF29 -> 0.01 | BH21: =Bodemkwaliteit!BG29 -> 0.05 | BI21: =Bodemkwaliteit!BH29 -> 0.05 | BK21: 1 | BL21: 1 | BM21: 1 | BN21: =Bodemkwaliteit!BS29 -> 0.2 | BO21: =Bodemkwaliteit!BT29 -> 0.0034 | BP21: =Bodemkwaliteit!BU29 -> 0.0017 | BR21: kwik
B22: =Bodemkwaliteit!F30 -> lood | E22: =IF(AND(Bodemkwaliteit!H30="<",Bodemkwaliteit!J30="<"),"<d",Bodemkwaliteit!Q30) -> 50 | F22: 50 | G22: 50 | I22: 1 | J22: 10 | K22: =IF(Bodemkwaliteit!BJ30="","-",Bodemkwaliteit!BJ30) -> 50 | L22: 1 | N22: 0 | O22: 0 | P22: 0 | Q22: 0 | R22: x | Y22: =IF(Bodemkwaliteit!BK30="","-",Bodemkwaliteit!BK30) -> 210 | AA22: 0 | AB22: 138 | AD22: 0 | AE22: 580 | AG22: 0 | AH22: =IF(Bodemkwaliteit!BL30="","-",Bodemkwaliteit!BL30) -> 530 | AJ22: 0 | AK22: 530 | AM22: 0 | AN22: =IF(Bodemkwaliteit!BO30="","-",Bodemkwaliteit!BO30) -> 530 | AP22: 0 | AQ22: 110 | AT22: 0 | AV22: 0 | AX22: ja | AZ22: 1 | BD22: 1 | BE22: =IF(AND(Bodemkwaliteit!AF30=1,Bodemkwaliteit!AG30=1),MAX(BH22,IF($G$5=1,BF22,BG22)),IF($G$5=1,BF22,BG22)) -> 10 | BF22: =Bodemkwaliteit!BE30 -> 10 | BG22: =Bodemkwaliteit!BF30 -> 1 | BH22: =Bodemkwaliteit!BG30 -> 3 | BI22: =Bodemkwaliteit!BH30 -> 3 | BK22: 1 | BL22: 1 | BM22: 1 | BN22: =Bodemkwaliteit!BS30 -> 50 | BO22: =Bodemkwaliteit!BT30 -> 1 | BP22: =Bodemkwaliteit!BU30 -> 1 | BR22: lood
B23: =Bodemkwaliteit!F31 -> molybdeen | E23: =IF(AND(Bodemkwaliteit!H31="<",Bodemkwaliteit!J31="<"),"<d",Bodemkwaliteit!Q31) -> 0.5 | F23: 0.5 | G23: 0.5 | I23: =IF(AND(G23>0,L23=1),1,0) -> 1 | J23: 1.5 | K23: =IF(Bodemkwaliteit!BJ31="","-",Bodemkwaliteit!BJ31) -> 1.5 | L23: =IF(K23="-",0,1) -> 1 | M23: =IF(G23>K23,"> agw","") ->  | N23: =IF(K23="-","",IF(M23="> agw",1,0)) -> 0 | O23: =IF(K23="-","",IF(AND(G23>K23,G23<2*K23,G23<Y23,G23<AE23),1,0)) -> 0 | P23: =IF(K23="-","",IF(AND(N23=1,O23=1),1,0)) -> 0 | Q23: =IF(K23="-","",IF(AND(N23=1,O23=0),1,0)) -> 0 | R23: x | S23: =IF(M23="","",IF(AND(M23="> agw",R23="x"),"ber. msPAF",IF(R23="-","",IF(G23>R23,"nee","ja")))) ->  | V23: =IF(S23="","",IF(S23="ja",1,0)) ->  | W23: =IF(S23="","",IF(S23="nee",1,0)) ->  | X23: =IF(S23="","",IF(OR(S23="ber. msPAF",S23="ja, ber. msPAF"),1,0)) ->  | Y23: =IF(Bodemkwaliteit!BK31="","-",Bodemkwaliteit!BK31) -> 88 | Z23: =IF(G23>Y23,"> bkk w","") ->  | AA23: =IF(Z23="> bkk w",1,0) -> 0 | AB23: 5 | AC23: =IF(G23>AB23,"> kkA","") ->  | AD23: =IF(AC23="> kkA",1,0) -> 0 | AE23: 200 | AF23: =IF(G23>AE23,"> kkB","") ->  | AG23: =IF(AF23="> kkB",1,0) -> 0 | AH23: =IF(Bodemkwaliteit!BL31="","-",Bodemkwaliteit!BL31) -> 190 | AI23: =IF(G23>AH23,"> bfk industrie","") ->  | AJ23: =IF(AI23="> bfk industrie",1,0) -> 0 | AK23: 190 | AL23: =IF(G23>AK23,"> min","") ->  | AM23: =IF(AL23="> min",1,0) -> 0 | AN23: =IF(Bodemkwaliteit!BO31="","-",Bodemkwaliteit!BO31) -> 190 | AP23: =IF(AO23="> i-waarde",1,0) -> 0 | AQ23: - | AR23: =IF(OR(E23="<d",AQ23="-"),"",IF(E23>AQ23,"> CCT","")) ->  | AS23: =IF(AQ23="-","",IF(G23>1.5*AQ23,"> 1,5*CCT","")) ->  | AT23: =IF(AR23="> CCT",1,0) -> 0 | AU23: =IF(AX23="","",IF(AX23="ja","",IF(AS23="> 1,5*CCT",1,0))) -> 0 | AV23: =IF(AND(AT23=1,AU23=0),1,0) -> 0 | AX23: nee | AZ23: 1 | BD23: =L23 -> 1 | BE23: =IF(AND(Bodemkwaliteit!AF31=1,Bodemkwaliteit!AG31=1),MAX(BH23,IF($G$5=1,BF23,BG23)),IF($G$5=1,BF23,BG23)) -> 1.5 | BF23: =Bodemkwaliteit!BE31 -> 1.5 | BG23: =Bodemkwaliteit!BF31 -> 0.5 | BH23: =Bodemkwaliteit!BG31 -> 0.5 | BI23: =Bodemkwaliteit!BH31 -> 0.5 | BK23: =IF(ISNONTEXT(BF23)=TRUE,1,0) -> 1 | BL23: =IF(ISNONTEXT(BG23)=TRUE,1,0) -> 1 | BM23: =IF(ISNONTEXT(BJ23)=TRUE,1,0) -> 1 | BN23: =Bodemkwaliteit!BS31 -> 1 | BO23: =Bodemkwaliteit!BT31 -> 0 | BP23: =Bodemkwaliteit!BU31 -> 0 | BR23: =B23 -> molybdeen
B24: =Bodemkwaliteit!F32 -> nikkel | E24: =IF(AND(Bodemkwaliteit!H32="<",Bodemkwaliteit!J32="<"),"<d",Bodemkwaliteit!Q32) -> 35 | F24: 35 | G24: 35 | I24: 1 | J24: 4 | K24: =IF(Bodemkwaliteit!BJ32="","-",Bodemkwaliteit!BJ32) -> 35 | L24: 1 | N24: 0 | O24: 0 | P24: 0 | Q24: 0 | R24: x | Y24: =IF(Bodemkwaliteit!BK32="","-",Bodemkwaliteit!BK32) -> 70 | AA24: 0 | AB24: 138 | AD24: 0 | AE24: 210 | AG24: 0 | AH24: =IF(Bodemkwaliteit!BL32="","-",Bodemkwaliteit!BL32) -> 100 | AJ24: 0 | AK24: 100 | AM24: 0 | AN24: =IF(Bodemkwaliteit!BO32="","-",Bodemkwaliteit!BO32) -> 100 | AP24: 0 | AQ24: 45 | AT24: 0 | AV24: 0 | AX24: ja | AZ24: 1 | BD24: 1 | BE24: =IF(AND(Bodemkwaliteit!AF32=1,Bodemkwaliteit!AG32=1),MAX(BH24,IF($G$5=1,BF24,BG24)),IF($G$5=1,BF24,BG24)) -> 4 | BF24: =Bodemkwaliteit!BE32 -> 4 | BG24: =Bodemkwaliteit!BF32 -> 4.3 | BH24: =Bodemkwaliteit!BG32 -> 13 | BI24: =Bodemkwaliteit!BH32 -> 13 | BK24: 1 | BL24: 1 | BM24: 1 | BN24: =Bodemkwaliteit!BS32 -> 10 | BO24: =Bodemkwaliteit!BT32 -> 1 | BP24: =Bodemkwaliteit!BU32 -> 0 | BR24: nikkel
B25: =Bodemkwaliteit!F33 -> zink | E25: =IF(AND(Bodemkwaliteit!H33="<",Bodemkwaliteit!J33="<"),"<d",Bodemkwaliteit!Q33) -> 100 | F25: 100 | G25: 100 | I25: 1 | J25: 20 | K25: =IF(Bodemkwaliteit!BJ33="","-",Bodemkwaliteit!BJ33) -> 140 | L25: 1 | N25: 0 | O25: 0 | P25: 0 | Q25: 0 | R25: x | Y25: =IF(Bodemkwaliteit!BK33="","-",Bodemkwaliteit!BK33) -> 200 | AA25: 0 | AB25: 563 | AD25: 0 | AE25: 2000 | AG25: 0 | AH25: =IF(Bodemkwaliteit!BL33="","-",Bodemkwaliteit!BL33) -> 720 | AJ25: 0 | AK25: 720 | AM25: 0 | AN25: =IF(Bodemkwaliteit!BO33="","-",Bodemkwaliteit!BO33) -> 720 | AP25: 0 | AQ25: 365 | AT25: 0 | AU25: 0 | AV25: 0 | AX25: nee | AZ25: 1 | BD25: 1 | BE25: =IF(AND(Bodemkwaliteit!AF33=1,Bodemkwaliteit!AG33=1),MAX(BH25,IF($G$5=1,BF25,BG25)),IF($G$5=1,BF25,BG25)) -> 20 | BF25: =Bodemkwaliteit!BE33 -> 20 | BG25: =Bodemkwaliteit!BF33 -> 7 | BH25: =Bodemkwaliteit!BG33 -> 17 | BI25: =Bodemkwaliteit!BH33 -> 17 | BK25: 1 | BL25: 1 | BM25: 1 | BN25: =Bodemkwaliteit!BS33 -> 50 | BO25: =Bodemkwaliteit!BT33 -> 3 | BP25: =Bodemkwaliteit!BU33 -> 1.5 | BR25: zink
B26: 4. Polycyclische aromatische koolwaterstoffen (PAK's) | BR26: =B26 -> 4. Polycyclische aromatische koolwaterstoffen (PAK's)
B27: =Bodemkwaliteit!F35 -> naftaleen | E27: =IF(AND(Bodemkwaliteit!H35="<",Bodemkwaliteit!J35="<"),"<d",Bodemkwaliteit!Q35) -> <d | F27: =IF(E27="<d","<d",E27*$G$5) -> <d | G27: =IF(E27="<d",J27,F27*(BN27+BO27*25+BP27*10)/(BN27+$M$10*BO27+BP27*(IF($M$11<10,10,$M$11)))) -> 0.05 | I27: 0 | J27: =IF(BE27<K27,BE27,K27) -> 0.05 | K27: =IF(Bodemkwaliteit!BJ35="","-",Bodemkwaliteit!BJ35) -> - | L27: 0 | R27: x | Y27: =IF(Bodemkwaliteit!BK35="","-",Bodemkwaliteit!BK35) -> - | AA27: 0 | AB27: =K27 -> - | AC27: =IF(G27>AB27,"> kkA","") ->  | AD27: 0 | AE27: - | AF27: =IF(G27>AE27,"> kkB","") ->  | AG27: 0 | AH27: =IF(Bodemkwaliteit!BL35="","-",Bodemkwaliteit!BL35) -> - | AI27: =IF(G27>AH27,"> bfk industrie","") ->  | AJ27: 0 | AK27: =IF(AND(AE27="-",AH27="-"),"-",MIN(AE27,AH27)) -> - | AM27: 0 | AN27: =IF(Bodemkwaliteit!BO35="","-",Bodemkwaliteit!BO35) -> - | AO27: =IF(AN27="","",IF(G27>AN27,"> i-waarde","")) ->  | AP27: 0 | AQ27: - | AR27: =IF(OR(E27="<d",AQ27="-"),"",IF(E27>AQ27,"> CCT","")) ->  | AT27: 0 | AU27: =IF(AX27="","",IF(AX27="ja","",IF(AS27="> 1,5*CCT",1,0))) ->  | AV27: =IF(AND(AT27=1,AU27=0),1,0) -> 0 | AX27: ja | BD27: 0 | BE27: =IF(AND(Bodemkwaliteit!AF35=1,Bodemkwaliteit!AG35=1),MAX(BH27,IF($G$5=1,BF27,BG27)),IF($G$5=1,BF27,BG27)) -> 0.05 | BF27: =Bodemkwaliteit!BE35 -> 0.05 | BG27: =Bodemkwaliteit!BF35 -> 0.002 | BH27: =Bodemkwaliteit!BG35 -> 0.005 | BI27: =Bodemkwaliteit!BH35 -> 0.01 | BK27: =IF(ISNONTEXT(BF27)=TRUE,1,0) -> 1 | BL27: 1 | BM27: 1 | BN27: =Bodemkwaliteit!BS35 -> 0 | BO27: =Bodemkwaliteit!BT35 -> 0 | BP27: =Bodemkwaliteit!BU35 -> 1 | BR27: naftaleen
B28: =Bodemkwaliteit!F36 -> fenantreen | E28: =IF(AND(Bodemkwaliteit!H36="<",Bodemkwaliteit!J36="<"),"<d",Bodemkwaliteit!Q36) -> <d | F28: <d | G28: 0.05 | I28: 0 | J28: 0.05 | K28: =IF(Bodemkwaliteit!BJ36="","-",Bodemkwaliteit!BJ36) -> - | L28: 0 | R28: x | Y28: =IF(Bodemkwaliteit!BK36="","-",Bodemkwaliteit!BK36) -> - | AA28: 0 | AB28: - | AD28: 0 | AE28: - | AG28: 0 | AH28: =IF(Bodemkwaliteit!BL36="","-",Bodemkwaliteit!BL36) -> - | AJ28: 0 | AK28: - | AM28: 0 | AN28: =IF(Bodemkwaliteit!BO36="","-",Bodemkwaliteit!BO36) -> - | AP28: 0 | AQ28: - | AT28: 0 | AV28: 0 | AX28: ja | BD28: 0 | BE28: =IF(AND(Bodemkwaliteit!AF36=1,Bodemkwaliteit!AG36=1),MAX(BH28,IF($G$5=1,BF28,BG28)),IF($G$5=1,BF28,BG28)) -> 0.05 | BF28: =Bodemkwaliteit!BE36 -> 0.05 | BG28: =Bodemkwaliteit!BF36 -> 0.003 | BH28: =Bodemkwaliteit!BG36 -> 0.01 | BI28: =Bodemkwaliteit!BH36 -> 0.01 | BK28: 1 | BL28: 1 | BM28: 1 | BN28: =Bodemkwaliteit!BS36 -> 0 | BO28: =Bodemkwaliteit!BT36 -> 0 | BP28: =Bodemkwaliteit!BU36 -> 1 | BR28: fenantreen
B29: =Bodemkwaliteit!F37 -> antraceen | E29: =IF(AND(Bodemkwaliteit!H37="<",Bodemkwaliteit!J37="<"),"<d",Bodemkwaliteit!Q37) -> <d | F29: <d | G29: 0.05 | I29: 0 | J29: 0.05 | K29: =IF(Bodemkwaliteit!BJ37="","-",Bodemkwaliteit!BJ37) -> - | L29: 0 | R29: x | Y29: =IF(Bodemkwaliteit!BK37="","-",Bodemkwaliteit!BK37) -> - | AA29: 0 | AB29: - | AD29: 0 | AE29: - | AG29: 0 | AH29: =IF(Bodemkwaliteit!BL37="","-",Bodemkwaliteit!BL37) -> - | AJ29: 0 | AK29: - | AM29: 0 | AN29: =IF(Bodemkwaliteit!BO37="","-",Bodemkwaliteit!BO37) -> - | AP29: 0 | AQ29: - | AT29: 0 | AV29: 0 | AX29: ja | BD29: 0 | BE29: =IF(AND(Bodemkwaliteit!AF37=1,Bodemkwaliteit!AG37=1),MAX(BH29,IF($G$5=1,BF29,BG29)),IF($G$5=1,BF29,BG29)) -> 0.05 | BF29: =Bodemkwaliteit!BE37 -> 0.05 | BG29: =Bodemkwaliteit!BF37 -> 0.003 | BH29: =Bodemkwaliteit!BG37 -> 0.01 | BI29: =Bodemkwaliteit!BH37 -> 0.01 | BK29: 1 | BL29: 1 | BM29: 1 | BN29: =Bodemkwaliteit!BS37 -> 0 | BO29: =Bodemkwaliteit!BT37 -> 0 | BP29: =Bodemkwaliteit!BU37 -> 1 | BR29: antraceen
B30: =Bodemkwaliteit!F38 -> fluoranteen | E30: =IF(AND(Bodemkwaliteit!H38="<",Bodemkwaliteit!J38="<"),"<d",Bodemkwaliteit!Q38) -> <d | F30: <d | G30: 0.05 | I30: 0 | J30: 0.05 | K30: =IF(Bodemkwaliteit!BJ38="","-",Bodemkwaliteit!BJ38) -> - | L30: 0 | R30: x | Y30: =IF(Bodemkwaliteit!BK38="","-",Bodemkwaliteit!BK38) -> - | AA30: 0 | AB30: - | AD30: 0 | AE30: - | AG30: 0 | AH30: =IF(Bodemkwaliteit!BL38="","-",Bodemkwaliteit!BL38) -> - | AJ30: 0 | AK30: - | AM30: 0 | AN30: =IF(Bodemkwaliteit!BO38="","-",Bodemkwaliteit!BO38) -> - | AP30: 0 | AQ30: - | AT30: 0 | AV30: 0 | AX30: ja | BD30: 0 | BE30: =IF(AND(Bodemkwaliteit!AF38=1,Bodemkwaliteit!AG38=1),MAX(BH30,IF($G$5=1,BF30,BG30)),IF($G$5=1,BF30,BG30)) -> 0.05 | BF30: =Bodemkwaliteit!BE38 -> 0.05 | BG30: =Bodemkwaliteit!BF38 -> 0.003 | BH30: =Bodemkwaliteit!BG38 -> 0.01 | BI30: =Bodemkwaliteit!BH38 -> 0.01 | BK30: 1 | BL30: 1 | BM30: 1 | BN30: =Bodemkwaliteit!BS38 -> 0 | BO30: =Bodemkwaliteit!BT38 -> 0 | BP30: =Bodemkwaliteit!BU38 -> 1 | BR30: fluoranteen
B31: =Bodemkwaliteit!F39 -> chryseen | E31: =IF(AND(Bodemkwaliteit!H39="<",Bodemkwaliteit!J39="<"),"<d",Bodemkwaliteit!Q39) -> <d | F31: <d | G31: 0.05 | I31: 0 | J31: 0.05 | K31: =IF(Bodemkwaliteit!BJ39="","-",Bodemkwaliteit!BJ39) -> - | L31: 0 | R31: x | Y31: =IF(Bodemkwaliteit!BK39="","-",Bodemkwaliteit!BK39) -> - | AA31: 0 | AB31: - | AD31: 0 | AE31: - | AG31: 0 | AH31: =IF(Bodemkwaliteit!BL39="","-",Bodemkwaliteit!BL39) -> - | AJ31: 0 | AK31: - | AM31: 0 | AN31: =IF(Bodemkwaliteit!BO39="","-",Bodemkwaliteit!BO39) -> - | AP31: 0 | AQ31: - | AT31: 0 | AV31: 0 | AX31: ja | BD31: 0 | BE31: =IF(AND(Bodemkwaliteit!AF39=1,Bodemkwaliteit!AG39=1),MAX(BH31,IF($G$5=1,BF31,BG31)),IF($G$5=1,BF31,BG31)) -> 0.05 | BF31: =Bodemkwaliteit!BE39 -> 0.05 | BG31: =Bodemkwaliteit!BF39 -> 0.003 | BH31: =Bodemkwaliteit!BG39 -> 0.01 | BI31: =Bodemkwaliteit!BH39 -> 0.01 | BK31: 1 | BL31: 1 | BM31: 1 | BN31: =Bodemkwaliteit!BS39 -> 0 | BO31: =Bodemkwaliteit!BT39 -> 0 | BP31: =Bodemkwaliteit!BU39 -> 1 | BR31: chryseen
B32: =Bodemkwaliteit!F40 -> benzo(a)antraceen | E32: =IF(AND(Bodemkwaliteit!H40="<",Bodemkwaliteit!J40="<"),"<d",Bodemkwaliteit!Q40) -> <d | F32: <d | G32: 0.05 | I32: 0 | J32: 0.05 | K32: =IF(Bodemkwaliteit!BJ40="","-",Bodemkwaliteit!BJ40) -> - | L32: 0 | R32: x | Y32: =IF(Bodemkwaliteit!BK40="","-",Bodemkwaliteit!BK40) -> - | AA32: 0 | AB32: - | AD32: 0 | AE32: - | AG32: 0 | AH32: =IF(Bodemkwaliteit!BL40="","-",Bodemkwaliteit!BL40) -> - | AJ32: 0 | AK32: - | AM32: 0 | AN32: =IF(Bodemkwaliteit!BO40="","-",Bodemkwaliteit!BO40) -> - | AP32: 0 | AQ32: - | AT32: 0 | AV32: 0 | AX32: ja | BD32: 0 | BE32: =IF(AND(Bodemkwaliteit!AF40=1,Bodemkwaliteit!AG40=1),MAX(BH32,IF($G$5=1,BF32,BG32)),IF($G$5=1,BF32,BG32)) -> 0.05 | BF32: =Bodemkwaliteit!BE40 -> 0.05 | BG32: =Bodemkwaliteit!BF40 -> 0.003 | BH32: =Bodemkwaliteit!BG40 -> 0.01 | BI32: =Bodemkwaliteit!BH40 -> 0.01 | BK32: 1 | BL32: 1 | BM32: 1 | BN32: =Bodemkwaliteit!BS40 -> 0 | BO32: =Bodemkwaliteit!BT40 -> 0 | BP32: =Bodemkwaliteit!BU40 -> 1 | BR32: benzo(a)antraceen
B33: =Bodemkwaliteit!F41 -> benzo(a)pyreen | E33: =IF(AND(Bodemkwaliteit!H41="<",Bodemkwaliteit!J41="<"),"<d",Bodemkwaliteit!Q41) -> <d | F33: <d | G33: 0.05 | I33: 0 | J33: 0.05 | K33: =IF(Bodemkwaliteit!BJ41="","-",Bodemkwaliteit!BJ41) -> - | L33: 0 | R33: x | Y33: =IF(Bodemkwaliteit!BK41="","-",Bodemkwaliteit!BK41) -> - | AA33: 0 | AB33: - | AD33: 0 | AE33: - | AG33: 0 | AH33: =IF(Bodemkwaliteit!BL41="","-",Bodemkwaliteit!BL41) -> - | AJ33: 0 | AK33: - | AM33: 0 | AN33: =IF(Bodemkwaliteit!BO41="","-",Bodemkwaliteit!BO41) -> - | AP33: 0 | AQ33: - | AT33: 0 | AV33: 0 | AX33: ja | BD33: 0 | BE33: =IF(AND(Bodemkwaliteit!AF41=1,Bodemkwaliteit!AG41=1),MAX(BH33,IF($G$5=1,BF33,BG33)),IF($G$5=1,BF33,BG33)) -> 0.05 | BF33: =Bodemkwaliteit!BE41 -> 0.05 | BG33: =Bodemkwaliteit!BF41 -> 0.003 | BH33: =Bodemkwaliteit!BG41 -> 0.01 | BI33: =Bodemkwaliteit!BH41 -> 0.01 | BK33: 1 | BL33: 1 | BM33: 1 | BN33: =Bodemkwaliteit!BS41 -> 0 | BO33: =Bodemkwaliteit!BT41 -> 0 | BP33: =Bodemkwaliteit!BU41 -> 1 | BR33: benzo(a)pyreen
B34: =Bodemkwaliteit!F42 -> benzo(k)fluoranteen | E34: =IF(AND(Bodemkwaliteit!H42="<",Bodemkwaliteit!J42="<"),"<d",Bodemkwaliteit!Q42) -> <d | F34: <d | G34: 0.05 | I34: 0 | J34: 0.05 | K34: =IF(Bodemkwaliteit!BJ42="","-",Bodemkwaliteit!BJ42) -> - | L34: 0 | R34: x | Y34: =IF(Bodemkwaliteit!BK42="","-",Bodemkwaliteit!BK42) -> - | AA34: 0 | AB34: - | AD34: 0 | AE34: - | AG34: 0 | AH34: =IF(Bodemkwaliteit!BL42="","-",Bodemkwaliteit!BL42) -> - | AJ34: 0 | AK34: - | AM34: 0 | AN34: =IF(Bodemkwaliteit!BO42="","-",Bodemkwaliteit!BO42) -> - | AP34: 0 | AQ34: - | AT34: 0 | AV34: 0 | AX34: ja | BD34: 0 | BE34: =IF(AND(Bodemkwaliteit!AF42=1,Bodemkwaliteit!AG42=1),MAX(BH34,IF($G$5=1,BF34,BG34)),IF($G$5=1,BF34,BG34)) -> 0.05 | BF34: =Bodemkwaliteit!BE42 -> 0.05 | BG34: =Bodemkwaliteit!BF42 -> 0.003 | BH34: =Bodemkwaliteit!BG42 -> 0.01 | BI34: =Bodemkwaliteit!BH42 -> 0.01 | BK34: 1 | BL34: 1 | BM34: 1 | BN34: =Bodemkwaliteit!BS42 -> 0 | BO34: =Bodemkwaliteit!BT42 -> 0 | BP34: =Bodemkwaliteit!BU42 -> 1 | BR34: benzo(k)fluoranteen
B35: =Bodemkwaliteit!F43 -> indeno(1,2,3-cd)pyreen | E35: =IF(AND(Bodemkwaliteit!H43="<",Bodemkwaliteit!J43="<"),"<d",Bodemkwaliteit!Q43) -> <d | F35: <d | G35: 0.05 | I35: 0 | J35: 0.05 | K35: =IF(Bodemkwaliteit!BJ43="","-",Bodemkwaliteit!BJ43) -> - | L35: 0 | R35: x | Y35: =IF(Bodemkwaliteit!BK43="","-",Bodemkwaliteit!BK43) -> - | AA35: 0 | AB35: - | AD35: 0 | AE35: - | AG35: 0 | AH35: =IF(Bodemkwaliteit!BL43="","-",Bodemkwaliteit!BL43) -> - | AJ35: 0 | AK35: - | AM35: 0 | AN35: =IF(Bodemkwaliteit!BO43="","-",Bodemkwaliteit!BO43) -> - | AP35: 0 | AQ35: - | AT35: 0 | AV35: 0 | AX35: ja | BD35: 0 | BE35: =IF(AND(Bodemkwaliteit!AF43=1,Bodemkwaliteit!AG43=1),MAX(BH35,IF($G$5=1,BF35,BG35)),IF($G$5=1,BF35,BG35)) -> 0.05 | BF35: =Bodemkwaliteit!BE43 -> 0.05 | BG35: =Bodemkwaliteit!BF43 -> 0.003 | BH35: =Bodemkwaliteit!BG43 -> 0.01 | BI35: =Bodemkwaliteit!BH43 -> 0.01 | BK35: 1 | BL35: 1 | BM35: 1 | BN35: =Bodemkwaliteit!BS43 -> 0 | BO35: =Bodemkwaliteit!BT43 -> 0 | BP35: =Bodemkwaliteit!BU43 -> 1 | BR35: indeno(1,2,3-cd)pyreen
B36: =Bodemkwaliteit!F44 -> benzo(ghi)peryleen | E36: =IF(AND(Bodemkwaliteit!H44="<",Bodemkwaliteit!J44="<"),"<d",Bodemkwaliteit!Q44) -> <d | F36: <d | G36: 0.05 | I36: 0 | J36: 0.05 | K36: =IF(Bodemkwaliteit!BJ44="","-",Bodemkwaliteit!BJ44) -> - | L36: 0 | R36: x | Y36: =IF(Bodemkwaliteit!BK44="","-",Bodemkwaliteit!BK44) -> - | AA36: 0 | AB36: - | AD36: 0 | AE36: - | AG36: 0 | AH36: =IF(Bodemkwaliteit!BL44="","-",Bodemkwaliteit!BL44) -> - | AJ36: 0 | AK36: - | AM36: 0 | AN36: =IF(Bodemkwaliteit!BO44="","-",Bodemkwaliteit!BO44) -> - | AP36: 0 | AQ36: - | AT36: 0 | AV36: 0 | AX36: ja | BD36: 0 | BE36: =IF(AND(Bodemkwaliteit!AF44=1,Bodemkwaliteit!AG44=1),MAX(BH36,IF($G$5=1,BF36,BG36)),IF($G$5=1,BF36,BG36)) -> 0.05 | BF36: =Bodemkwaliteit!BE44 -> 0.05 | BG36: =Bodemkwaliteit!BF44 -> 0.003 | BH36: =Bodemkwaliteit!BG44 -> 0.01 | BI36: =Bodemkwaliteit!BH44 -> 0.01 | BK36: 1 | BL36: 1 | BM36: 1 | BN36: =Bodemkwaliteit!BS44 -> 0 | BO36: =Bodemkwaliteit!BT44 -> 0 | BP36: =Bodemkwaliteit!BU44 -> 1 | BR36: benzo(ghi)peryleen
B37: =Bodemkwaliteit!F45 -> PAK's (10 VROM) (0,7 factor) | C37: H= | D37: =(IF($M$11<10,10,$M$11)) -> 10 | E37: =IF(AND(Bodemkwaliteit!H45="<",Bodemkwaliteit!J45="<"),"<d",Bodemkwaliteit!Q45) -> <d | F37: <d | G37: =IF(E37="<d",J37,F37*(BN37+BO37*25+BP37*10)/(BN37+$M$10*BO37+D37*BP37)) -> 0.5 | I37: 1 | J37: 0.5 | K37: =IF(Bodemkwaliteit!BJ45="","-",Bodemkwaliteit!BJ45) -> 1.5 | L37: 1 | N37: 0 | O37: 0 | P37: 0 | Q37: 0 | R37: =IF(L56=0,"x","-") -> x | Y37: =IF(Bodemkwaliteit!BK45="","-",Bodemkwaliteit!BK45) -> 6.8 | AA37: 0 | AB37: 9 | AD37: 0 | AE37: 40 | AG37: 0 | AH37: =IF(Bodemkwaliteit!BL45="","-",Bodemkwaliteit!BL45) -> 40 | AJ37: 0 | AK37: 40 | AM37: 0 | AN37: =IF(Bodemkwaliteit!BO45="","-",Bodemkwaliteit!BO45) -> 40 | AP37: 0 | AQ37: 8 | AT37: 0 | AV37: 0 | AX37: ja | AZ37: 1 | BD37: 1 | BE37: =IF(AND(Bodemkwaliteit!AF45=1,Bodemkwaliteit!AG45=1),MAX(BH37,IF($G$5=1,BF37,BG37)),IF($G$5=1,BF37,BG37)) -> 0.5 | BF37: =Bodemkwaliteit!BE45 -> 0.5 | BG37: =Bodemkwaliteit!BF45 -> 0.021 | BH37: =Bodemkwaliteit!BG45 -> 0.1 | BI37: =Bodemkwaliteit!BH45 -> 0 | BK37: 1 | BL37: 1 | BM37: 1 | BN37: =Bodemkwaliteit!BS45 -> 0 | BO37: =Bodemkwaliteit!BT45 -> 0 | BP37: =Bodemkwaliteit!BU45 -> 1 | BR37: PAK's (10 VROM) (0,7 factor)
B38: 5. Gechloreerde koolwaterstoffen | BR38: 5. Gechloreerde koolwaterstoffen
B39: =Bodemkwaliteit!F47 -> d. polichloorbifenylen (PCB's) | BR39: d. polichloorbifenylen (PCB's)
B40: =Bodemkwaliteit!F48 -> S.v.p. keuze voor toetsing PCB's opgeven (mg/kg=0 ; ug/kg=1): | D40: =IF(Bodemkwaliteit!J48=1,"ug/kg",IF(Bodemkwaliteit!J48=0,"mg/kg","fout")) -> mg/kg | BR40: S.v.p. keuze voor toetsing PCB's opgeven (mg/kg=0 ; ug/kg=1):
B41: =Bodemkwaliteit!F49 -> PCB 28 | E41: =IF(AND(Bodemkwaliteit!H49="<",Bodemkwaliteit!J49="<"),"<d",Bodemkwaliteit!Q49) -> <d | F41: =IF(E41="<d","<d",E41*$G$5) -> <d | G41: =IF(E41="<d",J41,F41*(BN41+BO41*25+BP41*10)/(BN41+$M$10*BO41+BP41*$M$11)) -> 0.001 | I41: =IF(AND(G41>0,L41=1),1,0) -> 0 | J41: =IF(BE41<K41,BE41,K41) -> 0.001 | K41: =IF(Bodemkwaliteit!BJ49="","-",Bodemkwaliteit!BJ49) -> - | L41: =IF(K41="-",0,1) -> 0 | M41: =IF(G41>K41,"> agw","") ->  | N41: =IF(K41="-","",IF(M41="> agw",1,0)) ->  | O41: =IF(K41="-","",IF(AND(G41>K41,G41<2*K41,G41<Y41,G41<AE41),1,0)) ->  | P41: =IF(K41="-","",IF(AND(N41=1,O41=1),1,0)) ->  | Q41: =IF(K41="-","",IF(AND(N41=1,O41=0),1,0)) ->  | R41: x | S41: =IF(M41="","",IF(AND(M41="> agw",R41="x"),"ber. msPAF",IF(R41="-","",IF(G41>R41,"nee","ja")))) ->  | V41: =IF(S41="","",IF(S41="ja",1,0)) ->  | W41: =IF(S41="","",IF(S41="nee",1,0)) ->  | X41: =IF(S41="","",IF(OR(S41="ber. msPAF",S41="ja, ber. msPAF"),1,0)) ->  | Y41: =IF(Bodemkwaliteit!BK49="","-",Bodemkwaliteit!BK49) -> - | Z41: =IF(G41>Y41,"> bkk w","") ->  | AA41: =IF(Z41="> bkk w",1,0) -> 0 | AB41: =IF(D40="ug/kg",1000*0.014,IF(D40="mg/kg",0.014,"fout")) -> 0.014 | AC41: =IF(G41>AB41,"> kkA","") ->  | AD41: =IF(AC41="> kkA",1,0) -> 0 | AE41: - | AF41: =IF(G41>AE41,"> kkB","") ->  | AG41: =IF(AF41="> kkB",1,0) -> 0 | AH41: =IF(Bodemkwaliteit!BL49="","-",Bodemkwaliteit!BL49) -> - | AI41: =IF(G41>AH41,"> bfk industrie","") ->  | AJ41: =IF(AI41="> bfk industrie",1,0) -> 0 | AK41: =IF(AND(AE41="-",AH41="-"),"-",MIN(AE41,AH41)) -> - | AL41: =IF(G41>AK41,"> min","") ->  | AM41: =IF(AL41="> min",1,0) -> 0 | AN41: =IF(Bodemkwaliteit!BO49="","-",Bodemkwaliteit!BO49) -> - | AO41: =IF(AN41="","",IF(G41>AN41,"> i-waarde","")) ->  | AP41: =IF(AO41="> i-waarde",1,0) -> 0 | AQ41: - | AR41: =IF(OR(E41="<d",AQ41="-"),"",IF(E41>AQ41,"> CCT","")) ->  | AS41: =IF(AQ41="-","",IF(G41>1.5*AQ41,"> 1,5*CCT","")) ->  | AT41: =IF(AR41="> CCT",1,0) -> 0 | AU41: =IF(AX41="","",IF(AX41="ja","",IF(AS41="> 1,5*CCT",1,0))) ->  | AV41: =IF(AND(AT41=1,AU41=0),1,0) -> 0 | AX41: ja | AZ41: 1 | BD41: =L41 -> 0 | BE41: =IF(AND(Bodemkwaliteit!AF49=1,Bodemkwaliteit!AG49=1),MAX(BH41,IF($G$5=1,BF41,BG41)),IF($G$5=1,BF41,BG41)) -> 0.001 | BF41: =Bodemkwaliteit!BE49 -> 0.001 | BG41: =Bodemkwaliteit!BF49 -> 0 | BH41: =Bodemkwaliteit!BG49 -> 0.01 | BI41: =Bodemkwaliteit!BH49 -> 0.014 | BK41: =IF(ISNONTEXT(BF41)=TRUE,1,0) -> 1 | BL41: 1 | BM41: =IF(ISNONTEXT(BJ41)=TRUE,1,0) -> 1 | BN41: =Bodemkwaliteit!BS49 -> 0 | BO41: =Bodemkwaliteit!BT49 -> 0 | BP41: =Bodemkwaliteit!BU49 -> 1 | BR41: PCB 28
B42: =Bodemkwaliteit!F50 -> PCB 52 | E42: =IF(AND(Bodemkwaliteit!H50="<",Bodemkwaliteit!J50="<"),"<d",Bodemkwaliteit!Q50) -> <d | F42: <d | G42: 0.001 | I42: 0 | J42: 0.001 | K42: =IF(Bodemkwaliteit!BJ50="","-",Bodemkwaliteit!BJ50) -> - | L42: 0 | R42: x | Y42: =IF(Bodemkwaliteit!BK50="","-",Bodemkwaliteit!BK50) -> - | AA42: 0 | AB42: =IF(D40="ug/kg",1000*0.015,IF(D40="mg/kg",0.015,"fout")) -> 0.015 | AD42: 0 | AE42: - | AG42: 0 | AH42: =IF(Bodemkwaliteit!BL50="","-",Bodemkwaliteit!BL50) -> - | AJ42: 0 | AK42: - | AM42: 0 | AN42: =IF(Bodemkwaliteit!BO50="","-",Bodemkwaliteit!BO50) -> - | AP42: 0 | AQ42: - | AT42: 0 | AV42: 0 | AX42: ja | AZ42: 1 | BD42: 0 | BE42: =IF(AND(Bodemkwaliteit!AF50=1,Bodemkwaliteit!AG50=1),MAX(BH42,IF($G$5=1,BF42,BG42)),IF($G$5=1,BF42,BG42)) -> 0.001 | BF42: =Bodemkwaliteit!BE50 -> 0.001 | BG42: =Bodemkwaliteit!BF50 -> 0 | BH42: =Bodemkwaliteit!BG50 -> 0.01 | BI42: =Bodemkwaliteit!BH50 -> 0.014 | BK42: 1 | BL42: 1 | BM42: 1 | BN42: =Bodemkwaliteit!BS50 -> 0 | BO42: =Bodemkwaliteit!BT50 -> 0 | BP42: =Bodemkwaliteit!BU50 -> 1 | BR42: PCB 52
B43: =Bodemkwaliteit!F51 -> PCB 101 | E43: =IF(AND(Bodemkwaliteit!H51="<",Bodemkwaliteit!J51="<"),"<d",Bodemkwaliteit!Q51) -> <d | F43: <d | G43: 0.001 | I43: 0 | J43: 0.001 | K43: =IF(Bodemkwaliteit!BJ51="","-",Bodemkwaliteit!BJ51) -> - | L43: 0 | R43: x | Y43: =IF(Bodemkwaliteit!BK51="","-",Bodemkwaliteit!BK51) -> - | AA43: 0 | AB43: =IF(D40="ug/kg",1000*0.023,IF(D40="mg/kg",0.023,"fout")) -> 0.023 | AD43: 0 | AE43: - | AG43: 0 | AH43: =IF(Bodemkwaliteit!BL51="","-",Bodemkwaliteit!BL51) -> - | AJ43: 0 | AK43: - | AM43: 0 | AN43: =IF(Bodemkwaliteit!BO51="","-",Bodemkwaliteit!BO51) -> - | AP43: 0 | AQ43: - | AT43: 0 | AV43: 0 | AX43: ja | AZ43: 1 | BD43: 0 | BE43: =IF(AND(Bodemkwaliteit!AF51=1,Bodemkwaliteit!AG51=1),MAX(BH43,IF($G$5=1,BF43,BG43)),IF($G$5=1,BF43,BG43)) -> 0.001 | BF43: =Bodemkwaliteit!BE51 -> 0.001 | BG43: =Bodemkwaliteit!BF51 -> 0 | BH43: =Bodemkwaliteit!BG51 -> 0.01 | BI43: =Bodemkwaliteit!BH51 -> 0.014 | BK43: 1 | BL43: 1 | BM43: 1 | BN43: =Bodemkwaliteit!BS51 -> 0 | BO43: =Bodemkwaliteit!BT51 -> 0 | BP43: =Bodemkwaliteit!BU51 -> 1 | BR43: PCB 101
B44: =Bodemkwaliteit!F52 -> PCB 118 | E44: =IF(AND(Bodemkwaliteit!H52="<",Bodemkwaliteit!J52="<"),"<d",Bodemkwaliteit!Q52) -> <d | F44: <d | G44: 0.001 | I44: 0 | J44: 0.001 | K44: =IF(Bodemkwaliteit!BJ52="","-",Bodemkwaliteit!BJ52) -> - | L44: 0 | R44: x | Y44: =IF(Bodemkwaliteit!BK52="","-",Bodemkwaliteit!BK52) -> - | AA44: 0 | AB44: =IF(D40="ug/kg",1000*0.016,IF(D40="mg/kg",0.016,"fout")) -> 0.016 | AD44: 0 | AE44: - | AG44: 0 | AH44: =IF(Bodemkwaliteit!BL52="","-",Bodemkwaliteit!BL52) -> - | AJ44: 0 | AK44: - | AM44: 0 | AN44: =IF(Bodemkwaliteit!BO52="","-",Bodemkwaliteit!BO52) -> - | AP44: 0 | AQ44: - | AT44: 0 | AV44: 0 | AX44: ja | AZ44: 1 | BD44: 0 | BE44: =IF(AND(Bodemkwaliteit!AF52=1,Bodemkwaliteit!AG52=1),MAX(BH44,IF($G$5=1,BF44,BG44)),IF($G$5=1,BF44,BG44)) -> 0.001 | BF44: =Bodemkwaliteit!BE52 -> 0.001 | BG44: =Bodemkwaliteit!BF52 -> 0 | BH44: =Bodemkwaliteit!BG52 -> 0.01 | BI44: =Bodemkwaliteit!BH52 -> 0.014 | BK44: 1 | BL44: 1 | BM44: 1 | BN44: =Bodemkwaliteit!BS52 -> 0 | BO44: =Bodemkwaliteit!BT52 -> 0 | BP44: =Bodemkwaliteit!BU52 -> 1 | BR44: =#REF! -> 
B45: =Bodemkwaliteit!F53 -> PCB 138 | E45: =IF(AND(Bodemkwaliteit!H53="<",Bodemkwaliteit!J53="<"),"<d",Bodemkwaliteit!Q53) -> <d | F45: <d | G45: 0.001 | I45: 0 | J45: 0.001 | K45: =IF(Bodemkwaliteit!BJ53="","-",Bodemkwaliteit!BJ53) -> - | L45: 0 | R45: x | Y45: =IF(Bodemkwaliteit!BK53="","-",Bodemkwaliteit!BK53) -> - | AA45: 0 | AB45: =IF(D40="ug/kg",1000*0.027,IF(D40="mg/kg",0.027,"fout")) -> 0.027 | AD45: 0 | AE45: - | AG45: 0 | AH45: =IF(Bodemkwaliteit!BL53="","-",Bodemkwaliteit!BL53) -> - | AJ45: 0 | AK45: - | AM45: 0 | AN45: =IF(Bodemkwaliteit!BO53="","-",Bodemkwaliteit!BO53) -> - | AP45: 0 | AQ45: - | AT45: 0 | AV45: 0 | AX45: ja | AZ45: 1 | BD45: 0 | BE45: =IF(AND(Bodemkwaliteit!AF53=1,Bodemkwaliteit!AG53=1),MAX(BH45,IF($G$5=1,BF45,BG45)),IF($G$5=1,BF45,BG45)) -> 0.001 | BF45: =Bodemkwaliteit!BE53 -> 0.001 | BG45: =Bodemkwaliteit!BF53 -> 0 | BH45: =Bodemkwaliteit!BG53 -> 0.01 | BI45: =Bodemkwaliteit!BH53 -> 0.014 | BK45: 1 | BL45: 1 | BM45: 1 | BN45: =Bodemkwaliteit!BS53 -> 0 | BO45: =Bodemkwaliteit!BT53 -> 0 | BP45: =Bodemkwaliteit!BU53 -> 1 | BR45: =B44 -> PCB 118
B46: =Bodemkwaliteit!F54 -> PCB 153 | E46: =IF(AND(Bodemkwaliteit!H54="<",Bodemkwaliteit!J54="<"),"<d",Bodemkwaliteit!Q54) -> <d | F46: <d | G46: 0.001 | I46: 0 | J46: 0.001 | K46: =IF(Bodemkwaliteit!BJ54="","-",Bodemkwaliteit!BJ54) -> - | L46: 0 | R46: x | Y46: =IF(Bodemkwaliteit!BK54="","-",Bodemkwaliteit!BK54) -> - | AA46: 0 | AB46: =IF(D40="ug/kg",1000*0.033,IF(D40="mg/kg",0.033,"fout")) -> 0.033 | AD46: 0 | AE46: - | AG46: 0 | AH46: =IF(Bodemkwaliteit!BL54="","-",Bodemkwaliteit!BL54) -> - | AJ46: 0 | AK46: - | AM46: 0 | AN46: =IF(Bodemkwaliteit!BO54="","-",Bodemkwaliteit!BO54) -> - | AP46: 0 | AQ46: - | AT46: 0 | AV46: 0 | AX46: ja | AZ46: 1 | BD46: 0 | BE46: =IF(AND(Bodemkwaliteit!AF54=1,Bodemkwaliteit!AG54=1),MAX(BH46,IF($G$5=1,BF46,BG46)),IF($G$5=1,BF46,BG46)) -> 0.001 | BF46: =Bodemkwaliteit!BE54 -> 0.001 | BG46: =Bodemkwaliteit!BF54 -> 0 | BH46: =Bodemkwaliteit!BG54 -> 0.01 | BI46: =Bodemkwaliteit!BH54 -> 0.014 | BK46: 1 | BL46: 1 | BM46: 1 | BN46: =Bodemkwaliteit!BS54 -> 0 | BO46: =Bodemkwaliteit!BT54 -> 0 | BP46: =Bodemkwaliteit!BU54 -> 1 | BR46: =B45 -> PCB 138
B47: =Bodemkwaliteit!F55 -> PCB 180 | E47: =IF(AND(Bodemkwaliteit!H55="<",Bodemkwaliteit!J55="<"),"<d",Bodemkwaliteit!Q55) -> <d | F47: <d | G47: 0.001 | I47: 0 | J47: 0.001 | K47: =IF(Bodemkwaliteit!BJ55="","-",Bodemkwaliteit!BJ55) -> - | L47: 0 | R47: x | Y47: =IF(Bodemkwaliteit!BK55="","-",Bodemkwaliteit!BK55) -> - | AA47: 0 | AB47: =IF(D40="ug/kg",1000*0.018,IF(D40="mg/kg",0.018,"fout")) -> 0.018 | AD47: 0 | AE47: - | AG47: 0 | AH47: =IF(Bodemkwaliteit!BL55="","-",Bodemkwaliteit!BL55) -> - | AJ47: 0 | AK47: - | AM47: 0 | AN47: =IF(Bodemkwaliteit!BO55="","-",Bodemkwaliteit!BO55) -> - | AP47: 0 | AQ47: - | AT47: 0 | AV47: 0 | AX47: ja | AZ47: 1 | BD47: 0 | BE47: =IF(AND(Bodemkwaliteit!AF55=1,Bodemkwaliteit!AG55=1),MAX(BH47,IF($G$5=1,BF47,BG47)),IF($G$5=1,BF47,BG47)) -> 0.001 | BF47: =Bodemkwaliteit!BE55 -> 0.001 | BG47: =Bodemkwaliteit!BF55 -> 0 | BH47: =Bodemkwaliteit!BG55 -> 0.01 | BI47: =Bodemkwaliteit!BH55 -> 0.014 | BK47: 1 | BL47: 1 | BM47: 1 | BN47: =Bodemkwaliteit!BS55 -> 0 | BO47: =Bodemkwaliteit!BT55 -> 0 | BP47: =Bodemkwaliteit!BU55 -> 1 | BR47: =B46 -> PCB 153
B48: =Bodemkwaliteit!F56 -> PCB's (som 7) (0,7 factor) | E48: =IF(AND(Bodemkwaliteit!H56="<",Bodemkwaliteit!J56="<"),"<d",Bodemkwaliteit!Q56) -> <d | F48: <d | G48: 0.007 | I48: 1 | J48: 0.007 | K48: =IF(Bodemkwaliteit!BJ56="","-",Bodemkwaliteit!BJ56) -> 0.02 | L48: 1 | N48: 0 | O48: 0 | P48: 0 | Q48: 0 | R48: =IF(L56=0,"x","-") -> x | Y48: =IF(Bodemkwaliteit!BK56="","-",Bodemkwaliteit!BK56) -> 0.04 | AA48: 0 | AB48: =IF(D40="ug/kg",1000*0.139,IF(D40="mg/kg",0.139,"fout")) -> 0.139 | AD48: 0 | AE48: =IF(D40="ug/kg",1000*1,IF(D40="mg/kg",1,"fout")) -> 1 | AG48: 0 | AH48: =IF(Bodemkwaliteit!BL56="","-",Bodemkwaliteit!BL56) -> 0.5 | AJ48: 0 | AK48: 0.5 | AM48: 0 | AN48: =IF(Bodemkwaliteit!BO56="","-",Bodemkwaliteit!BO56) -> 1 | AP48: 0 | AQ48: =IF(D40="ug/kg",1000*0.1,IF(D40="mg/kg",0.1,"fout")) -> 0.1 | AT48: 0 | AV48: 0 | AX48: ja | AZ48: 1 | BA48: 1 | BD48: 1 | BE48: =IF(AND(Bodemkwaliteit!AF56=1,Bodemkwaliteit!AG56=1),MAX(BH48,IF($G$5=1,BF48,BG48)),IF($G$5=1,BF48,BG48)) -> 0.007 | BF48: =Bodemkwaliteit!BE56 -> 0.007 | BG48: =Bodemkwaliteit!BF56 -> 0 | BH48: =Bodemkwaliteit!BG56 -> 0.01 | BI48: =Bodemkwaliteit!BH56 -> 0.014 | BK48: 1 | BL48: 1 | BM48: 1 | BN48: =Bodemkwaliteit!BS56 -> 0 | BO48: =Bodemkwaliteit!BT56 -> 0 | BP48: =Bodemkwaliteit!BU56 -> 1 | BR48: PCB's (som 7) (0,7 factor)
B49: Overige stoffen | BR49: =B49 -> Overige stoffen
B50: =Bodemkwaliteit!F58 -> minerale olie | E50: =IF(AND(Bodemkwaliteit!H58="<",Bodemkwaliteit!J58="<"),"<d",Bodemkwaliteit!Q58) -> <d | F50: =IF(E50="<d","<d",E50*$G$5) -> <d | G50: =IF(E50="<d",J50,F50*(BN50+BO50*25+BP50*10)/(BN50+$M$10*BO50+BP50*$M$11)) -> 35 | I50: 1 | J50: =IF(BE50<K50,BE50,K50) -> 35 | K50: =IF(Bodemkwaliteit!BJ58="","-",Bodemkwaliteit!BJ58) -> 190 | L50: =IF(K50="-",0,1) -> 1 | N50: =IF(K50="-","",IF(M50="> agw",1,0)) -> 0 | O50: 0 | P50: =IF(K50="-","",IF(AND(N50=1,O50=1),1,0)) -> 0 | Q50: 0 | R50: 3000 | S50: =IF(M50="","",IF(AND(M50="> agw",R50="x"),"ber. msPAF",IF(R50="-","",IF(G50>R50,"nee","ja")))) ->  | U50: =IF(G50<R50,1,0) -> 1 | Y50: =IF(Bodemkwaliteit!BK58="","-",Bodemkwaliteit!BK58) -> 190 | Z50: =IF(G50>Y50,"> bkk w","") ->  | AA50: =IF(Z50="> bkk w",1,0) -> 0 | AB50: 1250 | AC50: =IF(G50>AB50,"> kkA","") ->  | AD50: =IF(AC50="> kkA",1,0) -> 0 | AE50: 5000 | AF50: =IF(G50>AE50,"> kkB","") ->  | AG50: =IF(AF50="> kkB",1,0) -> 0 | AH50: =IF(Bodemkwaliteit!BL58="","-",Bodemkwaliteit!BL58) -> 500 | AI50: =IF(G50>AH50,"> bfk industrie","") ->  | AJ50: =IF(AI50="> bfk industrie",1,0) -> 0 | AK50: =IF(AND(AE50="-",AH50="-"),"-",MIN(AE50,AH50)) -> 500 | AL50: =IF(G50>AK50,"> min","") ->  | AM50: =IF(AL50="> min",1,0) -> 0 | AN50: =IF(Bodemkwaliteit!BO58="","-",Bodemkwaliteit!BO58) -> 5000 | AO50: =IF(AN50="","",IF(G50>AN50,"> i-waarde","")) ->  | AP50: =IF(AO50="> i-waarde",1,0) -> 0 | AQ50: 1250 | AR50: =IF(OR(E50="<d",AQ50="-"),"",IF(E50>AQ50,"> CCT","")) ->  | AT50: 0 | AU50: =IF(AX50="","",IF(AX50="ja","",IF(AS50="> 1,5*CCT",1,0))) ->  | AV50: =IF(AND(AT50=1,AU50=0),1,0) -> 0 | AX50: ja | AZ50: 1 | BD50: 1 | BE50: =IF(AND(Bodemkwaliteit!AF58=1,Bodemkwaliteit!AG58=1),MAX(BH50,IF($G$5=1,BF50,BG50)),IF($G$5=1,BF50,BG50)) -> 35 | BF50: =Bodemkwaliteit!BE58 -> 35 | BG50: =Bodemkwaliteit!BF58 -> 17 | BH50: =Bodemkwaliteit!BG58 -> 20 | BI50: =Bodemkwaliteit!BH58 -> 20 | BK50: 1 | BL50: 1 | BM50: 1 | BN50: =Bodemkwaliteit!BS58 -> 0 | BO50: =Bodemkwaliteit!BT58 -> 0 | BP50: =Bodemkwaliteit!BU58 -> 1 | BR50: minerale olie
N51: A >agw | O51: A voldoet art. 4.2.2.-4 en -5 x>agw en x<2*agw en <bkk w en <kk A | P51: A voldoet | Q51: A voldoet niet | R51: aantal x | S51: aantal msPAF | BF51: =Bodemkwaliteit!BE60 -> 0 | BG51: =Bodemkwaliteit!BF60 -> 0 | BH51: =Bodemkwaliteit!BG60 -> 0 | BI51: =Bodemkwaliteit!BH60 -> 0 | BR51: 0
I52: =SUM(I17:I50) -> 12 | L52: =SUM(L17:L50) -> 12 | N52: =SUM(N17:N50) -> 0 | O52: =SUM(O17:O50) -> 0 | P52: =SUM(P17:P50) -> 0 | Q52: =SUM(Q17:Q50) -> 0 | R52: =COUNTIF(R17:R50,R15) -> 27 | S52: =COUNTIF(S17:S50,S15) -> 0 | T52: =SUM(T17:T50) -> 1 | U52: =SUM(U17:U50) -> 1 | V52: =SUM(V17:V50) -> 0 | W52: =SUM(W17:W50) -> 0 | X52: =SUM(X17:X50) -> 0 | AA52: =SUM(AA17:AA50) -> 0 | AD52: =SUM(AD17:AD50) -> 0 | AG52: =SUM(AG17:AG50) -> 0 | AJ52: =SUM(AJ17:AJ50) -> 0 | AM52: =SUM(AM17:AM50) -> 0 | AP52: =SUM(AP17:AP50) -> 0 | AR52: =COUNTIF(AR17:AR50,AR13) -> 0 | AT52: =SUM(AT17:AT50) -> 0 | AU52: =SUM(AU17:AU50) -> 0 | AV52: =SUM(AV17:AV50) -> 0 | AZ52: =SUM(AZ17:AZ50) -> 19 | BA52: =SUM(BA17:BA50) -> 1 | BD52: =SUM(BD17:BD50) -> 12
S53: verschil
O54: =IF(AND(N52>0,I52>=37,O52<=5,(N52-P52=0)),1,0) -> 0 | S54: =R52-S52 -> 27 | X54: =IF(AND(O59=0,W52>0),"mag niet",IF(AND(W52=0,X52>0),"mag: ber msPAF",IF(OR(AND(X52=0,T52=1),AND(X52=0,U52=1),AND(X52=0,T52=1,U52=1)),"mag",""))) -> mag | AA54: =IF(AA52>0,"mag niet","mag") -> mag | AD54: =IF(AND(O59=0,AD52>0),"mag niet","mag") -> mag | AG54: =IF(AG52>0,"mag niet","mag") -> mag | AJ54: =IF(AJ52>0,"mag niet","mag") -> mag | AM54: =IF(AM52>0,"mag niet","mag") -> mag | AP54: =IF(AP52>0,"mag niet","mag") -> mag | AV54: =IF(AND(AV52<=2,AU52=0,(AT52-AV52=0)),"mag","mag niet") -> mag
O55: =IF(AND(N52>0,I52>=27,O52<=4,(N52-P52=0)),1,0) -> 0
K56: N,T-Aw2000: | L56: =IF(Bodemkwaliteit!G72="N,T-AW2000",1,0) -> 0 | O56: =IF(AND(N52>0,I52>=16,O52<=3,(N52-P52=0)),1,0) -> 0
O57: =IF(AND(N52>0,I52>=7,O52<=2,(N52-P52=0)),1,0) -> 0
O58: =IF(AND(N52>0,I52>=2,O52<=1,(N52-P52=0)),1,0) -> 0
O59: =MAX(O54:O58) -> 0
B61: Voor verspreiden baggerspecie over het aangrenzende perceel: | AL61: =IF(N52=0,1,0) -> 1 | AM61: =IF(AND(N52>0,OR(X54="mag",X54="mag: ber msPAF")),2,0) -> 0 | AN61: =IF(AND(N52>0,O59=0,X54="mag"),3,0) -> 0 | AO61: =IF(AND(N52>=1,X54="mag: ber msPAF",AP54="mag"),4,0) -> 0 | AP61: =IF(AND(X54="mag niet",AP54="mag"),5,0) -> 0 | AQ61: =IF(AP54="mag niet",6,0) -> 0 | AR61: =MAX(AL61:AQ61) -> 1
B62: =IF(AR61=6,"nooit verspreiden/toepassen",IF(AR61=5,"niet verspreiden",IF(AR61=4,"verspreidbaar op aangrenzend perceel mits msPAF voldoet",IF(AR61=3,"verspreidbaar op aangrenzend perceel",IF(AR61=2,"vrij toepasbaar (voldoet aan Rbk, art 4.2.2-4 [N,T-toets])",IF(OR(AR61=1,AR61=0),"vrij toepasbaar","fout")))))) -> vrij toepasbaar
B64: NB: de msPAF-grens voor verspreiding op aangrenzend perceel is: msPAF-metalen <50% en msPAF-organisch < 20% en minerale olie < 3000 en cadmium < 7,5. | AK64: Te berekenen met het programma OMEGA 6.1
B67: Voor verspreiden van baggerspecie in oppervlaktewater: | AM67: =IF(N52=0,1,0) -> 1 | AN67: =IF(O59=1,2,0) -> 0 | AO67: =IF(AND(N52>0,O59=0,AD54="mag",OR(X54="mag",X54="mag: ber msPAF"),AG54="mag"),3,0) -> 0 | AP67: =IF(AND(AD54="mag niet",AG54="mag"),4,0) -> 0 | AQ67: =IF(AG54="mag niet",5,0) -> 0 | AR67: =MAX(AM67:AQ67) -> 1
B68: =IF(AR67=5,"nooit verspreiden/toepassen",IF(AR67=4,"niet verspreidbaar",IF(AR67=3,"verspreidbaar in zoet water",IF(AR67=2,"vrij toepasbaar (voldoet aan Rbk, 4.2.2-4 [N,T-toets])",IF(OR(AR67=1,AR67=0),"vrij toepasbaar","fout"))))) -> vrij toepasbaar
B71: Voor toepassen van baggerspecie in oppervlaktewater : | AM71: =IF(N52=0,1,0) -> 1 | AN71: =IF(O59=1,2,0) -> 0 | AO71: =IF(AND(N52>0,O59=0,AD54="mag",IF(Y72=0,AG54="mag",AM54="mag")),3,0) -> 0 | AP71: =IF(AND(AD54="mag niet",IF(Y72=0,AG54="mag",AM54="mag")),4,0) -> 0 | AQ71: =IF(IF(Y72=0,AG54="mag niet",AM54="mag niet"),5,0) -> 0 | AR71: =MAX(AM71:AQ71) -> 1
B72: Is de bodem niet afkomstig van de bodem onder het oppevlaktewater? | Y72: 0 | Z72: (1=ja [afkomstig droge bodem];0=nee [afkomstig waterbodem])
B73: =IF(AR71=5,"nooit verspreiden/toepassen",IF(AR71=4,"toepasbaar bodemkwaliteitsklasse B",IF(AR71=3,"toepasbaar bodemkwaliteitsklasse A",IF(AR71=2,"vrij toepasbaar (voldoet aan Rbk, 4.2.2-4 [N,T-toets])",IF(OR(AR71=1,AR71=0),"vrij toepasbaar","fout"))))) -> vrij toepasbaar
B76: Voor verspreiden van baggerspecie in zout oppervlaktewater: | AM76: =IF(N52=0,1,0) -> 1 | AN76: =IF(O59=1,2,0) -> 0 | AO76: =IF(AND(N52>0,O59=0,AV54="mag"),3,0) -> 0 | AP76: =IF(AV54="mag niet",4,0) -> 0 | AR76: =MAX(AM76:AQ76) -> 1
B77: =IF(AR76=4,"nooit verspreiden/toepassen",IF(AR76=3,"verspreidbaar in zeewater",IF(AR76=2,"vrij toepasbaar (voldoet aan Rbk, art. 4.2.2-4 [N,T-toets])",IF(OR(AR76=1,AR76=0),"vrij toepasbaar","fout")))) -> vrij toepasbaar
BB78: cyanide | BC78: vinylchl
B79: =IF(BB79=0,"",IF(#REF!="> agw","Bij overschrijding van de agw voor cyanide-vrij moet cyanide in de bodemlucht worden gemetem en getoetst aan de )Toxicologisch Toelaatbare Concentratie in lucht.","")) ->  | BB79: =SUM(BB17:BB50) -> 0
B80: =IF(BC80=0,"",IF(#REF!="> agw","Bij waarden van vynilchloride boven de bepalingsgrens (0,1) moet het grondwater worden onderzocht.","")) ->  | BC80: =SUM(BC17:BC50) -> 0
B81: Kwaliteitscontrole van de hierboven gesteld conclusie:
B83: Naam toetser: | K83: Paraaf: | Y83: Datum: | AC83: Naam 2e lezer: | AI83: Paraaf: | AN83: Datum:

Sheet Toepassingseis
B2: Projectcode: | D2: =Bodemkwaliteit!H3 -> < code > | H2: =Bodemkwaliteit!L3 -> Partij < partijnaam >
B3: Datum toetsing: | D3: =Bodemkwaliteit!H4 -> <datum> | H3: =IF(Bodemkwaliteit!L4="","",Bodemkwaliteit!L4) -> < meldnummer >
B5: Bepaling van de generieke toepassingseis voor de onderzocht partij grond:
B8: De soort toepassing
B9: Betreft het een toepassing conform Bbk, art 35, onder
B10: a. | C10: van grond of baggerspecie in bouw- en wegconstructies w.o. grondwallen? | K10: 0 | L10: (1=ja;0=nee)
B11: b. | C11: van grond of baggerspecie op of in de droge bodem in ophogingen? | K11: 1 | L11: (1=ja;0=nee)
B12: c. | C12: van grond of baggerspecie in leeflagen? | K12: 0 | L12: (1=ja;0=nee)
B13: d. | C13: van grond of baggerspecie t.b.v. verondiepingen en dempingen opp.water? | K13: 0 | L13: (1=ja;0=nee)
B14: e. | C14: van grond of baggerspecie in aanvullingen of t.b.v. onderhoud en herstel a. t/m d.? | K14: 0 | L14: (1=ja;0=nee)
B15: f. | C15: van baggerspecie t.b.v. verspreiding uit een watergang op het aangrenzende perceel? | K15: 0 | L15: (1=ja;0=nee)
B16: g. | C16: van baggerspecie t.b.v. verspreiding in het oppervlaktewater? | K16: 0 | L16: (1=ja;0=nee)
B17: h. | C17: van grond of baggerspecie in tijdelijke opslag bestemd voor a. t/m e.? | K17: 0 | L17: (1=ja;0=nee)
C18: op de droge of natte bodem? | G18: 1 | H18: (droog=1; nat=2)
C19: voor de duur van maximaal? | G19: 1 | H19: =IF(G18=1,"(<6 maanden=1; 6 mnd - 3 jaar=2; langer=3)",IF(G18=2,"(6 maanden =1; 10 jaar=2; langer=3)","")) -> (<6 maanden=1; 6 mnd - 3 jaar=2; langer=3) | S19: =IF(OR(AND(K17=1,G19=1),AND(I21=1,G21=1)),1,0) -> 0
B20: i. | C20: van bagger in tijdelijke opslag bestemd voor a. t/m f. op het naastgelegen perceel? | K20: 0 | L20: (1=ja;0=nee) | S20: =SUM(K10:K17)+K20+K23 -> 1 | T20: =IF(OR(S20=0,S20>1),1,0) -> 0
C21: op de droge of natte bodem? | G21: 2 | H21: (droog=1; nat=2) | S21: =IF(OR(AND(K17=1,G19=3),AND(K20=1,G22=3)),1,0) -> 0 | T21: =IF(OR(AND(K17=1,G19=2),AND(K20=1,G22=2)),1,0) -> 0
C22: voor de duur van maximaal? | G22: 2 | H22: =IF(G21=1,"(<6 maanden=1; 6mnd - 3 jaar=2; langer=3)",IF(G21=2,"(<6 maanden =1; 6 mnd - 10 jaar=2; langer=3)","")) -> (<6 maanden =1; 6 mnd - 10 jaar=2; langer=3)
B23: Betreft het een toepassing op een GBT conform Bbk, art. 63? | K23: 0 | L23: (1=ja;0=nee) | S23: =IF(Bodemkwaliteit!F76="",0,IF(Bodemkwaliteit!F76="Let op: voor grootschalige toepassing uitloging uitvoeren en emissie bepalen!",1,2)) -> 0 | T23: =IF(AND(S23=0,K23=1),1,0) -> 0 | U23: =IF(AND(S23=1,K23=1),1,0) -> 0
C24: =IF(AND(K23=1,S23=1),"Is er een uitloogproef L/S=10 uitgevoerd?","") ->  | G24: 0 | H24: (1=ja;0=nee) | S24: =IF(C24="Is er een uitloogproef L/S=10 uitgevoerd?",1,0) -> 0
C25: Voldoet de emissie? | G25: 0 | H25: (1=ja;0=nee) | S25: =IF(C26="Voldoen de minimale eisen Bbk, art. 63 GBT?",1,0) -> 1
C26: Voldoen de minimale eisen Bbk, art. 63 GBT? | G26: =IF(OR(AND('Grootschalige toepassing'!F8=1,'Grootschalige toepassing'!F9=1,'Grootschalige toepassing'!F10=0),AND('Grootschalige toepassing'!F13=1,'Grootschalige toepassing'!F14=1)),1,0) -> 1 | H26: (1=ja;0=nee) | S26: =IF(AND(K23=1,G24=1,G25=1,G26=1),1,0) -> 0
B28: Functionaliteit, nuttigheid, hoeveelheid toepassing.
B29: Betreft het een toepassing die voldoet aan Bbk, art. 5? | J29: 1 | K29: (1=ja;0=nee)
B31: BKK
B32: Heeft de gemeente waar de toepassingslocatie is een bodemfunctieklassenkaart? | J32: 0 | K32: (1=ja;0=nee)
J33: 2 | K33: =IF(J32=0,"",IF(OR(J31=1,J32=1),"(0=niet bekend; 1=AW2000; 2=wonen; 3=industrie)","")) ->  | P33: =IF(J32=0,"AW2000",IF(AND(J32=1,J33=1),"AW2000",IF(AND(J32=1,J33=2),"wonen",IF(AND(J32=1,J33=3),"industrie","")))) -> AW2000 | S33: =IF(J32=0,1,J33) -> 1
B34: =IF(J32=1,"Heeft de gemeente waar de toepassingslocatie is een bodemkwaliteitklassenkaart?","") ->  | J34: 0 | K34: =IF(J32=1,"(1=ja;0=nee)","") -> 
B35: =IF(AND(J32=1,J34=0),"Is de bodemkwaliteit ter plekke vastgesteld conform Rbk, art. 4.3.4-1?","") ->  | J35: 0 | K35: =IF(AND(J32=1,J34=0),"(1=ja;0=nee)","") -> 
B36: =IF(J32=0,"",IF(OR(J34=1,J35=1),"Wat is de kwaliteitklasse ter plekke?","")) ->  | J36: 1 | K36: =IF(J32=0,"",IF(OR(J34=1,J35=1),"(0=niet bekend; 1=AW2000; 2=wonen; 3=industrie)","")) ->  | P36: =IF(AND(J32=1,OR(J34=1,J35=1),J36=1),"AW2000",IF(AND(J32=1,OR(J34=1,J35=1),J36=2),"wonen",IF(AND(J32=1,OR(J34=1,J35=1),J36=3),"industrie",""))) ->  | S36: =IF(OR(J32=0,AND(J34=0,J35=0)),1,J36) -> 1 | U36: =MIN(S33:S36) -> 1
B38: Toepassingseis
B39: De toepassingseis conform de BKK: | F39: =IF(U36=1,"AW2000",IF(U36=2,"wonen",IF(U36=3,"industrie",""))) -> AW2000
B41: Toepassing mogelijk / niet mogelijk?
B42: Kwaliteit van de toe te passen grond: | F42: =IF(AND(Bodemkwaliteit!L71="Let op: Deze kwaliteit is beter dan voor samenvoeging",Bodemkwaliteit!H7=1),Bodemkwaliteit!BE8,IF(OR(Bodemkwaliteit!AY71=1,Bodemkwaliteit!AX71=1,Bodemkwaliteit!AX72=5),"niet toepasbaar",IF(OR(Bodemkwaliteit!AY71=2,Bodemkwaliteit!AX72=1),"industrie",IF(Bodemkwaliteit!AX72=2,"wonen",IF(OR(Bodemkwaliteit!AX72=3,Bodemkwaliteit!AX72=4),"AW2000",""))))) -> AW2000 | I42: =IF(AND(K23=1,G24=1,G25=1),"die voldoet aan de emissie toetswaarden","") ->  | S42: =IF(F42="AW2000",1,IF(F42="wonen",2,IF(F42="industrie",3,IF(F42="niet toepasbaar","4",0)))) -> 1
B44: Toepassingseis: | F44: =IF(U36=1,"AW2000",IF(U36=2,"wonen",IF(U36=3,"industrie","niet bekend"))) -> AW2000 | S44: =IF(F44="AW2000",1,IF(F44="wonen",2,IF(F44="industrie",3,IF(F44="niet bekend",4,0)))) -> 1
X45: =IF(AND(S42<=S44,S44=1),1,0) -> 1
B46: Voor de toepassing geldt: | F46: =IF(T20=1,"invoerkeuze a. t/m i. en GBT beperken tot 1 mogelijkheid",IF(OR(T23=1,AND(SUM(K10:K17)+K20=0,S26=1,J29=1)),"De partij kan in de GBT toegepast worden (mits voldaan wordt aan de eisen Bbk, art. 63).",IF(OR(S21=1,S42=4,AND(K23=1,S26=0,SUM(K10:K17)+K20=0),J29=0,AND(X45=0,X46=0,X47=0),OR(G19=2,G19=3)),"De toepassing is niet mogelijk",IF(S19=1,"Bij tijdelijke opslag tot 6 maanden geen toepassingseis",IF(X45=1,"De toepassing is mogelijk",IF(X46=1,"De toepassing is mogelijk",IF(X47=1,"De toepassing is mogelijk",""))))))) -> De toepassing is mogelijk | S46: =MIN(S42:S44) -> 1 | T46: =IF(F46="Bij tijdelijke opslag tot 6 maanden geen toepassingseis",1,IF(F46="invoerkeuze a. t/m i. en GBT beperken tot 1 mogelijkheid",2,IF(F46="de toepassing is niet mogelijk",3,IF(F46="AW2000",4,IF(F46="wonen",5,IF(F46="industrie",6,IF(F46="De partij kan in de GBT toegepast worden (mits voldaan wordt aan de eisen bbk, art. 63).",7,0))))))) -> 0 | U46: =IF(AND(S21=0,OR(J32=0,S46=1)),1,0) -> 1 | X46: =IF(AND(S42<=S44, S44=2),1,0) -> 0
B47: =IF(T46=7,"Kwaliteit van de leeflaag moet zijn:","") ->  | F47: =IF(T46=7,V47,"") ->  | V47: =IF(U46=1,"AW2000",IF(S46=2,"wonen",IF(AND(S46=3,K23=1),"industrie",IF(OR(S21=3,S42=4,S26=0),"de toepassing is niet mogelijk","")))) -> AW2000 | X47: =IF(AND(S42<=S44,S44=3,K23=0),1,0) -> 0 | Z47: =IF(T20=1,"invoerkeuze a. t/m i. en GBT beperken tot 1 mogelijkheid","invoerkeuze aantal is o.k.") -> invoerkeuze aantal is o.k.
F48: =IF(K23=1,Bodemkwaliteit!F76,"") ->  | Z48: =IF(OR(T23=1,AND(SUM(K10+K17)+K20=0,S26=1,J29=1)),"De partij kan in de GBT toegepast worden (mits voldaan wordt aan de eisen Bbk, art. 63).","niet in GBT") -> niet in GBT
B49: =IF(OR(T46=1,T46=4,T46=5,T46=6,T46=7),"De toepassing dient ten minste 5 werkdagen voor aanvang gemeld te worden.","") ->  | Z49: =IF(OR(S21=1,S42=4,AND(K23=1,S26=0,SUM(K10:K17)+K20=0),J29=0,AND(X45=0,X46=0,X47=0),OR(G19=2,G19=3)),"De toepassing is niet mogelijk","anders") -> anders
B50: =IF(T21=1,"Tevens voor afloop van de 6 maanden melden: eindbestemming en de kwaliteit van de bodem onder de tijdelijke opslag.","") -> 

Sheet Partijgrootte
C2: Projectcode: | E2: =Bodemkwaliteit!H3 -> < code > | H2: =Bodemkwaliteit!L3 -> Partij < partijnaam >
C3: Datum toetsing: | E3: =Bodemkwaliteit!H4 -> <datum> | H3: =IF(Bodemkwaliteit!L4="","",Bodemkwaliteit!L4) -> < meldnummer >
C4: Maximale partijgrootte
C6: Eisen Regeling bodemkwaliteit
C7: Rbk, art. 4.3.3 lid 1a: Voor een partijkeuring geldt dat de grootte van de partij maximaal 10.000 ton bedraagt | O7: 10000
C8: Rbk, art. 4.3.3 lid 4: In afwijking van lid 1a geldt voor de bepaling van het gehalte aan asbest
C9: in de bodem en partijen grond overeenkomstig NEN5707 een maximale partijgrootte van 2.000 ton | O9: 2000
C10: Is er sprake van een partijkeuring t.b.v. het bepalen van het gehalte asbest? | I10: 0 | J10: (1=ja;0=nee)
H11: wordt voldaan aan art.2-b v/h productbesluit asbest? | I11: 1 | J11: (1=ja;0=nee) | K11: =IF(I11="","<- 0 of 1 invullen!","") -> 
C13: Rbk, art. 1s en 4.3.4: het samenvoegen van partijen is een erkende werkzaamheid (BRL9335/BRL7500).
C14: Is er sprake van een onder BRL9335/BRL7500 samengevoegde partij? | I14: =Bodemkwaliteit!H7 -> 0 | J14: (ja=1;nee=0) | O14: opmerking: voor onder BRL9335 samengevoegde partijen is de maximale partijgrootte 2.000 ton
O15: Voor onder BRL9335 ingenomen niet-samengevoegde, enkelvoudige, partijen blijft de maximale partijgrootte
O16: conform protocol 1001 maximaal 10.000 ton.
C17: Eisen protocol 1001 en NEN5740
C18: Is er sprake van van een keuring niet-reinigbare grond voor definitieve verwijdering
C19: (ten behoeve van het verkrijgen niet-reinigbaarheidsverklaring Bodem+)? | I19: 0 | J19: (ja=1;nee=0) | O19: =O9 -> 2000
C21: Protocol 1001, par. 6.1.2: bodem en waterbodem (in-situ) resp. grond en baggerspecie (depots - dus na ontgraving)
C22: mogen worden aangemerkt als 1 partij (tot de maximale partijgrootte), indien voldaan wordt aan de volgende eisen:
C24: 1. is er sprake van een eenduidige en gelijke textuur, bepaald overeenkomstig NEN5706? | J24: 1 | K24: (ja=1;nee=0)
C25: 2. is er sprake van aaneengesloten percelen of depots? | J25: 1 | K25: (ja=1;nee=0)
C26: 3. zijn de aangetroffen bijmengingen van de individuele partijen
C27: qua samenstelling en percentage (bepaald cfrm 2001) gelijk? | J27: 1 | K27: (ja=1;nee=0)
C28: 4. Is er sprake van een milieuhygienisch gelijke kwaliteit? | J28: 1 | K28: (ja=1;nee=0)
D29: is dit vastgesteld middels: | H29: =IF(AND(J28=1,J33=0),"tenminste één van onderstaande positief invullen","") ->  | J29: =IF(AND(J24=1,J25=1,J27=1,J28=1),1,0) -> 1
D30: - of een indicatieve partijkeuring? | H30: 0 | I30: (ja=1;nee=0)
D31: - of een verkennend bodemonderzoek? | H31: 1 | I31: (ja=1;nee=0)
D32: - of een bodemverwachtingenkaart (waterbodem)? | H32: 0 | I32: (ja=1;nee=0)
D33: - of een historisch bodemonderzoek en/of BKK? | H33: 0 | I33: (ja=1;nee=0) | J33: =IF(OR(H30=1,H31=1,H32=1,H33=1),1,0) -> 1
F34: Deze kwaliteit is waarschijnlijk: | G34: 1 | H34: (1=AW2000;2=wonen;3=industrie;4=niet-toepasbaar)
C36: Vooronderzoek | E36: =IF(I10=1,"voor asbestverdachte partijen is vooronderzoek conform NEN5707 voorgeschreven","") -> 
C37: Het betreft een keuring ten behoeve van, | G37: =IF(G43=0,"tenminste één van onderstaande positief invullen","") -> 
C38: keuring niet-reinigbare grond: | G38: =IF(I19=1,1,0) -> 0 | H38: (ja=1;nee=0) | K38: =IF(G38=1,"Vooronderzoek is verplicht","") -> 
C39: een ex-situ partij? | G39: 1 | H39: (ja=1;nee=0) | K39: =IF(AND(G39=1,Bodemkwaliteit!H7=1),"voorinformatie conform par. 6.2 noodzakelijk",IF(G39=1,"Vooronderzoek is aanbevolen","")) -> Vooronderzoek is aanbevolen
C40: een in-situ partij? | G40: =IF(G39=1,0,1) -> 0 | H40: (ja=1;nee=0) | K40: =IF(G40=1,"Vooronderzoek is verplicht","") -> 
C41: dieper dan 5 m-mv? | G41: 0 | H41: (ja=1;nee=0) | O41: =O9 -> 2000
C42: onder duurzaam aaneengsloten verhardingslaag? | G42: 0 | H42: (ja=1;nee=0)
G43: =IF(OR(G39=1,G40=1,G38=1,G42=1,G41=1),1,0) -> 1
C44: =IF(G40=1,"bij in-stu onderzoek gelden aanvullende voorschriften:","") -> 
C45: =IF(G40=1,"- vormt het ontgravingsplan de relatie tussen de af te voeren partij en de partijkeuring?","") ->  | J45: 1 | K45: (ja=1;nee=0) | O45: =IF(AND(J45=1,J46=0),1,0) -> 1 | P45: =IF(AND(J45=1,J46=1,J48=0,J50=1),1,0) -> 0 | Q45: =IF(AND(J45=1,J46=1,J48=0,J50=0),1,0) -> 0 | R45: =IF(AND(J45=1,J46=1,J48=1,J50=1),1,0) -> 0 | S45: =IF(AND(J45=1,J46=1,J48=1,J50=0),1,0) -> 0 | T45: =IF(AND(J45=0,J46=0),1,0) -> 0 | U45: =IF(AND(J45=0,J46=1,J48=0,J50=0),1,0) -> 0 | V45: =IF(AND(J45=0,J46=1,J48=0,J50=1),1,0) -> 0 | W45: =IF(AND(J45=0,J46=1,J48=1),1,0) -> 0
C46: =IF(G40=1,"- komen er n.a.v. (veld)onderzoek (proefboringen) afwijkende lagen voor?","") ->  | J46: 0 | K46: (ja=1;nee=0)
C47: =IF(AND(J46=1,J28=1),"Is de milieuhygiensiche kwaliteit wel gelijk? NB: verschillende lagen dienen separaat bemonsterd te worden!",IF(J46=1,"Afwijkende lagen separaat bemonsteren","")) ->  | O47: goed | P47: =IF(OR(O45=1,P45=1,T45=1,V45=1),1,0) -> 1
I48: Worden verschillende lagen separaat bemonsterd? | J48: 1 | K48: (ja=1;nee=0) | O48: goed + | P48: =IF(OR(R45=1,S45=1,W45=1),1,0) -> 0
F49: Is op basis van v.o. vastgesteld dat de lagen eenzelfde | O49: niet | P49: =IF(OR(Q45=1,U45=1),1,0) -> 0
I50: kwaliteit hebben (ontgravinsgplan nog niet bekend)? | J50: 0 | K50: (ja=1;nee=0)
C53: Resumé
C54: =IF(OR(AND(J29=1,G40=0),AND(J29=1,G40=1,P47=1)),"De partij voldoet aan de eisen voor de maximale partijgrootte van:",IF(AND(J29=1,G40=1,P48=1),"De partij dient opgedeeld te worden in meerdere deelpartijen.",IF(OR(J29=0,AND(J29=1,G40=1,P49=1)),"De partij voldoet niet aan de eisen voor de maximale partijgrootte.","fout"))) -> De partij voldoet aan de eisen voor de maximale partijgrootte van: | H54: =IF(AND(J29=1,I10=0,I14=0,I19=0,G42=0,OR(G39=1,AND(G40=1,P47=1))),O7,IF(AND(J29=1,OR(G39=1,AND(G40=1,P47=1)),OR(I10=1,I14=1,I19=1,G42=1)),O9,IF(P48=1,"",""))) -> 10000 | I54: =IF(AND(G40=1,OR(P48=1,P49=1)),"","ton") -> ton
C56: =IF(OR(J29=0,AND(J29=1,G40=1,OR(P48=1,P49=1))),"Welke kleinere partij voldoet wel aan de hierboven genoemde eisen?","") -> 
C57: =IF(OR(J29=0,AND(J29=1,G40=1,OR(P48=1,P49=1))),"S.v.p. het tonnage invullen van die kleinere (deel)partij die wel aan de eisen voldoet:","") ->  | J57: 0 | K57: ton | O57: =IF(H54="",J57,"") ->  | S57: =IF(C57="S.v.p. het tonnage invullen van die kleinere (deel)partij die wel aan de eisen voldoet:",1,0) -> 0
C59: De maximale partijgrootte bedraagt: | F59: =IF(AND(C54="De partij dient opgedeeld te worden in meerdere deelpartijen.",S57=0),"< < < <",IF(AND(J29=1,S57=0),H54,IF(S57=1,J57,"fout"))) -> 10000 | G59: ton (per deelpartij)
C62: =IF(AND(I10=1,Bodemkwaliteit!A60=0),"Let op bij partijkeuring asbest een toetssheet uitkiezen inclusief asbestgehalten","") -> 

Sheet TEQ - dioxines
A1: TEQ berekening
A3: Som TEQ = sommatie van dioxineachtigen (C*TEF) | I3: =Bodemkwaliteit!CB56 -> 0 | R3: =Bodemkwaliteit!CE56 -> 0
I4: =Bodemkwaliteit!D60 -> 1
I5: =Bodemkwaliteit!D61 -> 0
A7: Stof | B7: TEF | G7: C[M--A] mg/kg d.s. | K7: TEQ [M--A] | P7: C[M--B] mg/kg d.s. | T7: TEQ [M--A]
A8: Gechlorineerde dibenzo-p-dioxines | F8: n< | G8: nanogram (10^-9) | I8: C(d) | J8: C(d)-ng | O8: n< | P8: nanogram (10^-9) | S8: C(d)-ng
A9: 2,3,7,8-T(tetra)CDD | B9: 1 | F9: =IF(G9="","",IF(G9="<",1,0)) -> 1 | G9: < | H9: 0.78 | I9: =IF(H9="","",IF(G9="<",0.7*H9,H9)) -> 0.546 | J9: =I9 -> 0.546 | K9: =J9*B9 -> 0.546 | O9: =IF(P9="","",IF(P9="<",1,0)) -> 1 | P9: < | Q9: 0.78 | R9: =IF(Q9="","",IF(P9="<",0.7*Q9,Q9)) -> 0.546 | S9: =R9 -> 0.546 | T9: =S9*B9 -> 0.546
A10: 1,2,3,7,8-Pe(penta)CDD | B10: 1 | F10: =IF(G10="","",IF(G10="<",1,0)) -> 1 | G10: < | H10: 1.4 | I10: =IF(H10="","",IF(G10="<",0.7*H10,H10)) -> 0.98 | J10: =I10 -> 0.98 | K10: 0.98 | O10: 1 | P10: < | Q10: 1.4 | R10: 0.98 | S10: =R10 -> 0.98 | T10: =S10*B10 -> 0.98
A11: 1,2,3,6,7,8-Hx(hexa)CDD | B11: 0.1 | F11: 1 | G11: < | H11: 2.8 | I11: 1.96 | J11: 1.96 | K11: 0.196 | O11: 1 | P11: < | Q11: 2.8 | R11: 1.96 | S11: 1.96 | T11: 0.196
A12: 1,2,3,7,8,9-Hx(hexa)CDD | B12: 0.1 | F12: 1 | G12: < | H12: 2.8 | I12: 1.96 | J12: 1.96 | K12: 0.196 | O12: 1 | P12: < | Q12: 2.8 | R12: 1.96 | S12: 1.96 | T12: 0.196
A13: 1,2,3,4,7,8-Hx(hexa)CDD | B13: 0.1 | F13: 1 | G13: < | H13: 2.8 | I13: 1.96 | J13: 1.96 | K13: 0.196 | O13: 1 | P13: < | Q13: 2.8 | R13: 1.96 | S13: 1.96 | T13: 0.196
A14: 1,2,3,4,6,7,8-Hp(hepta)CDD | B14: 0.01 | F14: 1 | G14: < | H14: 2.8 | I14: 1.96 | J14: 1.96 | K14: 0.0196 | O14: 1 | P14: < | Q14: 2.8 | R14: 1.96 | S14: 1.96 | T14: 0.0196
A15: 1,2,3,4,6,7,8,9-OCDD | B15: 0.0003 | F15: 1 | G15: < | H15: 2.8 | I15: 1.96 | J15: 1.96 | K15: 0.000588 | O15: 1 | P15: < | Q15: 2.8 | R15: 1.96 | S15: 1.96 | T15: 0.000588
A16: Gechlorineerde dibenzofuranen | T16: 0
A17: 2,3,7,8-T(tetra)CDF | B17: 0.1 | F17: 1 | G17: < | H17: 0.98 | I17: 0.686 | J17: =I17 -> 0.686 | K17: =J17*B17 -> 0.0686 | O17: 1 | P17: < | Q17: 0.98 | R17: 0.686 | S17: =R17 -> 0.686 | T17: 0.0686
A18: 1,2,3,7,8-Pe(penta)CDF | B18: 0.03 | F18: 1 | G18: < | H18: 0.98 | I18: 0.686 | J18: 0.686 | K18: 0.02058 | O18: 1 | P18: < | Q18: 0.98 | R18: 0.686 | S18: 0.686 | T18: 0.02058
A19: 1,2,4,7,8-Pe(penta)CDF | B19: 0.3 | F19: 1 | G19: < | H19: 2.3 | I19: 1.61 | J19: 1.61 | K19: 0.483 | O19: 1 | P19: < | Q19: 2.3 | R19: 1.61 | S19: 1.61 | T19: 0.483
A20: 1,2,3,6,7,8-Hx(hexa)CDF | B20: 0.1 | F20: 1 | G20: < | H20: 2.3 | I20: 1.61 | J20: 1.61 | K20: 0.161 | O20: 1 | P20: < | Q20: 2.3 | R20: 1.61 | S20: 1.61 | T20: 0.161
A21: 1,2,3,7,8,9-Hx(hexa)CDF | B21: 0.1 | F21: 1 | G21: < | H21: 2.3 | I21: 1.61 | J21: 1.61 | K21: 0.161 | O21: 1 | P21: < | Q21: 2.3 | R21: 1.61 | S21: 1.61 | T21: 0.161
A22: 1,2,3,4,7,8-Hx(hexa)CDF | B22: 0.1 | F22: 1 | G22: < | H22: 2.3 | I22: 1.61 | J22: 1.61 | K22: 0.161 | O22: 1 | P22: < | Q22: 2.3 | R22: 1.61 | S22: 1.61 | T22: 0.161
A23: 1,2,4,6,7,8-Hx(hexa)CDF | B23: 0.1 | F23: 1 | G23: < | H23: 2.3 | I23: 1.61 | J23: 1.61 | K23: 0.161 | O23: 1 | P23: < | Q23: 2.3 | R23: 1.61 | S23: 1.61 | T23: 0.161
A24: 1,2,3,4,6,7,8-Hp(hepta)CDF | B24: 0.01 | F24: 1 | G24: < | H24: 4.9 | I24: 3.43 | J24: 3.43 | K24: 0.0343 | O24: 1 | P24: < | Q24: 4.9 | R24: 3.43 | S24: 3.43 | T24: 0.0343
A25: 1,2,3,4,7,8,9-Hp(hepta)CDF | B25: 0.01 | F25: 1 | G25: < | H25: 4.9 | I25: 3.43 | J25: 3.43 | K25: 0.0343 | O25: 1 | P25: < | Q25: 4.9 | R25: 3.43 | S25: 3.43 | T25: 0.0343
A26: 1,2,3,4,6,7,8,9-OCDF | B26: 0.0003 | F26: 1 | G26: < | H26: 4.9 | I26: 3.43 | J26: 3.43 | K26: 0.001029 | O26: 1 | P26: < | Q26: 4.9 | R26: 3.43 | S26: 3.43 | T26: 0.001029
A27: PCB's | G27: =IF(Bodemkwaliteit!J48=0,"milligram (10^-3)","microgram (10^-6)") -> milligram (10^-3) | P27: =IF(Bodemkwaliteit!J48=0,"milligram (10^-3)","microgram (10^-6)") -> milligram (10^-3)
A28: PCB77 | B28: 0.0001 | E28: =IF(G28="","",IF(G28="<",1,0)) -> 1 | F28: 1 | G28: < | H28: 0.001 | I28: 0.0007 | J28: =IF($G$27="milligram (10^-3)",I28*0.000001,IF($G$27="microgram (10^-6)",I28*0.001,"fout")) -> 7e-10 | K28: =J28*B28 -> 7e-14 | N28: =IF(P28="","",IF(P28="<",1,0)) -> 1 | O28: 1 | P28: < | Q28: 0.001 | R28: 0.0007 | S28: =IF($P$27="milligram (10^-3)",R28*0.000001,IF($P$27="microgram (10^-6)",R28*0.001,"fout")) -> 7e-10 | T28: 7e-14
A29: PCB81 | B29: 0.0003 | E29: =IF(G29="","",IF(G29="<",1,0)) -> 1 | F29: 1 | G29: < | H29: 0.001 | I29: 0.0007 | J29: =IF($G$27="milligram (10^-3)",I29*0.000001,IF($G$27="microgram (10^-6)",I29*0.001,"fout")) -> 7e-10 | K29: 2.1e-13 | N29: =IF(P29="","",IF(P29="<",1,0)) -> 1 | O29: 1 | P29: < | Q29: 0.001 | R29: 0.0007 | S29: =IF($P$27="milligram (10^-3)",R29*0.000001,IF($P$27="microgram (10^-6)",R29*0.001,"fout")) -> 7e-10 | T29: 2.1e-13
A30: PCB105 | B30: 3e-05 | E30: 1 | F30: 1 | G30: < | H30: 0.001 | I30: 0.0007 | J30: 7e-10 | K30: 2.1e-14 | N30: 1 | O30: 1 | P30: < | Q30: 0.001 | R30: 0.0007 | S30: 7e-10 | T30: 2.1e-14
A31: PCB114 | B31: 3e-05 | E31: 1 | F31: 1 | G31: < | H31: 0.001 | I31: 0.0007 | J31: 7e-10 | K31: 2.1e-14 | N31: 1 | O31: 1 | P31: < | Q31: 0.001 | R31: 0.0007 | S31: 7e-10 | T31: 2.1e-14
A32: PCB118 | B32: 3e-05 | E32: 1 | F32: 1 | G32: =IF(Bodemkwaliteit!H52="","",Bodemkwaliteit!H52) -> < | H32: =IF(V32=0,Bodemkwaliteit!I52,IF(V32=1,0.001*Bodemkwaliteit!I52,"fout")) -> 0.001 | I32: 0.0007 | J32: 7e-10 | K32: 2.1e-14 | N32: 1 | O32: 1 | P32: =IF(Bodemkwaliteit!J52="","",Bodemkwaliteit!J52) -> < | Q32: =IF(V32=0,Bodemkwaliteit!K52,IF(V32=1,0.001*Bodemkwaliteit!K52,"fout")) -> 0.001 | R32: 0.0007 | S32: 7e-10 | T32: 2.1e-14 | V32: =Bodemkwaliteit!J48 -> 0
A33: PCB123 | B33: 3e-05 | E33: 1 | F33: 1 | G33: < | H33: 0.001 | I33: 0.0007 | J33: 7e-10 | K33: 2.1e-14 | N33: 1 | O33: 1 | P33: < | Q33: 0.001 | R33: 0.0007 | S33: 7e-10 | T33: 2.1e-14
A34: PCB126 | B34: 0.1 | E34: 1 | F34: 1 | G34: < | H34: 0.001 | I34: 0.0007 | J34: 7e-10 | K34: 7e-11 | N34: 1 | O34: 1 | P34: < | Q34: 0.001 | R34: 0.0007 | S34: 7e-10 | T34: 7e-11
A35: PCB156 | B35: 3e-05 | E35: 1 | F35: 1 | G35: < | H35: 0.001 | I35: 0.0007 | J35: 7e-10 | K35: 2.1e-14 | N35: 1 | O35: 1 | P35: < | Q35: 0.001 | R35: 0.0007 | S35: 7e-10 | T35: 2.1e-14
A36: PCB157 | B36: 3e-05 | E36: 1 | F36: 1 | G36: < | H36: 0.001 | I36: 0.0007 | J36: 7e-10 | K36: 2.1e-14 | N36: 1 | O36: 1 | P36: < | Q36: 0.001 | R36: 0.0007 | S36: 7e-10 | T36: 2.1e-14
A37: PCB167 | B37: 3e-05 | E37: 1 | F37: 1 | G37: < | H37: 0.001 | I37: 0.0007 | J37: 7e-10 | K37: 2.1e-14 | N37: 1 | O37: 1 | P37: < | Q37: 0.001 | R37: 0.0007 | S37: 7e-10 | T37: 2.1e-14
A38: PCB169 | B38: 0.03 | E38: 1 | F38: 1 | G38: < | H38: 0.001 | I38: 0.0007 | J38: 7e-10 | K38: 2.1e-11 | N38: 1 | O38: 1 | P38: < | Q38: 0.001 | R38: 0.0007 | S38: 7e-10 | T38: 2.1e-11
A39: PCB189 | B39: 3e-05 | E39: 1 | F39: 1 | G39: < | H39: 0.001 | I39: 0.0007 | J39: 7e-10 | K39: 2.1e-14 | N39: 1 | O39: 1 | P39: < | Q39: 0.001 | R39: 0.0007 | S39: 7e-10 | T39: 2.1e-14
D40: =IF(AND(G32="",E40=11,G41=28),1,0) -> 0 | E40: =SUM(E9:E39) -> 12 | M40: =IF(AND(P32="",N40=11,P41=28),1,0) -> 0 | N40: =SUM(N9:N39) -> 12
B41: (aantal <d) | G41: =SUM(F9:F39) -> 29 | P41: =SUM(O9:O39) -> 29
J42: =IF(G47="som dioxines wordt niet bepaald",1,0) -> 0 | S42: =IF(P47="som dioxines wordt niet bepaald",1,0) -> 0
A43: Som TEQ | K43: =SUM(K9:K39) -> 3.419997 | M43: ng (nanogram) | Q43: ng (nanogram) | T43: =SUM(T9:T39) -> 3.419997
K44: =K43/10^3 -> 0.003419997 | M44: μg (microgram) | Q44: μg (microgram) | T44: =T43/10^3 -> 0.003419997
I45: =IF(AND(G41=29,K43/10^6>=0.000011),1,0) -> 0 | K45: =IF(J42=1,0.000011,IF(AND(G41=29,K43/10^6>=0.000011),0.000011,K43/10^6)) -> 3.419997e-06 | M45: mg (milligram) | Q45: mg (milligram) | R45: =IF(AND(P41=29,T43/10^6>=0.000011),1,0) -> 0 | T45: =IF(S42=1,0.000011,IF(AND(P41=29,T43/10^6>=0.000011),0.000011,T43/10^6)) -> 3.419997e-06
G47: =IF(AND(I3=1,I4=1,I5=0),"som dioxines wordt niet bepaald","") ->  | P47: =IF(AND(R3=1,I4=1,I5=0),"som dioxines wordt niet bepaald","") -> 

Sheet Bodemkwaliteit
F1: Regeling Bodemkwaliteit, bijlage B, tabel 1: Normwaarden voor toepassing van grond en baggerspecie op of in de bodem, | AW1: Als de grond wordt geclassificeerd als zijnde "industrie<x<i-waarde" kan deze in bepaalde gevallen onder gebiedspecifiek beleid inzetbaar zijn.
F2: voor de bodem waarop grond of bagger wordt toegepast en voor verspreiden van baggerspecie over het aangrenzende perceel. | AW2: Indien dit niet aan de orde is kunt u ervoor keizen om in plaats van "industrie<x<i-waarde" de classificatie "niet toepasbare grond" weer te geven.
F3: Project(code): | H3: < code > | L3: Partij < partijnaam > | AW3: 1 | AX3: (1=weergave "industrie<x<i-waarde", 0=weergave "niet-toepasbare grond")
F4: Datum toetsing: | H4: <datum> | L4: < meldnummer >
F5: partijgrootte (ton) | H5: 10000 | K5: =IF(AR5="< < < <","<- blad 'Partijgrootte' volgen!","") ->  | Q5: =IF(H5<=AR5,1,"niet mogelijk") -> 1 | AG5: maximale partijgrootte cfrm eisen Rbk en protocol 1001: | AR5: =IF(H8=0,0,Partijgrootte!F59) -> 10000 | AS5: ton | BE5: uit Bbk: | BG5: uit tabel 1 als niet aangesloten of veelvoudige afkomst
F6: soort keuring->gebruiker=1; handhaver=0 | H6: 1 | I6: =IF(H6=1,"Zekerheidsfactor =",IF(H6=0,"Afkeurfactor =","fout")) -> Zekerheidsfactor = | J6: =IF(H6=1,AE6,IF(H6=0,AR6,"fout")) -> 1 | Q6: =IF(H6=1,J6,IF(H6=0,1/J6,"fout")) -> 1 | AD6: standaard zekerheidsfactor ZF = | AE6: 1 | AG6: standaard afkeurfactor AF= | AR6: 1.4 | BE6: 10000 | BG6: 2000 | BH6: =Partijgrootte!F59 -> 10000
F7: betreft het een keuring ihkv BRL9335? | H7: 0 | I7: (1=ja;0=nee) | J7: =IF(AND(H5>BG6,H7=1,H8=1),"Opmerking: conform par. 6.5 van BRL9335 is de maximale partijgrootte voor samengestelde partijen","") ->  | AE7: =IF(AND(H5>BG6,H7=1,H8=0),BG6,"") ->  | AG7: =IF(AND(H5>BG6,H7=1,H8=0),"ton.","") -> 
F8: blad partijgrootte doorlopen?: | H8: 1 | I8: (1=ja;0=nee) | J8: =IF(AND(H7=1,H8=1),"de indicatieve kwaliteit van de samengevoegde partijen is:","") ->  | Z8: 2 | AD8: =IF(AND(H7=1,H8=1),"(1=AW2000;2=wonen;3=industrie)","") ->  | AG8: =IF(Z8=1,1,IF(Z8=2,2,IF(Z8=3,3,""))) -> 2 | BE8: =IF(AND(H7=1,Z8=1),"AW2000",IF(AND(H7=1,Z8=2),"wonen",IF(AND(H7=1,Z8=3),"industrie",""))) -> 
F9: betreft het baggerspecie in een grootschalige toepassing? | K9: 0 | L9: (1=ja;0=nee) | BE9: 2013-01-01 | BF9: =BE9 -> 41275 | BG9: 2014-01-01 | BH9: =BG9 -> 41640
F10: betreft het thermisch gereinigde grond/baggerspecie? | K10: 0 | L10: (1=ja;0=nee) | AR10: =Partijgrootte!I11 -> 1 | BE10: 2013-07-01 | BF10: =BE10 -> 41456
F11: betreft het een partij zeezand niet toegepast in zout water? | K11: 0 | L11: (1=ja;0=nee) | BE11: 2015-01-01 | BF11: =BE11 -> 42005 | BG11: nu: | BH11: =NOW() -> 2017-05-03T15:30:46.910 | BI11: =BH11 -> 42858.64638
F12: betreft het tarragrond waarin org. stoffen als gevolg van natuurlijke processen? | K12: 0 | L12: (1=ja;0=nee)
F13: betreft het (schone en onverdachte) tarragrond van aardappelen? | K13: 0 | L13: (1=ja;0=nee) | U13: toepassing v/deze aardappeltarra op de bodem of oever van een opp.waterlichaam? | AF13: 0 | AG13: (1=ja;0=nee)
F14: percentage bodemvreemd materiaal: | J14: 1 | K14: % m/m | L14: =IF(J14<=AR14,1,"niet mogelijk") -> 1 | AG14: max. %-age bodemvreemd materiaal conform art. 34 Bbk: | AR14: 20 | AS14: % m/m | BE14: Rapportagegrens
F15: grepen: | G15: 2 maal | J15: 50 | AD15: Rbk, art. 4.2.2-4 | AE15: X | AG15: Y
F16: Macroparameters | I16: M--A | K16: M--B | L16: M--gem | Y16: M--reken | AD16: X- en Y-waarden | AE16: 2 | AG16: 1 | BA16: Labo-d of BG | BE16: BG | BF16: ag | BG16: Labo-d | BH16: AS3000
F17: pH-waarde | I17: 7 | K17: 7 | L17: =(I17+K17)/2 -> 7 | Y17: =L17 -> 7 | AD17: voor toetsing | AE17: 7 | AG17: 2 | BE17: rap-grens | BG17: AP04 | BH17: AG r,eis
F18: droge stof gehalte (massa-%) | I18: 100 | K18: 100 | L18: =(I18+K18)/2 -> 100 | Y18: =L18 -> 100 | AD18: aan de | AE18: 16 | AG18: 3 | BC18: =F17 -> pH-waarde | BF18: n.v.t. | BH18: n.v.t. | BJ18: heeft te maken | BK18: met | BL18: tarra
F19: lutum gehalte in % d.s. | I19: 25 | K19: 25 | L19: =(I19+K19)/2 -> 25 | Y19: =IF(I19<2,2,I19) -> 25 | Z19: =IF(K19<2,2,K19) -> 25 | AD19: achtegrondwaarden | AE19: 27 | AG19: 4 | BC19: droge stof | BE19: 0.003 | BF19: 0.001 | BH19: n.v.t.
F20: organisch stofgehalte in % d.s. | I20: 10 | K20: 10 | L20: =(I20+K20)/2 -> 10 | Y20: =+IF(I20>30,30,IF(I20<2,2,I20)) -> 10 | Z20: =+IF(K20>30,30,IF(K20<2,2,K20)) -> 10 | AD20: (N,Tw-toets) | AE20: 37 | AG20: 5 | BC20: lutum | BE20: 0.015 | BF20: 0.005 | BH20: 0.01
F21: toetswijze: | G21: 1 | I21: (1: toetsen gecorrigeerde gemiddelde meetwaarde aan standaard toetswaarden; 0: toetsen gemiddelde meetwaarde aan gecorrigeerde toetswaarden [pre 1-7-2013])
F22: Parameter, opgaven in mg/kg d.s. | W22: 2.5 | Z22: =Y-max | BC22: organische stof | BE22: 0.006 | BF22: 0.002 | BH22: 0.002 | BJ22: Rbk, waarden uit bijlage B, tabel 1 | BO22: Circulaire | BS22: Rbk, bijlage G, tabel 1 | BV22: <1-7-2013 | BX22: >1-7-2013
H23: C[M--A] mg/kg d.s. | J23: C[M--B] mg/kg d.s. | L23: C[gem] | M23: A | O23: B | Q23: A*CF | R23: B*CF | S23: A-corr | T23: B-corr | U23: C[gem]-corr | W23: Ch:Cl | Y23: toets | AA23: <d,bniet2 | AD23: =IF(G21=1,"AW2000","AW2000-cor") -> AW2000 | AE23: aw-sec | AF23: AW of w | AG23: N,T-toets | AH23: a<x<2a | AI23: a<x<w | AJ23: a<x<2a en x<w | AK23: ax2ani | AL23: 2a<x<w | AM23: 2axw-ni | AO23: w<x<ind | AP23: ind<x<i-w | AQ23: >i-waarde | AR23: =IF(G21=1,"wonen","wonen-cor") -> wonen | AS23: =IF(G21=1,"industrie","industrie-cor") -> industrie | AT23: =IF(G21=1,"i-waarde","i-waarde-cor") -> i-waarde | AW23: N | AY23: BG/d-i | AZ23: BG/d-in | BA23: BG/d-w | BJ23: aw2000 | BK23: wonen | BL23: industrie | BO23: i-waarde | BS23: a | BT23: b | BU23: c | BV23: A | BW23: B | BX23: A | BY23: B
F24: 1. Metalen | I24: mg/kg | K24: mg/kg | Z24: <=AW2000
F25: =IF(U25<920,"barium","barium, anropogeen (1=ja;0=nee)") -> barium | G25: 1 | I25: 190 | K25: 190 | L25: =(Q25+R25)/2 -> 190 | M25: =IF(I25="","",IF(H25="<",0.7*I25,I25)) -> 190 | N25: =IF(AE25="","",IF(AND(H25="<",I25<=BE25,OR(AND(I25>AE25,$G$21=0),AND(I25>AE25*BV25,$G$21=1))),1,0)) -> 0 | O25: =IF(K25="","",IF(J25="<",0.7*K25,K25)) -> 190 | P25: =IF(AE25="","",IF(AND(J25="<",K25<=BE25,OR(AND(K25>AE25,$G$21=0),AND(K25>AE25*BV25,$G$21=1))),1,0)) -> 0 | Q25: =IF(I25="","",IF(AND(H25="<",G25=2),0.7*I25,$Q$6*M25)) -> 190 | R25: =IF(K25="","",IF(AND(J25="<",G25=2),0.7*K25,$Q$6*O25)) -> 190 | S25: =IF(Q25="","",IF($G$21=0,Q25,IF($G$21=1,Q25*BX25,"fout"))) -> 190 | T25: =IF(R25="","",IF($G$21=0,R25,IF($G$21=1,R25*BY25,"fout"))) -> 190 | U25: =IF(OR(Q25="",R25=""),"",(S25+T25)/2) -> 190 | W25: =IF(OR(I25="",K25=""),"",MAX(I25/K25,K25/I25)) -> 1 | X25: =IF(W25>$W$22,1,0) -> 0 | Y25: =IF(U25="","",IF(COUNTBLANK(AE25)=1,"",IF(AND(COUNTBLANK(AT25)=0,U25>AT25),">i-waarde",IF(AND(N25=1,P25=1),"<=AW2000",IF(AND(COUNTBLANK(AS25)=0,U25>AS25),">Eis industrie",IF(AND(COUNTBLANK(AR25)=0,U25>AR25),">Eis wonen",IF(U25>AD25,">AW2000",IF(U25<=AE25,"<=AW2000","")))))))) -> <=AW2000 | AA25: =IF(AND(N25=1,P25=1),1,0) -> 0 | AB25: =IF(OR(Y25=">AW2000",Y25=">Eis wonen",Y25=">Eis industrie"),1,0) -> 0 | AC25: =IF(Y25=">i-waarde",1,0) -> 0 | AD25: =IF(AE25="","",AE25) -> 920 | AE25: =IF($G$21=0,BJ25*(BV25+BW25)/2,BJ25) -> 920 | AF25: =IF(AE25="","",IF(2*AE25<AR25,2*AE25,AR25)) -> 920 | AG25: =+IF(U25="","",IF(COUNTBLANK(AE25)=1,"",IF(OR(Y25="<=AW2000",U25<=AD25),"<=AW2000",IF(AND(AH25=1,AO25=0,AP25=0,AQ25=0),"AW2000<x<=2*AW2000",IF(AI25=1,"AW2000<x<=wonen",IF(AO25=1,"wonen<x<=industrie",IF(AP25=1,"industrie<x<=i-waarde",IF(AQ25=1,">i-waarde","")))))))) -> <=AW2000 | AH25: =IF(AA25=1,"",IF(AE25="","",IF(AND(U25>AD25,U25<=2*AE25),1,0))) -> 0 | AI25: =IF(AA25=1,"",IF(AE25="","",IF(AND(COUNTBLANK(AR25)=0,U25>AD25,U25<=AR25),1,0))) -> 0 | AJ25: =IF(AA25=1,"",IF(AE25="","",IF(AND(COUNTBLANK(AR25)=0,U25>AD25,U25<=2*AE25),1,0))) -> 0 | AL25: =IF(AA25=1,"",IF(AE25="","",IF(Y25="<=AW2000",0,IF(AND(COUNTBLANK(AR25)=0,U25>2*AE25),1,0)))) -> 0 | AM25: =IF(AA25=1,"",IF(Y25="<=AW2000",0,IF(AE25="","",IF(AND(COUNTBLANK(AR25)=0,U25>2*AE25),1,0)))) -> 0 | AN25: =IF(AA25=1,"",IF(AE25="","",IF(AL25>0,1,0))) -> 0 | AO25: =IF(AA25=1,"",IF(Y25="<=AW2000",0,IF(AND(COUNTBLANK(AR25:AS25)=0,U25>AR25,U25<=AS25),1,0))) -> 0 | AP25: =IF(AA25=1,"",IF(Y25="<=AW2000",0,IF(AND(COUNTBLANK(AS25:AT25)=0,U25>AS25,U25<=AT25),1,0))) -> 0 | AQ25: =IF(AND(COUNTBLANK(AT25)=0,U25>AT25),1,0) -> 0 | AR25: =IF(BK25="","",IF($G$21=0,BK25*(BV25+BW25)/2,BK25)) -> 920 | AS25: =IF(BL25="","",IF($G$21=0,BL25*(BV25+BW25)/2,BL25)) -> 920 | AT25: =IF(BO25="","",IF($G$21=0,BO25*(BV25+BW25)/2,BO25)) -> 920 | AY25: =IF(AND(H25="<",J25="<",I25=K25,Q25>AU25),1,0) -> 0 | AZ25: =IF(AND(H25="<",J25="<",I25=K25,Q25>AS25),1,0) -> 0 | BA25: =IF(AND(H25="<",J25="<",I25=K25,Q25>AR25),1,0) -> 0 | BD25: =BZ25 -> barium | BE25: 20 | BF25: 13 | BG25: 15 | BH25: 15 | BJ25: =IF(AND($G$25=0,$U$25>920),10000,920) -> 920 | BK25: =IF(AND($G$25=0,$U$25>920),10000,920) -> 920 | BL25: =IF(AND($G$25=0,$U$25>920),10000,920) -> 920 | BO25: =IF(AND($G$25=0,$U$25>920),10000,920) -> 920 | BP25: L-Barium | BQ25: 10 | BS25: 30 | BT25: 5 | BU25: 0 | BV25: =((BS25+IF(AND($Y$19<$BQ$25,$K$10=1),$BQ$25*BT25,$Y$19*BT25)+$Y$20*BU25)/(BS25+25*BT25+10*BU25)) -> 1 | BW25: =((BS25+IF(AND($Z$19<$BQ$25,$K$10=1),$BQ$25*BT25,$Z$19*BT25)+$Z$20*BU25)/(BS25+25*BT25+10*BU25)) -> 1 | BX25: =((BS25+25*BT25+10*BU25)/(BS25+IF(AND($Y$19<$BQ$25,$K$10=1),$BQ$25*BT25,$Y$19*BT25)+$Y$20*BU25)) -> 1 | BY25: =((BS25+25*BT25+10*BU25)/(BS25+IF(AND($Z$19<$BQ$25,$K$10=1),$BQ$25*BT25,$Z$19*BT25)+$Z$20*BU25)) -> 1 | BZ25: =F25 -> barium
F26: cadmium | I26: 0.6 | K26: 0.6 | L26: 0.6 | M26: 0.6 | N26: 0 | O26: 0.6 | P26: 0 | Q26: 0.6 | R26: 0.6 | S26: 0.6 | T26: 0.6 | U26: 0.6 | W26: 1 | X26: 0 | Y26: <=AW2000 | AA26: 0 | AB26: 0 | AC26: 0 | AD26: 0.6 | AE26: 0.6 | AF26: 1.2 | AG26: <=AW2000 | AH26: 0 | AI26: 0 | AJ26: 0 | AL26: 0 | AM26: 0 | AN26: 0 | AO26: 0 | AP26: 0 | AQ26: 0 | AR26: 1.2 | AS26: 4.3 | AT26: 13 | AW26: =IF(Q26="","",1) -> 1 | AY26: 0 | AZ26: 0 | BA26: 0 | BD26: cadmium | BE26: 0.2 | BF26: 0.1 | BG26: 0.17 | BH26: 0.17 | BJ26: 0.6 | BK26: 1.2 | BL26: 4.3 | BO26: 13 | BS26: 0.4 | BT26: 0.007 | BU26: 0.021 | BV26: 1 | BW26: 1 | BX26: 1 | BY26: 1 | BZ26: cadmium
F27: kobalt | I27: 15 | K27: 15 | L27: 15 | M27: 15 | N27: 0 | O27: 15 | P27: 0 | Q27: 15 | R27: 15 | S27: 15 | T27: 15 | U27: 15 | W27: 1 | X27: 0 | Y27: <=AW2000 | AA27: 0 | AB27: 0 | AC27: 0 | AD27: 15 | AE27: 15 | AF27: 30 | AG27: <=AW2000 | AH27: 0 | AI27: 0 | AJ27: 0 | AL27: 0 | AM27: 0 | AN27: 0 | AO27: 0 | AP27: 0 | AQ27: 0 | AR27: 35 | AS27: 190 | AT27: 190 | AW27: 1 | AY27: 0 | AZ27: 0 | BA27: 0 | BD27: kobalt | BE27: 3 | BF27: 0.7 | BG27: 1 | BH27: 1 | BJ27: 15 | BK27: 35 | BL27: 190 | BO27: 190 | BS27: 2 | BT27: 0.28 | BU27: 0 | BV27: 1 | BW27: 1 | BX27: 1 | BY27: 1 | BZ27: kobalt
F28: koper | I28: 40 | K28: 40 | L28: 40 | M28: 40 | N28: 0 | O28: 40 | P28: 0 | Q28: 40 | R28: 40 | S28: 40 | T28: 40 | U28: 40 | W28: 1 | X28: 0 | Y28: <=AW2000 | AA28: 0 | AB28: 0 | AC28: 0 | AD28: 40 | AE28: 40 | AF28: 54 | AG28: <=AW2000 | AH28: 0 | AI28: 0 | AJ28: 0 | AL28: 0 | AM28: 0 | AN28: 0 | AO28: 0 | AP28: 0 | AQ28: 0 | AR28: 54 | AS28: 190 | AT28: 190 | AW28: 1 | AY28: 0 | AZ28: 0 | BA28: 0 | BD28: koper | BE28: 5 | BF28: 1.7 | BG28: 5 | BH28: 5 | BJ28: 40 | BK28: 54 | BL28: 190 | BO28: 190 | BS28: 15 | BT28: 0.6 | BU28: 0.6 | BV28: 1 | BW28: 1 | BX28: 1 | BY28: 1 | BZ28: koper
F29: kwik | I29: 0.15 | K29: 0.15 | L29: 0.15 | M29: 0.15 | N29: 0 | O29: 0.15 | P29: 0 | Q29: 0.15 | R29: 0.15 | S29: 0.15 | T29: 0.15 | U29: 0.15 | W29: 1 | X29: 0 | Y29: <=AW2000 | AA29: 0 | AB29: 0 | AC29: 0 | AD29: 0.15 | AE29: 0.15 | AF29: 0.3 | AG29: <=AW2000 | AH29: 0 | AI29: 0 | AJ29: 0 | AL29: 0 | AM29: 0 | AN29: 0 | AO29: 0 | AP29: 0 | AQ29: 0 | AR29: 0.83 | AS29: 4.8 | AT29: 36 | AW29: 1 | AY29: 0 | AZ29: 0 | BA29: 0 | BD29: kwik | BE29: 0.05 | BF29: 0.01 | BG29: 0.05 | BH29: 0.05 | BJ29: 0.15 | BK29: 0.83 | BL29: 4.8 | BO29: 36 | BS29: 0.2 | BT29: 0.0034 | BU29: 0.0017 | BV29: 1 | BW29: 1 | BX29: 1 | BY29: 1 | BZ29: kwik
F30: lood | I30: 50 | K30: 50 | L30: 50 | M30: 50 | N30: 0 | O30: 50 | P30: 0 | Q30: 50 | R30: 50 | S30: 50 | T30: 50 | U30: 50 | W30: 1 | X30: 0 | Y30: <=AW2000 | AA30: 0 | AB30: 0 | AC30: 0 | AD30: 50 | AE30: 50 | AF30: 100 | AG30: <=AW2000 | AH30: 0 | AI30: 0 | AJ30: 0 | AL30: 0 | AM30: 0 | AN30: 0 | AO30: 0 | AP30: 0 | AQ30: 0 | AR30: 210 | AS30: 530 | AT30: 530 | AW30: 1 | AY30: 0 | AZ30: 0 | BA30: 0 | BD30: lood | BE30: 10 | BF30: 1 | BG30: 3 | BH30: 3 | BJ30: 50 | BK30: 210 | BL30: 530 | BO30: 530 | BS30: 50 | BT30: 1 | BU30: 1 | BV30: 1 | BW30: 1 | BX30: 1 | BY30: 1 | BZ30: lood
F31: molybdeen | I31: 0.5 | K31: 0.5 | L31: 0.5 | M31: 0.5 | N31: 0 | O31: 0.5 | P31: 0 | Q31: 0.5 | R31: 0.5 | S31: 0.5 | T31: 0.5 | U31: 0.5 | W31: 1 | X31: 0 | Y31: <=AW2000 | AA31: 0 | AB31: 0 | AC31: 0 | AD31: 1.5 | AE31: 1.5 | AF31: 3 | AG31: <=AW2000 | AH31: 0 | AI31: 0 | AJ31: 0 | AL31: 0 | AM31: 0 | AN31: 0 | AO31: 0 | AP31: 0 | AQ31: 0 | AR31: 88 | AS31: 190 | AT31: 190 | AW31: 1 | AY31: 0 | AZ31: 0 | BA31: 0 | BD31: molybdeen | BE31: 1.5 | BF31: 0.5 | BG31: 0.5 | BH31: 0.5 | BJ31: 1.5 | BK31: 88 | BL31: 190 | BO31: 190 | BS31: 1 | BT31: 0 | BU31: 0 | BV31: 1 | BW31: 1 | BX31: 1 | BY31: 1 | BZ31: molybdeen
F32: nikkel | I32: 35 | K32: 35 | L32: 35 | M32: 35 | N32: 0 | O32: 35 | P32: 0 | Q32: 35 | R32: 35 | S32: 35 | T32: 35 | U32: 35 | W32: 1 | X32: 0 | Y32: <=AW2000 | AA32: 0 | AB32: 0 | AC32: 0 | AD32: 35 | AE32: 35 | AF32: 70 | AG32: <=AW2000 | AH32: 0 | AI32: 0 | AJ32: 0 | AK32: =IF(AA32=1,"",IF(AE32="","",IF(AND(COUNTBLANK(AR32)=0,U32>AD32,U32<=2*AE32),1,0))) -> 0 | AL32: 0 | AN32: 0 | AO32: 0 | AP32: 0 | AQ32: 0 | AR32: 70 | AS32: 100 | AT32: 100 | AW32: 1 | AY32: 0 | AZ32: 0 | BA32: 0 | BD32: nikkel | BE32: 4 | BF32: 4.3 | BG32: 13 | BH32: 13 | BJ32: 35 | BK32: =IF(OR(AM60>0,AND(AJ60>AX66,AK60=1)),39,70) -> 70 | BL32: 100 | BO32: 100 | BS32: 10 | BT32: 1 | BU32: 0 | BV32: 1 | BW32: 1 | BX32: 1 | BY32: 1 | BZ32: nikkel
F33: zink | I33: 100 | K33: 100 | L33: 100 | M33: 100 | N33: 0 | O33: 100 | P33: 0 | Q33: 100 | R33: 100 | S33: 100 | T33: 100 | U33: 100 | W33: 1 | X33: 0 | Y33: <=AW2000 | AA33: 0 | AB33: 0 | AC33: 0 | AD33: 140 | AE33: 140 | AF33: 200 | AG33: <=AW2000 | AH33: 0 | AI33: 0 | AJ33: 0 | AL33: 0 | AM33: =IF(AA33=1,"",IF(Y33="<=AW2000",0,IF(AE33="","",IF(AND(COUNTBLANK(AR33)=0,U33>2*AE33),1,0)))) -> 0 | AN33: 0 | AO33: 0 | AP33: 0 | AQ33: 0 | AR33: 200 | AS33: 720 | AT33: 720 | AW33: 1 | AX33: =SUM(AW25:AW33) -> 8 | AY33: 0 | AZ33: 0 | BA33: 0 | BD33: zink | BE33: 20 | BF33: 7 | BG33: 17 | BH33: 17 | BJ33: 140 | BK33: 200 | BL33: 720 | BO33: 720 | BS33: 50 | BT33: 3 | BU33: 1.5 | BV33: 1 | BW33: 1 | BX33: 1 | BY33: 1 | BZ33: zink
F34: 4. Polycyclische aromatische koolwaterstoffen (PAK's) | Z34: =+IF(COUNTBLANK(AE34)=1,"",IF(AND(COUNTBLANK(AT34)=0,Q34>AT34),">i-waarde",IF(AND(COUNTBLANK(AS34)=0,Q34>AS34),">Eis industrie",IF(AND(COUNTBLANK(AR34)=0,Q34>AR34),">Eis wonen",IF(K34>AD34,">AW2000",IF(Q34<=AE34,"<=AW2000","")))))) ->  | BB34: 0 | BC34: ="0=PAKvolgorde Rbk 1..10; 1= 1,3,2,4,6,5,7,10,8,9 [Alcontrol]; 2= 1,2,3,6,5,4,8,10,9,7 [Eurofins/Envirocontrol]; 3= 1,2,3,4,6,5,8,7,10,9 [Omegam]; 4= 3,6,10,8,7,5,2,4,9,1 [AL-West/Agrolab]; 5= 3,2,1,4,6,5,8,7,10,9 [Agrolab]" -> 0=PAKvolgorde Rbk 1..10; 1= 1,3,2,4,6,5,7,10,8,9 [Alcontrol]; 2= 1,2,3,6,5,4,8,10,9,7 [Eurofins/Envirocontrol]; 3= 1,2,3,4,6,5,8,7,10,9 [Omegam]; 4= 3,6,10,8,7,5,2,4,9,1 [AL-West/Agrolab]; 5= 3,2,1,4,6,5,8,7,10,9 [Agrolab] | BZ34: 4. Polycyclische aromatische koolwaterstoffen (PAK's)
C35: =(IF(AND(ISNUMBER(I35)=TRUE,ISNUMBER(K35)=TRUE),1,0)) -> 1 | F35: =IF(BB34=0,"naftaleen",IF(BB34=1,"naftaleen",IF(BB34=2,"naftaleen",IF(BB34=3,"naftaleen",IF(BB34=4,"antraceen",IF(BB34=5,"antraceen","fout")))))) -> naftaleen | G35: =IF(AND(H35="<",J35="<"),1,0) -> 1 | H35: < | I35: 0.01 | J35: < | K35: 0.01 | L35: =(Q35+R35)/2 -> 0.007 | M35: =IF(I35="","",IF(H35="<",0.7*I35,I35)) -> 0.007 | N35: =IF(AE35="","",IF(AND(H35="<",I35<=BE35,OR(AND(I35>AE35,$G$21=0),AND(I35>AE35*BV35,$G$21=1))),1,0)) ->  | O35: =IF(K35="","",IF(J35="<",0.7*K35,K35)) -> 0.007 | P35: =IF(AE35="","",IF(AND(J35="<",K35<=BE35,OR(AND(K35>AE35,$G$21=0),AND(K35>AE35*BV35,$G$21=1))),1,0)) ->  | Q35: =IF(I35="","",IF(AND(H35="<",G35=2),0.7*I35,$Q$6*M35)) -> 0.007 | R35: =IF(K35="","",IF(AND(J35="<",G35=2),0.7*K35,$Q$6*O35)) -> 0.007 | S35: =IF(Q35="","",IF($G$21=0,Q35,IF($G$21=1,Q35*BX35,"fout"))) -> 0.007 | T35: =IF(R35="","",IF($G$21=0,R35,IF($G$21=1,R35*BY35,"fout"))) -> 0.007 | U35: =IF(OR(Q35="",R35=""),"",(S35+T35)/2) -> 0.007 | W35: =IF(OR(I35="",K35=""),"",MAX(I35/K35,K35/I35)) -> 1 | X35: =IF(W35>$W$22,1,0) -> 0 | Y35: =IF(U35="","",IF(COUNTBLANK(AE35)=1,"",IF(AND(COUNTBLANK(AT35)=0,U35>AT35),">i-waarde",IF(AND(N35=1,P35=1),"<=AW2000",IF(AND(COUNTBLANK(AS35)=0,U35>AS35),">Eis industrie",IF(AND(COUNTBLANK(AR35)=0,U35>AR35),">Eis wonen",IF(U35>AD35,">AW2000",IF(U35<=AE35,"<=AW2000","")))))))) ->  | AA35: =IF(AND(N35=1,P35=1),1,0) -> 0 | AB35: =IF(OR(Y35=">AW2000",Y35=">Eis wonen",Y35=">Eis industrie"),1,0) -> 0 | AC35: =IF(Y35=">i-waarde",1,0) -> 0 | AD35: =IF(AE35="","",AE35) ->  | AE35: =IF(BJ35="","",IF($G$21=0,BJ35*(BV35+BW35)/2,BJ35)) ->  | AF35: =IF(AE35="","",IF(2*AE35<AR35,2*AE35,AR35)) ->  | AG35: =+IF(U35="","",IF(COUNTBLANK(AE35)=1,"",IF(OR(Y35="<=AW2000",U35<=AD35),"<=AW2000",IF(AND(AH35=1,AO35=0,AP35=0,AQ35=0),"AW2000<x<=2*AW2000",IF(AI35=1,"AW2000<x<=wonen",IF(AO35=1,"wonen<x<=industrie",IF(AP35=1,"industrie<x<=i-waarde",IF(AQ35=1,">i-waarde","")))))))) ->  | AI35: =IF(AA35=1,"",IF(AE35="","",IF(AND(COUNTBLANK(AR35)=0,U35>AD35,U35<=AR35),1,0))) ->  | AJ35: =IF(AA35=1,"",IF(AE35="","",IF(AND(COUNTBLANK(AR35)=0,U35>AD35,U35<=2*AE35),1,0))) ->  | AL35: =IF(AA35=1,"",IF(AE35="","",IF(Y35="<=AW2000",0,IF(AND(COUNTBLANK(AR35)=0,U35>2*AE35),1,0)))) ->  | AN35: =IF(AA35=1,"",IF(AE35="","",IF(AL35>0,1,0))) ->  | AO35: =IF(AA35=1,"",IF(Y35="<=AW2000",0,IF(AND(COUNTBLANK(AR35:AS35)=0,U35>AR35,U35<=AS35),1,0))) -> 0 | AP35: =IF(AA35=1,"",IF(Y35="<=AW2000",0,IF(AND(COUNTBLANK(AS35:AT35)=0,U35>AS35,U35<=AT35),1,0))) -> 0 | AQ35: =IF(AND(COUNTBLANK(AT35)=0,U35>AT35),1,0) -> 0 | AR35: =IF(BK35="","",IF($G$21=0,BK35*(BV35+BW35)/2,BK35)) ->  | AS35: =IF(BL35="","",IF($G$21=0,BL35*(BV35+BW35)/2,BL35)) ->  | AT35: =IF(BO35="","",IF($G$21=0,BO35*(BV35+BW35)/2,BO35)) ->  | AY35: =IF(AND(H35="<",J35="<",I35=K35,Q35>AU35),1,0) -> 1 | AZ35: =IF(AND(H35="<",J35="<",I35=K35,Q35>AS35),1,0) -> 0 | BA35: =IF(AND(H35="<",J35="<",I35=K35,Q35>AR35),1,0) -> 0 | BD35: =BZ35 -> naftaleen | BE35: 0.05 | BF35: 0.002 | BG35: 0.005 | BH35: 0.01 | BS35: 0 | BT35: 0 | BU35: 1 | BV35: =((BS35+$Y$19*BT35+(IF($Y$20<BR35,BR35*BU35,$Y$20*BU35))/(BS35+25*BT35+10*BU35))) -> 1 | BW35: =((BS35+$Z$19*BT35+(IF($Z$20<BR35,BR35*BU35,$Z$20*BU35))/(BS35+25*BT35+10*BU35))) -> 1 | BX35: =((BS35+25*BT35+10*BU35)/(BS35+$Y$19*BT35+IF($Y$20<BR35,BR35*BU35,$Y$20*BU35))) -> 1 | BY35: =((BS35+25*BT35+10*BU35)/(BS35+$Z$19*BT35+IF($Z$20<BR35,BR35*BU35,$Z$20*BU35))) -> 1 | BZ35: naftaleen | CB35: =IF(H35="<",1,0) -> 1 | CC35: =IF(CB35=1,0.7*I35,I35) -> 0.007 | CE35: =IF(J35="<",1,0) -> 1 | CF35: =IF(CE35=1,0.7*K35,K35) -> 0.007
C36: =(IF(AND(ISNUMBER(I36)=TRUE,ISNUMBER(K36)=TRUE),1,0)) -> 1 | F36: =IF(BB34=0,"fenantreen",IF(BB34=1,"antraceen",IF(BB34=2,"fenantreen",IF(BB34=3,"fenantreen",IF(BB34=4,"benzo(a)antraceen",IF(BB34=5,"fenantreen","fout")))))) -> fenantreen | G36: 1 | H36: < | I36: 0.01 | J36: < | K36: 0.01 | L36: 0.007 | M36: 0.007 | O36: 0.007 | Q36: 0.007 | R36: 0.007 | S36: 0.007 | T36: 0.007 | U36: 0.007 | W36: 1 | X36: 0 | AA36: 0 | AB36: 0 | AC36: 0 | AO36: 0 | AP36: 0 | AQ36: 0 | AY36: 1 | AZ36: 0 | BA36: 0 | BD36: fenantreen | BE36: 0.05 | BF36: 0.003 | BG36: 0.01 | BH36: 0.01 | BS36: 0 | BT36: 0 | BU36: 1 | BV36: 1 | BW36: 1 | BX36: 1 | BY36: 1 | BZ36: fenantreen | CB36: 1 | CC36: 0.007 | CE36: 1 | CF36: 0.007
C37: 1 | F37: =IF(BB34=0,"antraceen",IF(BB34=1,"fenantreen",IF(BB34=2,"antraceen",IF(BB34=3,"antraceen",IF(BB34=4,"benzo(ghi)peryleen",IF(BB34=5,"naftaleen","fout")))))) -> antraceen | G37: 1 | H37: < | I37: 0.01 | J37: < | K37: 0.01 | L37: 0.007 | M37: 0.007 | O37: 0.007 | Q37: 0.007 | R37: 0.007 | S37: 0.007 | T37: 0.007 | U37: 0.007 | W37: 1 | X37: 0 | AA37: 0 | AB37: 0 | AC37: 0 | AO37: 0 | AP37: 0 | AQ37: 0 | AY37: 1 | AZ37: 0 | BA37: 0 | BD37: antraceen | BE37: 0.05 | BF37: 0.003 | BG37: 0.01 | BH37: 0.01 | BS37: 0 | BT37: 0 | BU37: 1 | BV37: 1 | BW37: 1 | BX37: 1 | BY37: 1 | BZ37: =F37 -> antraceen | CB37: 1 | CC37: 0.007 | CE37: 1 | CF37: 0.007
C38: 1 | F38: =IF(BB34=0,"fluoranteen",IF(BB34=1,"fluoranteen",IF(BB34=2,"benzo(a)antraceen",IF(BB34=3,"fluoranteen",IF(BB34=4,"benzo(k)flouranteen",IF(BB34=5,"fluoranteen","fout")))))) -> fluoranteen | G38: 1 | H38: < | I38: 0.01 | J38: < | K38: 0.01 | L38: 0.007 | M38: 0.007 | O38: 0.007 | Q38: 0.007 | R38: 0.007 | S38: 0.007 | T38: 0.007 | U38: 0.007 | W38: 1 | X38: 0 | AA38: 0 | AB38: 0 | AC38: 0 | AO38: 0 | AP38: 0 | AQ38: 0 | AY38: 1 | AZ38: 0 | BA38: 0 | BD38: fluoranteen | BE38: 0.05 | BF38: 0.003 | BG38: 0.01 | BH38: 0.01 | BS38: 0 | BT38: 0 | BU38: 1 | BV38: 1 | BW38: 1 | BX38: 1 | BY38: 1 | BZ38: fluoranteen | CB38: 1 | CC38: 0.007 | CE38: 1 | CF38: 0.007
C39: 1 | F39: =IF(BB34=0,"chryseen",IF(BB34=1,"benzo(a)antraceen",IF(BB34=2,"chryseen",IF(BB34=3,"benzo(a)antraceen",IF(BB34=4,"benzo(a)pyreen",IF(BB34=5,"benzo(a)antraceen","fout")))))) -> chryseen | G39: 1 | H39: < | I39: 0.01 | J39: < | K39: 0.01 | L39: 0.007 | M39: 0.007 | O39: 0.007 | Q39: 0.007 | R39: 0.007 | S39: 0.007 | T39: 0.007 | U39: 0.007 | W39: 1 | X39: 0 | AA39: 0 | AB39: 0 | AC39: 0 | AO39: 0 | AP39: 0 | AQ39: 0 | AY39: 1 | AZ39: 0 | BA39: 0 | BD39: chryseen | BE39: 0.05 | BF39: 0.003 | BG39: 0.01 | BH39: 0.01 | BS39: 0 | BT39: 0 | BU39: 1 | BV39: 1 | BW39: 1 | BX39: 1 | BY39: 1 | BZ39: chryseen | CB39: 1 | CC39: 0.007 | CE39: 1 | CF39: 0.007
C40: 1 | F40: =IF(BB34=0,"benzo(a)antraceen",IF(BB34=1,"chryseen",IF(BB34=2,"fluoranteen",IF(BB34=3,"chryseen",IF(BB34=4,"chryseen",IF(BB34=5,"chryseen","fout")))))) -> benzo(a)antraceen | G40: 1 | H40: < | I40: 0.01 | J40: < | K40: 0.01 | L40: 0.007 | M40: 0.007 | O40: 0.007 | Q40: 0.007 | R40: 0.007 | S40: 0.007 | T40: 0.007 | U40: 0.007 | W40: 1 | X40: 0 | AA40: 0 | AB40: 0 | AC40: 0 | AO40: 0 | AP40: 0 | AQ40: 0 | AY40: 1 | AZ40: 0 | BA40: 0 | BD40: benzo(a)antraceen | BE40: 0.05 | BF40: 0.003 | BG40: 0.01 | BH40: 0.01 | BS40: 0 | BT40: 0 | BU40: 1 | BV40: 1 | BW40: 1 | BX40: 1 | BY40: 1 | BZ40: benzo(a)antraceen | CB40: 1 | CC40: 0.007 | CE40: 1 | CF40: 0.007
C41: 1 | F41: =IF(BB34=0,"benzo(a)pyreen",IF(BB34=1,"benzo(a)pyreen",IF(BB34=2,"benzo(k)fluoranteen",IF(BB34=3,"benzo(k)fluoranteen",IF(BB34=4,"fenantreen",IF(BB34=5,"benzo(k)fluoranteen","fout")))))) -> benzo(a)pyreen | G41: 1 | H41: < | I41: 0.01 | J41: < | K41: 0.01 | L41: 0.007 | M41: 0.007 | O41: 0.007 | Q41: 0.007 | R41: 0.007 | S41: 0.007 | T41: 0.007 | U41: 0.007 | W41: 1 | X41: 0 | AA41: 0 | AB41: 0 | AC41: 0 | AO41: 0 | AP41: 0 | AQ41: 0 | AY41: 1 | AZ41: 0 | BA41: 0 | BD41: benzo(a)pyreen | BE41: 0.05 | BF41: 0.003 | BG41: 0.01 | BH41: 0.01 | BS41: 0 | BT41: 0 | BU41: 1 | BV41: 1 | BW41: 1 | BX41: 1 | BY41: 1 | BZ41: benzo(a)pyreen | CB41: 1 | CC41: 0.007 | CE41: 1 | CF41: 0.007
C42: 1 | F42: =IF(BB34=0,"benzo(k)fluoranteen",IF(BB34=1,"benzo(ghi)peryleen",IF(BB34=2,"benzo(ghi)peryleen",IF(BB34=3,"benzo(a)pyreen",IF(BB34=4,"fluoranteen",IF(BB34=5,"benzo(a)pyreen","fout")))))) -> benzo(k)fluoranteen | G42: 1 | H42: < | I42: 0.01 | J42: < | K42: 0.01 | L42: 0.007 | M42: 0.007 | O42: 0.007 | Q42: 0.007 | R42: 0.007 | S42: 0.007 | T42: 0.007 | U42: 0.007 | W42: 1 | X42: 0 | AA42: 0 | AB42: 0 | AC42: 0 | AO42: 0 | AP42: 0 | AQ42: 0 | AY42: 1 | AZ42: 0 | BA42: 0 | BD42: benzo(k)fluoranteen | BE42: 0.05 | BF42: 0.003 | BG42: 0.01 | BH42: 0.01 | BS42: 0 | BT42: 0 | BU42: 1 | BV42: 1 | BW42: 1 | BX42: 1 | BY42: 1 | BZ42: benzo(k)fluoranteen | CB42: 1 | CC42: 0.007 | CE42: 1 | CF42: 0.007
C43: 1 | F43: =IF(BB34=0,"indeno(1,2,3-cd)pyreen",IF(BB34=1,"benzo(k)fluoranteen",IF(BB34=2,"indeno(1,2,3-cd)pyreen",IF(BB34=3,"benzo(ghi)peryleen",IF(BB34=4,"indeno(1,2,3-cd)pyreen",IF(BB34=5,"benzo(ghi)peryleen","fout")))))) -> indeno(1,2,3-cd)pyreen | G43: 1 | H43: < | I43: 0.01 | J43: < | K43: 0.01 | L43: 0.007 | M43: 0.007 | O43: 0.007 | Q43: 0.007 | R43: 0.007 | S43: 0.007 | T43: 0.007 | U43: 0.007 | W43: 1 | X43: 0 | AA43: 0 | AB43: 0 | AC43: 0 | AO43: 0 | AP43: 0 | AQ43: 0 | AY43: 1 | AZ43: 0 | BA43: 0 | BD43: indeno(1,2,3-cd)pyreen | BE43: 0.05 | BF43: 0.003 | BG43: 0.01 | BH43: 0.01 | BS43: 0 | BT43: 0 | BU43: 1 | BV43: 1 | BW43: 1 | BX43: 1 | BY43: 1 | BZ43: indeno(1,2,3-cd)pyreen | CB43: 1 | CC43: 0.007 | CE43: 1 | CF43: 0.007
C44: 1 | F44: =IF(BB34=0,"benzo(ghi)peryleen",IF(BB34=1,"indeno(1,2,3-cd)pyreen",IF(BB34=2,"benzo(a)pyreen",IF(BB34=3,"indeno(1,2,3-cd)pyreen",IF(BB34=4,"naftaleen",IF(BB34=5,"indeno(1,2,3-cd)pyreen","fout")))))) -> benzo(ghi)peryleen | G44: 1 | H44: < | I44: 0.01 | J44: < | K44: 0.01 | L44: 0.007 | M44: 0.007 | O44: 0.007 | Q44: 0.007 | R44: 0.007 | S44: 0.007 | T44: 0.007 | U44: 0.007 | W44: 1 | X44: 0 | AA44: 0 | AB44: 0 | AC44: 0 | AO44: 0 | AP44: 0 | AQ44: 0 | AY44: 1 | AZ44: 0 | BA44: 0 | BD44: benzo(ghi)peryleen | BE44: 0.05 | BF44: 0.003 | BG44: 0.01 | BH44: 0.01 | BS44: 0 | BT44: 0 | BU44: 1 | BV44: 1 | BW44: 1 | BX44: 1 | BY44: 1 | BZ44: benzo(ghi)peryleen | CB44: 1 | CC44: 0.007 | CE44: 1 | CF44: 0.007
B45: =IF(SUM(C35:C45)>1,1,0) -> 1 | C45: 1 | F45: PAK's (10 VROM) (0,7 factor) | G45: =IF(AND(SUM(G35:G44)=7,H45="<",J45="<",((I45+K45)/2)>AE45),2,3) -> 3 | H45: =IF(CD45=1,"<","") -> < | I45: =CC45 -> 0.1 | J45: =IF(CG45=1,"<","") -> < | K45: =CF45 -> 0.1 | L45: 0.07 | M45: 0.07 | N45: 0 | O45: 0.07 | P45: 0 | Q45: 0.07 | R45: 0.07 | S45: 0.07 | T45: 0.07 | U45: 0.07 | W45: 1 | X45: 0 | Y45: <=AW2000 | AA45: 0 | AB45: 0 | AC45: 0 | AD45: 1.5 | AE45: 1.5 | AF45: 3 | AG45: <=AW2000 | AH45: =IF(AA45=1,"",IF(AE45="","",IF(AND(U45>AD45,U45<=2*AE45),1,0))) -> 0 | AI45: 0 | AJ45: 0 | AL45: 0 | AM45: =IF(AA45=1,"",IF(Y45="<=AW2000",0,IF(AE45="","",IF(AND(COUNTBLANK(AR45)=0,U45>2*AE45),1,0)))) -> 0 | AN45: 0 | AO45: 0 | AP45: 0 | AQ45: 0 | AR45: 6.8 | AS45: 40 | AT45: 40 | AW45: 1 | AX45: =SUM(AW35:AW45) -> 1 | AY45: 1 | AZ45: 0 | BA45: 0 | BD45: PAK's (10 VROM) (0,7 factor) | BE45: 0.5 | BF45: 0.021 | BG45: 0.1 | BJ45: 1.5 | BK45: 6.8 | BL45: 40 | BO45: 40 | BP45: H-PAK | BR45: 10 | BS45: 0 | BT45: 0 | BU45: 1 | BV45: 1 | BW45: 1 | BX45: 1 | BY45: 1 | BZ45: PAK's (10 VROM) (0,7 factor) | CC45: =IF(CD45=1,SUM(I35:I44),SUM(CC35:CC44)) -> 0.1 | CD45: =IF(SUM(CB35:CB44)=10,1,0) -> 1 | CF45: =IF(CG45=1,SUM(K35:K44),SUM(CF35:CF44)) -> 0.1 | CG45: =IF(SUM(CE35:CE44)=10,1,0) -> 1
F46: 5. Gechloreerde koolwaterstoffen | Z46: =+IF(COUNTBLANK(AE46)=1,"",IF(AND(COUNTBLANK(AT46)=0,Q46>AT46),">i-waarde",IF(AND(COUNTBLANK(AS46)=0,Q46>AS46),">Eis industrie",IF(AND(COUNTBLANK(AR46)=0,Q46>AR46),">Eis wonen",IF(K46>AD46,">AW2000",IF(Q46<=AE46,"<=AW2000","")))))) ->  | BD46: 5. Gechloreerde koolwaterstoffen | BZ46: 5. Gechloreerde koolwaterstoffen
F47: d. polichloorbifenylen (PCB's) | I47: =IF(J48=1,"ug/kg",IF(J48=0,"mg/kg","fout")) -> mg/kg | K47: =IF(J48=1,"ug/kg",IF(J48=0,"mg/kg","fout")) -> mg/kg | BD47: d. polichloorbifenylen (PCB's) | BX47: Circulaire | BZ47: =F47 -> d. polichloorbifenylen (PCB's) | CN47: Rbk, waarden voor PCB uit bijlage B, tabel 1 | CQ47: Circulaire
F48: S.v.p. keuze voor toetsing PCB's opgeven (mg/kg=0 ; ug/kg=1): | J48: 0 | BD48: S.v.p. keuze voor toetsing PCB's opgeven (mg/kg=0 ; ug/kg=1): | BX48: i-waarde | BZ48: S.v.p. keuze voor toetsing PCB's opgeven (mg/kg=0 ; ug/kg=1): | CN48: aw2000 | CO48: wonen | CP48: industrie | CQ48: i-waarde
F49: PCB 28 | G49: =IF(AND(H49="<",J49="<"),1,0) -> 1 | H49: < | I49: 0.001 | J49: < | K49: 0.001 | L49: =(Q49+R49)/2 -> 0.0007 | M49: =IF(I49="","",IF(H49="<",0.7*I49,I49)) -> 0.0007 | N49: =IF(AE49="","",IF(AND(H49="<",I49<=BE49,OR(AND(I49>AE49,$G$21=0),AND(I49>AE49*BV49,$G$21=1))),1,0)) ->  | O49: =IF(K49="","",IF(J49="<",0.7*K49,K49)) -> 0.0007 | P49: =IF(AE49="","",IF(AND(J49="<",K49<=BE49,OR(AND(K49>AE49,$G$21=0),AND(K49>AE49*BV49,$G$21=1))),1,0)) ->  | Q49: =IF(I49="","",IF(AND(H49="<",G49=2),0.7*I49,$Q$6*M49)) -> 0.0007 | R49: =IF(K49="","",IF(AND(J49="<",G49=2),0.7*K49,$Q$6*O49)) -> 0.0007 | S49: =IF(Q49="","",IF($G$21=0,Q49,IF($G$21=1,Q49*BX49,"fout"))) -> 0.0007 | T49: =IF(R49="","",IF($G$21=0,R49,IF($G$21=1,R49*BY49,"fout"))) -> 0.0007 | U49: =IF(OR(Q49="",R49=""),"",(S49+T49)/2) -> 0.0007 | W49: =IF(OR(I49="",K49=""),"",MAX(I49/K49,K49/I49)) -> 1 | X49: =IF(W49>$W$22,1,0) -> 0 | Y49: =IF(U49="","",IF(COUNTBLANK(AE49)=1,"",IF(AND(COUNTBLANK(AT49)=0,U49>AT49),">i-waarde",IF(AND(N49=1,P49=1),"<=AW2000",IF(AND(COUNTBLANK(AS49)=0,U49>AS49),">Eis industrie",IF(AND(COUNTBLANK(AR49)=0,U49>AR49),">Eis wonen",IF(U49>AD49,">AW2000",IF(U49<=AE49,"<=AW2000","")))))))) ->  | AA49: =IF(AND(N49=1,P49=1),1,0) -> 0 | AB49: =IF(OR(Y49=">AW2000",Y49=">Eis wonen",Y49=">Eis industrie"),1,0) -> 0 | AC49: =IF(Y49=">i-waarde",1,0) -> 0 | AD49: =IF(AE49="","",AE49) ->  | AE49: =IF(BJ49="","",IF($G$21=0,BJ49*(BV49+BW49)/2,BJ49)) ->  | AF49: =IF(AE49="","",IF(2*AE49<AR49,2*AE49,AR49)) ->  | AG49: =+IF(U49="","",IF(COUNTBLANK(AE49)=1,"",IF(OR(Y49="<=AW2000",U49<=AD49),"<=AW2000",IF(AND(AH49=1,AO49=0,AP49=0,AQ49=0),"AW2000<x<=2*AW2000",IF(AI49=1,"AW2000<x<=wonen",IF(AO49=1,"wonen<x<=industrie",IF(AP49=1,"industrie<x<=i-waarde",IF(AQ49=1,">i-waarde","")))))))) ->  | AH49: =IF(AA49=1,"",IF(AE49="","",IF(AND(U49>AD49,U49<=2*AE49),1,0))) ->  | AI49: =IF(AA49=1,"",IF(AE49="","",IF(AND(COUNTBLANK(AR49)=0,U49>AD49,U49<=AR49),1,0))) ->  | AJ49: =IF(AA49=1,"",IF(AE49="","",IF(AND(COUNTBLANK(AR49)=0,U49>AD49,U49<=2*AE49),1,0))) ->  | AL49: =IF(AA49=1,"",IF(AE49="","",IF(Y49="<=AW2000",0,IF(AND(COUNTBLANK(AR49)=0,U49>2*AE49),1,0)))) ->  | AN49: =IF(AA49=1,"",IF(AE49="","",IF(AL49>0,1,0))) ->  | AO49: =IF(AA49=1,"",IF(Y49="<=AW2000",0,IF(AND(COUNTBLANK(AR49:AS49)=0,U49>AR49,U49<=AS49),1,0))) -> 0 | AP49: =IF(AA49=1,"",IF(Y49="<=AW2000",0,IF(AND(COUNTBLANK(AS49:AT49)=0,U49>AS49,U49<=AT49),1,0))) -> 0 | AQ49: =IF(AND(COUNTBLANK(AT49)=0,U49>AT49),1,0) -> 0 | AR49: =IF(BK49="","",IF($G$21=0,BK49*(BV49+BW49)/2,BK49)) ->  | AS49: =IF(BL49="","",IF($G$21=0,BL49*(BV49+BW49)/2,BL49)) ->  | AT49: =IF(BO49="","",IF($G$21=0,BO49*(BV49+BW49)/2,BO49)) ->  | AY49: =IF(AND(H49="<",J49="<",I49=K49,Q49>AU49),1,0) -> 1 | AZ49: =IF(AND(H49="<",J49="<",I49=K49,Q49>AS49),1,0) -> 0 | BA49: =IF(AND(H49="<",J49="<",I49=K49,Q49>AR49),1,0) -> 0 | BD49: PCB 28 | BE49: =IF($J$48=1,CI49*1000,IF($J$48=0,CI49,"fout")) -> 0.001 | BF49: =IF($J$48=1,CJ49*1000,IF($J$48=0,B49,"fout")) -> 0 | BG49: =IF($J$48=1,CK49*1000,IF($J$48=0,CK49,"fout")) -> 0.01 | BH49: =IF($J$48=1,CL49*1000,IF($J$48=0,CL49,"fout")) -> 0.014 | BS49: 0 | BT49: 0 | BU49: 1 | BV49: =((BS49+$Y$19*BT49+(IF($Y$20<BR49,BR49*BU49,$Y$20*BU49))/(BS49+25*BT49+10*BU49))) -> 1 | BW49: =((BS49+$Z$19*BT49+(IF($Z$20<BR49,BR49*BU49,$Z$20*BU49))/(BS49+25*BT49+10*BU49))) -> 1 | BX49: =((BS49+25*BT49+10*BU49)/(BS49+$Y$19*BT49+IF($Y$20<BR49,BR49*BU49,$Y$20*BU49))) -> 1 | BY49: =((BS49+25*BT49+10*BU49)/(BS49+$Z$19*BT49+IF($Z$20<BR49,BR49*BU49,$Z$20*BU49))) -> 1 | BZ49: PCB 28 | CB49: =IF(H49="<",1,0) -> 1 | CC49: =IF(CB49=1,0.7*I49,I49) -> 0.0007 | CE49: =IF(J49="<",1,0) -> 1 | CF49: =IF(CE49=1,0.7*K49,K49) -> 0.0007 | CI49: 0.001 | CJ49: 0.00087 | CK49: 0.01 | CL49: 0.014 | CN49: 0.02 | CO49: 0.02 | CP49: 0.5
F50: PCB 52 | G50: =IF(AND(H50="<",J50="<"),1,0) -> 1 | H50: < | I50: 0.001 | J50: < | K50: 0.001 | L50: 0.0007 | M50: 0.0007 | O50: 0.0007 | Q50: 0.0007 | R50: 0.0007 | S50: 0.0007 | T50: 0.0007 | U50: 0.0007 | W50: 1 | X50: 0 | AA50: 0 | AB50: 0 | AC50: 0 | AO50: 0 | AP50: 0 | AQ50: 0 | AY50: 1 | AZ50: 0 | BA50: 0 | BD50: PCB 52 | BE50: =IF($J$48=1,CI50*1000,IF($J$48=0,CI50,"fout")) -> 0.001 | BF50: 0 | BG50: =IF($J$48=1,CK50*1000,IF($J$48=0,CK50,"fout")) -> 0.01 | BH50: =IF($J$48=1,CL50*1000,IF($J$48=0,CL50,"fout")) -> 0.014 | BS50: 0 | BT50: 0 | BU50: 1 | BV50: 1 | BW50: 1 | BX50: 1 | BY50: 1 | BZ50: PCB 52 | CB50: 1 | CC50: 0.0007 | CE50: 1 | CF50: 0.0007 | CI50: 0.001 | CJ50: 0.00087 | CK50: 0.01 | CL50: 0.014 | CN50: 0.02 | CO50: 0.02 | CP50: 0.5
F51: PCB 101 | G51: 1 | H51: < | I51: 0.001 | J51: < | K51: 0.001 | L51: 0.0007 | M51: 0.0007 | O51: 0.0007 | Q51: 0.0007 | R51: 0.0007 | S51: 0.0007 | T51: 0.0007 | U51: 0.0007 | W51: 1 | X51: 0 | AA51: 0 | AB51: 0 | AC51: 0 | AO51: 0 | AP51: 0 | AQ51: 0 | AY51: 1 | AZ51: 0 | BA51: 0 | BD51: PCB 101 | BE51: 0.001 | BF51: 0 | BG51: 0.01 | BH51: 0.014 | BS51: 0 | BT51: 0 | BU51: 1 | BV51: 1 | BW51: 1 | BX51: 1 | BY51: 1 | BZ51: PCB 101 | CB51: 1 | CC51: 0.0007 | CE51: 1 | CF51: 0.0007 | CI51: 0.001 | CJ51: 0.00087 | CK51: 0.01 | CL51: 0.014 | CN51: 0.02 | CO51: 0.02 | CP51: 0.5
F52: PCB 118 | G52: 1 | H52: < | I52: 0.001 | J52: < | K52: 0.001 | L52: 0.0007 | M52: 0.0007 | O52: 0.0007 | Q52: 0.0007 | R52: 0.0007 | S52: 0.0007 | T52: 0.0007 | U52: 0.0007 | W52: 1 | X52: 0 | AA52: 0 | AB52: 0 | AC52: 0 | AO52: 0 | AP52: 0 | AQ52: 0 | AY52: 1 | AZ52: 0 | BA52: 0 | BD52: PCB 118 | BE52: 0.001 | BF52: 0 | BG52: 0.01 | BH52: 0.014 | BS52: 0 | BT52: 0 | BU52: 1 | BV52: 1 | BW52: 1 | BX52: 1 | BY52: 1 | BZ52: PCB 118 | CB52: 1 | CC52: 0.0007 | CE52: 1 | CF52: 0.0007 | CI52: 0.001 | CJ52: 0.00087 | CK52: 0.01 | CL52: 0.014 | CN52: 0.02 | CO52: 0.02 | CP52: 0.5
F53: PCB 138 | G53: 1 | H53: < | I53: 0.001 | J53: < | K53: 0.001 | L53: 0.0007 | M53: 0.0007 | O53: 0.0007 | Q53: 0.0007 | R53: 0.0007 | S53: 0.0007 | T53: 0.0007 | U53: 0.0007 | W53: 1 | X53: 0 | AA53: 0 | AB53: 0 | AC53: 0 | AO53: 0 | AP53: 0 | AQ53: 0 | AY53: 1 | AZ53: 0 | BA53: 0 | BD53: PCB 138 | BE53: 0.001 | BF53: 0 | BG53: 0.01 | BH53: 0.014 | BS53: 0 | BT53: 0 | BU53: 1 | BV53: 1 | BW53: 1 | BX53: 1 | BY53: 1 | BZ53: PCB 138 | CB53: 1 | CC53: 0.0007 | CE53: 1 | CF53: 0.0007 | CI53: 0.001 | CJ53: 0.00087 | CK53: 0.01 | CL53: 0.014 | CN53: 0.02 | CO53: 0.02 | CP53: 0.5
F54: PCB 153 | G54: 1 | H54: < | I54: 0.001 | J54: < | K54: 0.001 | L54: 0.0007 | M54: 0.0007 | O54: 0.0007 | Q54: 0.0007 | R54: 0.0007 | S54: 0.0007 | T54: 0.0007 | U54: 0.0007 | W54: 1 | X54: 0 | AA54: 0 | AB54: 0 | AC54: 0 | AO54: 0 | AP54: 0 | AQ54: 0 | AY54: 1 | AZ54: 0 | BA54: 0 | BD54: PCB 153 | BE54: 0.001 | BF54: 0 | BG54: 0.01 | BH54: 0.014 | BS54: 0 | BT54: 0 | BU54: 1 | BV54: 1 | BW54: 1 | BX54: 1 | BY54: 1 | BZ54: PCB 153 | CB54: 1 | CC54: 0.0007 | CE54: 1 | CF54: 0.0007 | CI54: 0.001 | CJ54: 0.00087 | CK54: 0.01 | CL54: 0.014 | CN54: 0.02 | CO54: 0.02 | CP54: 0.5
F55: PCB 180 | G55: 1 | H55: < | I55: 0.001 | J55: < | K55: 0.001 | L55: 0.0007 | M55: 0.0007 | O55: 0.0007 | Q55: 0.0007 | R55: 0.0007 | S55: 0.0007 | T55: 0.0007 | U55: 0.0007 | W55: 1 | X55: 0 | AA55: 0 | AB55: 0 | AC55: 0 | AO55: 0 | AP55: 0 | AQ55: 0 | AY55: 1 | AZ55: 0 | BA55: 0 | BD55: PCB 180 | BE55: 0.001 | BF55: 0 | BG55: 0.01 | BH55: 0.014 | BS55: 0 | BT55: 0 | BU55: 1 | BV55: 1 | BW55: 1 | BX55: 1 | BY55: 1 | BZ55: PCB 180 | CB55: 1 | CC55: 0.0007 | CE55: 1 | CF55: 0.0007 | CI55: 0.001 | CJ55: 0.00087 | CK55: 0.01 | CL55: 0.014 | CN55: 0.02 | CO55: 0.02 | CP55: 0.5
D56: 1 | F56: PCB's (som 7) (0,7 factor) | G56: =IF(AND(SUM(G49:G55)=7,H56="<",J56="<",((I56+104)/(IF($G$21=0,2,IF($G$21=1,2*BV36,"fout"))))>AE56),2,3) -> 2 | H56: =IF(CD56=1,"<","") -> < | I56: =CC56 -> 0.007 | J56: =IF(CG56=1,"<","") -> < | K56: =CF56 -> 0.007 | L56: 0.0049 | M56: 0.0049 | N56: 0 | O56: 0.0049 | P56: 0 | Q56: 0.0049 | R56: 0.0049 | S56: 0.0049 | T56: 0.0049 | U56: 0.0049 | W56: 1 | X56: 0 | Y56: <=AW2000 | AA56: 0 | AB56: 0 | AC56: 0 | AD56: 0.02 | AE56: 0.02 | AF56: 0.04 | AG56: <=AW2000 | AH56: =IF(AA56=1,"",IF(AE56="","",IF(AND(U56>AD56,U56<=2*AE56),1,0))) -> 0 | AI56: 0 | AJ56: 0 | AL56: 0 | AM56: =IF(AA56=1,"",IF(Y56="<=AW2000",0,IF(AE56="","",IF(AND(COUNTBLANK(AR56)=0,U56>2*AE56),1,0)))) -> 0 | AN56: 0 | AO56: 0 | AP56: 0 | AQ56: 0 | AR56: 0.04 | AS56: 0.5 | AT56: 1 | AW56: 1 | AY56: 1 | AZ56: 0 | BA56: 0 | BD56: PCB's (som 7) (0,7 factor) | BE56: 0.007 | BF56: 0 | BG56: 0.01 | BH56: 0.014 | BJ56: =IF($J$48=1,CN56*1000,IF($J$48=0,CN56,"fout")) -> 0.02 | BK56: =IF($J$48=1,CO56*1000,IF($J$48=0,CO56,"fout")) -> 0.04 | BL56: 0.5 | BO56: =IF($J$48=1,CQ56*1000,IF($J$48=0,CQ56,"fout")) -> 1 | BS56: 0 | BT56: 0 | BU56: 1 | BV56: 1 | BW56: 1 | BX56: 1 | BY56: 1 | BZ56: PCB's (som 7) (0,7 factor) | CA56: 1 | CB56: =IF(CB52=0,1,0) -> 0 | CC56: =IF(CD56=1,SUM(I49:I55),SUM(CC49:CC55)) -> 0.007 | CD56: =IF(SUM(CB49:CB55)=7,1,0) -> 1 | CE56: =IF(CE52=0,1,0) -> 0 | CF56: =IF(CG56=1,SUM(K49:K55),SUM(CF49:CF55)) -> 0.007 | CG56: =IF(SUM(CE49:CE55)=7,1,0) -> 1 | CI56: 0.007 | CJ56: 0.00087 | CK56: 0.01 | CL56: 0.014 | CN56: 0.02 | CO56: 0.04 | CP56: 0.5 | CQ56: 1
F57: 7. Overige stoffen | I57: mg/kg | K57: mg/kg | Z57: =+IF(COUNTBLANK(AE57)=1,"",IF(AND(COUNTBLANK(AT57)=0,Q57>AT57),">i-waarde",IF(AND(COUNTBLANK(AS57)=0,Q57>AS57),">Eis industrie",IF(AND(COUNTBLANK(AR57)=0,Q57>AR57),">Eis wonen",IF(K57>AD57,">AW2000",IF(Q57<=AE57,"<=AW2000","")))))) ->  | BD57: =BZ57 -> 7. Overige stoffen | BZ57: =F57 -> 7. Overige stoffen
F58: =IF(AND(B60=0,OR(AB58=1,AC58=1)),"minerale olie, NB: PAK en/of BETX bepalen!","minerale olie") -> minerale olie | H58: < | I58: 20 | J58: < | K58: 20 | L58: =(Q58+R58)/2 -> 14 | M58: =IF(I58="","",IF(H58="<",0.7*I58,I58)) -> 14 | N58: =IF(AE58="","",IF(AND(H58="<",I58<=BE58,OR(AND(I58>AE58,$G$21=0),AND(I58>AE58*BV58,$G$21=1))),1,0)) -> 0 | O58: =IF(K58="","",IF(J58="<",0.7*K58,K58)) -> 14 | P58: =IF(AE58="","",IF(AND(J58="<",K58<=BE58,OR(AND(K58>AE58,$G$21=0),AND(K58>AE58*BV58,$G$21=1))),1,0)) -> 0 | Q58: =IF(I58="","",IF(AND(H58="<",G58=2),0.7*I58,$Q$6*M58)) -> 14 | R58: =IF(K58="","",IF(AND(J58="<",G58=2),0.7*K58,$Q$6*O58)) -> 14 | S58: =IF(Q58="","",IF($G$21=0,Q58,IF($G$21=1,Q58*BX58,"fout"))) -> 14 | T58: =IF(R58="","",IF($G$21=0,R58,IF($G$21=1,R58*BY58,"fout"))) -> 14 | U58: =IF(OR(Q58="",R58=""),"",(S58+T58)/2) -> 14 | W58: =IF(OR(I58="",K58=""),"",MAX(I58/K58,K58/I58)) -> 1 | X58: =IF(W58>$W$22,1,0) -> 0 | Y58: =IF(U58="","",IF(COUNTBLANK(AE58)=1,"",IF(AND(COUNTBLANK(AT58)=0,U58>AT58),">i-waarde",IF(AND(N58=1,P58=1),"<=AW2000",IF(AND(COUNTBLANK(AS58)=0,U58>AS58),">Eis industrie",IF(AND(COUNTBLANK(AR58)=0,U58>AR58),">Eis wonen",IF(U58>AD58,">AW2000",IF(U58<=AE58,"<=AW2000","")))))))) -> <=AW2000 | AA58: =IF(AND(N58=1,P58=1),1,0) -> 0 | AB58: =IF(OR(Y58=">AW2000",Y58=">Eis wonen",Y58=">Eis industrie"),1,0) -> 0 | AC58: =IF(Y58=">i-waarde",1,0) -> 0 | AD58: =IF(AE58="","",AE58) -> 190 | AE58: =IF(BJ58="","",IF($G$21=0,BJ58*(BV58+BW58)/2,BJ58)) -> 190 | AF58: =IF(AE58="","",IF(2*AE58<AR58,2*AE58,AR58)) -> 190 | AG58: =+IF(U58="","",IF(COUNTBLANK(AE58)=1,"",IF(OR(Y58="<=AW2000",U58<=AD58),"<=AW2000",IF(AND(AH58=1,AO58=0,AP58=0,AQ58=0),"AW2000<x<=2*AW2000",IF(AI58=1,"AW2000<x<=wonen",IF(AO58=1,"wonen<x<=industrie",IF(AP58=1,"industrie<x<=i-waarde",IF(AQ58=1,">i-waarde","")))))))) -> <=AW2000 | AH58: =IF(AA58=1,"",IF(AE58="","",IF(AND(U58>AD58,U58<=2*AE58),1,0))) -> 0 | AI58: =IF(AA58=1,"",IF(AE58="","",IF(AND(COUNTBLANK(AR58)=0,U58>AD58,U58<=AR58),1,0))) -> 0 | AJ58: =IF(AA58=1,"",IF(AE58="","",IF(AND(COUNTBLANK(AR58)=0,U58>AD58,U58<=2*AE58),1,0))) -> 0 | AL58: =IF(AA58=1,"",IF(AE58="","",IF(Y58="<=AW2000",0,IF(AND(COUNTBLANK(AR58)=0,U58>2*AE58),1,0)))) -> 0 | AM58: =IF(AA58=1,"",IF(Y58="<=AW2000",0,IF(AE58="","",IF(AND(COUNTBLANK(AR58)=0,U58>2*AE58),1,0)))) -> 0 | AN58: =IF(AA58=1,"",IF(AE58="","",IF(AL58>0,1,0))) -> 0 | AO58: =IF(AA58=1,"",IF(Y58="<=AW2000",0,IF(AND(COUNTBLANK(AR58:AS58)=0,U58>AR58,U58<=AS58),1,0))) -> 0 | AP58: =IF(AA58=1,"",IF(Y58="<=AW2000",0,IF(AND(COUNTBLANK(AS58:AT58)=0,U58>AS58,U58<=AT58),1,0))) -> 0 | AQ58: =IF(AND(COUNTBLANK(AT58)=0,U58>AT58),1,0) -> 0 | AR58: =IF(BK58="","",IF($G$21=0,BK58*(BV58+BW58)/2,BK58)) -> 190 | AS58: =IF(BL58="","",IF($G$21=0,BL58*(BV58+BW58)/2,BL58)) -> 500 | AT58: =IF(BO58="","",IF($G$21=0,BO58*(BV58+BW58)/2,BO58)) -> 5000 | AW58: =IF(Q58="","",1) -> 1 | AY58: =IF(AND(H58="<",J58="<",I58=K58,Q58>AU58),1,0) -> 1 | AZ58: =IF(AND(H58="<",J58="<",I58=K58,Q58>AS58),1,0) -> 0 | BA58: =IF(AND(H58="<",J58="<",I58=K58,Q58>AR58),1,0) -> 0 | BD58: minerale olie | BE58: 35 | BF58: 17 | BG58: 20 | BH58: 20 | BJ58: =IF(K12=1,BO58,IF(K12=0,190,"fout")) -> 190 | BK58: =IF(K12=1,BO58,IF(K12=0,190,"fout")) -> 190 | BL58: =IF(K12=1,BO58,IF(AND(K12=0,K9=1),BN58,IF(AND(K12=0,K9=0),BM58,"fout"))) -> 500 | BM58: 500 | BN58: 2000 | BO58: 5000 | BS58: 0 | BT58: 0 | BU58: 1 | BV58: =((BS58+$Y$19*BT58+(IF($Y$20<BR58,BR58*BU58,$Y$20*BU58))/(BS58+25*BT58+10*BU58))) -> 1 | BW58: =((BS58+$Z$19*BT58+(IF($Z$20<BR58,BR58*BU58,$Z$20*BU58))/(BS58+25*BT58+10*BU58))) -> 1 | BX58: =((BS58+25*BT58+10*BU58)/(BS58+$Y$19*BT58+IF($Y$20<BR58,BR58*BU58,$Y$20*BU58))) -> 1 | BY58: =((BS58+25*BT58+10*BU58)/(BS58+$Z$19*BT58+IF($Z$20<BR58,BR58*BU58,$Z$20*BU58))) -> 1 | BZ58: =F58 -> minerale olie
X59: =SUM(X25:X58) -> 0
A60: =SUM(A25:A58) -> 0 | B60: =SUM(B25:B58) -> 1 | D60: =SUM(D25:D58) -> 1 | E60: =SUM(E25:E58) -> 0 | F60: C[M--A] | G60: gemeten gehalte in monster A in mg/kg d.s. | AC60: =SUM(AC25:AC58) -> 0 | AG60: =COUNTIF(AG25:AG58,Z24) -> 29 | AH60: =SUM(AH25:AH58) -> 0 | AI60: 0 | AJ60: 0 | AK60: 0 | AL60: 0 | AM60: 0 | AN60: 0 | AO60: 0 | AP60: 0 | AQ60: 0 | AV60: =SUM(AV25:AV58) -> 0 | AW60: 11 | AX60: 9 | AY60: 20 | AZ60: 0 | BA60: 0
F61: C[M--B] | G61: gemeten gehalte in monster B in mg/kg d.s. | AD61: max. spreidingsmaat Ch:Cl= | AF61: =MAX(W25:W58) -> 1 | AG61: N <=AW2000 | AH61: a<x<2a | AI61: a<x<w | AJ61: a<x<2a en x<w | AK61: ax2ani | AL61: 2a<x<w | AM61: 2axw-nipcb | AN61: N | AO61: w<x<ind | AP61: ind<x<i-w | AQ61: >i-waarde | AY61: =IF(OR(AY60>0,AZ60>0,BA60>0,BC60>0),1,0) -> 1
F62: C[gem] | G62: gemiddelde te toetsen gehalte | AD62: zijn er Ch:Cl > Y: | AF62: =IF(X59>0,"ja","nee") -> nee
AD63: aantal Ch:Cl > Y: | AF63: =IF(AF61>1,SUM(X25:X58),"geen") -> geen
AB64: >AW2000 | AC64: >i-waarde | AG64: =COUNTIF(AG25:AG58,Z24) -> 29 | AH64: =SUM(AH25:AH58) -> 0 | AI64: =SUM(AI25:AI58) -> 0 | AJ64: =SUM(AJ25:AJ58) -> 0 | AL64: =SUM(AL25:AL58) -> 0 | AO64: =SUM(AO25:AO58) -> 0 | AP64: =SUM(AP25:AP58) -> 0 | AQ64: =SUM(AQ25:AQ58) -> 0 | AX64: =AW60 -> 11 | AZ64: =SUM(AZ31:AZ63) -> 0
F65: AW2000 | G65: achtergrondwaarden
F66: wonen | G66: maximale waarden bodemfunctie klasse wonen | AG66: N <=AW2000 | AH66: a<x<2a | AI66: a<x<w | AJ66: a<x<2a en x<w | AK66: ax2ani | AL66: 2a<x<w | AM66: 2axw-nipcb | AO66: w<x<ind | AP66: ind<x<i-w | AQ66: >i-waarde | AX66: =IF(AX64<AE16,0,IF(AX64<AE17,AG16,IF(AX64<AE18,AG17,IF(AX64<AE19,AG18,IF(AX64<AE20,AG19,AG20))))) -> 2 | AZ66: =IF(AND(AJ64<=AX66,AJ64>0,AL64=0,AO64=0,AP64=0,AQ64=0),1,0) -> 0 | BE66: =IF(AND(AH64=0,AI64=0,AO64=0,AP64=0,AQ64=0),1,0) -> 1
F67: industrie | G67: maximale waarden bodemfunctieklasse industrie | AB67: =SUM(AB25:AB58) -> 0 | AC67: =SUM(AC25:AC58) -> 0 | AD67: Kwaliteitscontrole | AX67: N,T | AZ67: voldoet N,T? | BE67: AW2000?
F68: i-waarde | G68: interventiewaarde bodem | AD68: betreffende de invoer van de correcte waarden uit het analysecertificaat en de gestelde conclusie:
F69: toets | G69: resultaat van de toetsing aan de samenstellingswaarden
AD70: Naam invoerder: | AG70: Paraaf: | AS70: Datum: | BE70: =IF((I23=6),"Opmerking: bij methode 2*6 geen notitie >2*bsb-1","") -> 
F71: Kwaliteit: | G71: =IF(AC60>=1,"sterk verontreinigde grond",IF(OR(AC67>0,Q5="niet mogelijk",L14="niet mogelijk",AND(K13=1,AF13=1)),"niet toepasbare grond",IF(AND(AC67=0,AB67=0),"AW2000 grond","bodemklasse"))) -> AW2000 grond | J71: =IF(AND(G71="bodemklasse",AP64>0),IF(AW3=1,"industrie<x<i-waarde","niet toepasbare grond"),IF(AND(G71="bodemklasse",AO64>0),"industrie",IF(AND(G71="bodemklasse",AZ66=0,AI64>0),"wonen",IF(AND(G71="bodemklasse",AZ66=1),"zie N,T-toets","")))) ->  | L71: =IF(AND(H7=1,AA71<AG8),"Let op: Deze kwaliteit is beter dan voor samenvoeging","") ->  | AA71: =IF(J71="industrie",3,IF(J71="wonen",2,IF(OR(G71="AW2000 grond",J71="zie N,T-toets"),1,"x"))) -> 1 | AE71: =IF(AND(H7=1,AA71>AG8,OR(BE8="AW2000",BE8="wonen",BE8="industrie")),"Conform BRL9335-1 is de eindkwaliteit:","") ->  | AR71: =IF(AND(H7=1,AA71>AG8,OR(BE8="AW2000",BE8="wonen",BE8="industrie")),BE8,"") ->  | AX71: =IF(G71="",0,IF(G71="niet toepasbare grond",1,IF(G71="AW2000 grond",2,IF(G71="bodemklasse",3,"fout")))) -> 2 | AY71: =IF(J71="",0,IF(J71="industrie<x<i-waarde",1,IF(J71="industrie",2,IF(J71="wonen",3,IF(J71="zie N,T-toets",4,"fout"))))) -> 0 | BE71: =IF((I23=6),"dit geldt in voorkomende gevallen alleen","") -> 
F72: =IF(OR(J71="niet toepasbare grond",J71="industrie<x<i-waarde",J71="",J71="wonen",J71="industrie"),"","N,T-toets:") ->  | G72: =IF(G71="AW2000 grond","AW2000",IF(OR(J71="industrie<x<i-waarde",J71="",J71="wonen",J71="industrie"),"",IF(OR(G71="niet toepasbare grond",J71="niet toepasbare grond"),"",IF(J71="industrie","industrie",IF(J71="wonen","wonen",IF(AZ66=1,"N,T-AW2000",IF(BE66=1,"AW2000","niet"))))))) -> AW2000 | AD72: Naam 2e lezer: | AG72: Paraaf: | AS72: Datum: | AX72: =IF(J71="industrie",1,IF(J71="wonen",2,IF(G72="N,T-AW2000",3,IF(G72="AW2000",4,IF(G72="niet",5,"fout"))))) -> 4 | BE72: =IF((I23=6),"voor toetsing AW2000 grond !!!","") -> 
G73: =IF(OR(G71="AW2000 grond",G72="AW2000",G72="N,T-AW2000"),"AW2000 grond is altijd vrij toepasbaar (voor wat betreft de chemische kwaliteit).","") -> AW2000 grond is altijd vrij toepasbaar (voor wat betreft de chemische kwaliteit). | AX73: =IF(F76="",0,IF(F76="Let op: voor grootschalige toepassing uitloging uitvoeren en emissie bepalen!",1,"fout")) -> 0
F76: =IF('Grootschalige toepassing'!T42=1,"Let op: voor grootschalige toepassing uitloging uitvoeren en emissie bepalen!","") -> 

Sheet Start
B4: Rekenblad toetsing partijkeuring grond Besluit bodemkwaliteit
B13: Rekenblad
B14: toetsing partijkeuring
B15: Besluit en Regeling bodemkwaliteit
B16: Beoordelingsrichtlijn BRL1000-protocol 1001
B21: Dit rekenblad berekent,
B22: nadat u de betreffende partij- en analysegegevens heeft ingevuld,
B23: de kwaliteit van de uitgekeurde partij grond of baggerspecie.
B27: Een belangrijke voorwaarde is dat u in het menu 'Office knop'
B28: onder 'opties voor excel' in het menu 'Formules' de optie
B29: 'Iteratieve berekening' aanvinkt, anders krijgt u de foutmelding
B30: 'kruisverwijzing' en werkt het rekenblad niet op de juiste wijze.
C33: lichtblauwe velden zijn invulvelden
C35: lichtgroene velden bevatten wettelijk voorgeschreven waarden
B39: U kunt met invullen beginnen op het tabblad 'Bodemkwaliteit'
